Workbook

Sheet Quantity Matrix (hidden)
A1: REA VAYA AUTOMATED FARE COLLECTION
A2: ALL AFC SERIVICES: EQUIPMENT MATRIX
A3: Contract Sections | C3: Fare System Components | P3: Vending Machine Components | AC3: Park and Ride | AH3: Server Components
C4: Bank EMV Point-of-Sale Device | D4: Cash Register | E4: Invoice Printer | F4: Counting-Drop-Safe | G4: Cash Recycler | H4: Fare Collection Reader | I4: Passenger Counter | J4: STD Single Sided Fare Access Gate | K4: STD Dual Sided Fare Access Gate | L4: UNI Single Sided Fare Access Gate | M4: UNI Dual Sided Fare Access Gate | N4: WiFi Point | O4: Cellular Point | P4: EMV Acceptance Module | Q4: EMV Issuance Module | R4: QR Code Issuance Module | S4: Thermal Printer Module | T4: Touch Screen | U4: Coin Acceptance Module | V4: Coin Recycler Module | W4: Note Acceptance Module | X4: Note Recycler Module | Y4: PCI-PED Module | Z4: Class 3 Safe | AA4: Three Compartment Enclosure | AB4: One Compartment Enclosure | AC4: VoIP Call Station | AD4: Booms | AE4: QR Code Issuance | AF4: EMV + QR Code Reader | AG4: Dual LED Cluster | AH4: SAN LTO Backup | AI4: SAN | AJ4: Servers / Industrial Processor
A5: Section Type | B5: Facility Quantity
A6: Station Type A (One Platform, One Entrance, 5m, CVM) | B6: 10 | C6: 0 | D6: 0 | E6: 0 | F6: 0 | G6: 0 | H6: 8 | I6: 0 | J6: 1 | K6: 2 | L6: 1 | M6: 1 | N6: 0 | O6: 1 | P6: 0 | Q6: 0 | R6: 0 | S6: 0 | T6: 0 | U6: 0 | V6: 0 | W6: 0 | X6: 0 | Y6: 0 | Z6: 0 | AA6: 0 | AB6: 0 | AC6: 0 | AD6: 0 | AE6: 0 | AF6: 0 | AG6: 0 | AH6: 0 | AI6: 0 | AJ6: 0
A7: Station Type B (One Platform, One Entrance, 5m, TOM) | B7: 27 | C7: 1 | D7: 0 | E7: 1 | F7: 0 | G7: 1 | H7: 8 | I7: 0 | J7: 1 | K7: 2 | L7: 1 | M7: 1 | N7: 0 | O7: 0 | P7: 0 | Q7: 0 | R7: 0 | S7: 0 | T7: 0 | U7: 0 | V7: 0 | W7: 0 | X7: 0 | Y7: 0 | Z7: 0 | AA7: 0 | AB7: 0 | AC7: 0 | AD7: 0 | AE7: 0 | AF7: 0 | AG7: 0 | AH7: 0 | AI7: 0 | AJ7: 0
A8: Station Type C (Two Platform, Two Entrance, 4m, TOM) | B8: 7 | C8: 2 | D8: 0 | E8: 2 | F8: 0 | G8: 2 | H8: 12 | I8: 0 | J8: 2 | K8: 2 | L8: 2 | M8: 2 | N8: 0 | O8: 0 | P8: 0 | Q8: 0 | R8: 0 | S8: 0 | T8: 0 | U8: 0 | V8: 0 | W8: 0 | X8: 0 | Y8: 0 | Z8: 0 | AA8: 0 | AB8: 0 | AC8: 0 | AD8: 0 | AE8: 0 | AF8: 0 | AG8: 0 | AH8: 0 | AI8: 0 | AJ8: 0
A9: Station Type D (One Platform, One Entrance, 3.5m, CVM) | B9: 9 | C9: 0 | D9: 0 | E9: 0 | F9: 0 | G9: 0 | H9: 4 | I9: 0 | J9: 1 | K9: 0 | L9: 1 | M9: 1 | N9: 0 | O9: 0 | P9: 0 | Q9: 0 | R9: 0 | S9: 0 | T9: 0 | U9: 0 | V9: 0 | W9: 0 | X9: 0 | Y9: 0 | Z9: 0 | AA9: 0 | AB9: 0 | AC9: 0 | AD9: 0 | AE9: 0 | AF9: 0 | AG9: 0 | AH9: 0 | AI9: 0 | AJ9: 0
A10: Station Type E (One Platform, One Entrance, 3.5m, TOM) | B10: 9 | C10: 1 | D10: 0 | E10: 1 | F10: 0 | G10: 1 | H10: 4 | I10: 0 | J10: 1 | K10: 0 | L10: 1 | M10: 1 | N10: 0 | O10: 0 | P10: 0 | Q10: 0 | R10: 0 | S10: 0 | T10: 0 | U10: 0 | V10: 0 | W10: 0 | X10: 0 | Y10: 0 | Z10: 0 | AA10: 0 | AB10: 0 | AC10: 0 | AD10: 0 | AE10: 0 | AF10: 0 | AG10: 0 | AH10: 0 | AI10: 0 | AJ10: 0
A11: Station Type F (Two Platform, Two Entrance, 5m, TOM) | B11: 12 | C11: 2 | D11: 0 | E11: 2 | F11: 0 | G11: 2 | H11: 16 | I11: 0 | J11: 2 | K11: 4 | L11: 2 | M11: 2 | N11: 0 | O11: 0 | P11: 0 | Q11: 0 | R11: 0 | S11: 0 | T11: 0 | U11: 0 | V11: 0 | W11: 0 | X11: 0 | Y11: 0 | Z11: 0 | AA11: 0 | AB11: 0 | AC11: 0 | AD11: 0 | AE11: 0 | AF11: 0 | AG11: 0 | AH11: 0 | AI11: 0 | AJ11: 0
A12: Station Type G (Three Platform, Three Entrance, 5m, CVM) | B12: 4 | C12: 0 | D12: 0 | E12: 0 | F12: 0 | G12: 0 | H12: 24 | I12: 0 | J12: 4 | K12: 8 | L12: 4 | M12: 4 | N12: 0 | O12: 0 | P12: 0 | Q12: 0 | R12: 0 | S12: 0 | T12: 0 | U12: 0 | V12: 0 | W12: 0 | X12: 0 | Y12: 0 | Z12: 0 | AA12: 0 | AB12: 0 | AC12: 0 | AD12: 0 | AE12: 0 | AF12: 0 | AG12: 0 | AH12: 0 | AI12: 0 | AJ12: 0
A13: Back Office (66 Sauer Street) | B13: 1 | C13: 0 | D13: 0 | E13: 0 | F13: 0 | G13: 0 | H13: 0 | I13: 0 | J13: 0 | K13: 0 | L13: 0 | M13: 0 | N13: 0 | O13: 0 | P13: 0 | Q13: 0 | R13: 0 | S13: 0 | T13: 0 | U13: 0 | V13: 0 | W13: 0 | X13: 0 | Y13: 0 | Z13: 0 | AA13: 0 | AB13: 0 | AC13: 0 | AD13: 0 | AE13: 0 | AF13: 0 | AG13: 0 | AH13: 0 | AI13: 1 | AJ13: 3
A14: Customer Care Centres | B14: 12 | C14: 1 | D14: 0 | E14: 1 | F14: 0 | G14: 1 | H14: 0 | I14: 0 | J14: 0 | K14: 0 | L14: 0 | M14: 0 | N14: 0 | O14: 0 | P14: 0 | Q14: 0 | R14: 0 | S14: 0 | T14: 0 | U14: 0 | V14: 0 | W14: 0 | X14: 0 | Y14: 0 | Z14: 0 | AA14: 0 | AB14: 0 | AC14: 0 | AD14: 0 | AE14: 0 | AF14: 0 | AG14: 0 | AH14: 0 | AI14: 0 | AJ14: 0
A15: Vending Machines - Cash Recycler | B15: 20 | C15: 0 | D15: 0 | E15: 0 | F15: 0 | G15: 0 | H15: 0 | I15: 0 | J15: 0 | K15: 0 | L15: 0 | M15: 0 | N15: 0 | O15: 0 | P15: 1 | Q15: 1 | R15: 1 | S15: 1 | T15: 1 | U15: 0 | V15: 1 | W15: 0 | X15: 1 | Y15: 1 | Z15: 1 | AA15: 1 | AB15: 0 | AC15: 0 | AD15: 0 | AE15: 0 | AF15: 0 | AG15: 0 | AH15: 0 | AI15: 0 | AJ15: 0
A16: Vending Machines - Card 2 Card | B16: 30 | C16: 0 | D16: 0 | E16: 0 | F16: 0 | G16: 0 | H16: 0 | I16: 0 | J16: 0 | K16: 0 | L16: 0 | M16: 0 | N16: 0 | O16: 0 | P16: 2 | Q16: 0 | R16: 0 | S16: 1 | T16: 1 | U16: 0 | V16: 0 | W16: 0 | X16: 0 | Y16: 1 | Z16: 0 | AA16: 0 | AB16: 1 | AC16: 0 | AD16: 0 | AE16: 0 | AF16: 0 | AG16: 0 | AH16: 0 | AI16: 0 | AJ16: 0
A17: Park-and-Ride Type A (Two Entrances, Two Exits) | B17: 3 | C17: 0 | D17: 0 | E17: 0 | F17: 0 | G17: 0 | H17: 0 | I17: 0 | J17: 0 | K17: 0 | L17: 0 | M17: 0 | N17: 0 | O17: 0 | P17: 0 | Q17: 0 | R17: 0 | S17: 0 | T17: 0 | U17: 0 | V17: 0 | W17: 0 | X17: 0 | Y17: 0 | Z17: 0 | AA17: 0 | AB17: 0 | AC17: 4 | AD17: 4 | AE17: 2 | AF17: 4 | AG17: 4 | AH17: 0 | AI17: 0 | AJ17: 0
A18: Park-and-Ride Type B (One Entrance, One Exit) | B18: 2 | C18: 0 | D18: 0 | E18: 0 | F18: 0 | G18: 0 | H18: 0 | I18: 0 | J18: 0 | K18: 0 | L18: 0 | M18: 0 | N18: 0 | O18: 0 | P18: 0 | Q18: 0 | R18: 0 | S18: 0 | T18: 0 | U18: 0 | V18: 0 | W18: 0 | X18: 0 | Y18: 0 | Z18: 0 | AA18: 0 | AB18: 0 | AC18: 2 | AD18: 2 | AE18: 1 | AF18: 2 | AG18: 2 | AH18: 0 | AI18: 0 | AJ18: 0
A19: Vehicles - Mobile Kiosk | B19: 0 | C19: 1 | D19: 1 | E19: 1 | F19: 1 | G19: 0 | H19: 0 | I19: 0 | J19: 0 | K19: 0 | L19: 0 | M19: 0 | N19: 1 | O19: 1 | P19: 0 | Q19: 0 | R19: 0 | S19: 0 | T19: 0 | U19: 0 | V19: 0 | W19: 0 | X19: 0 | Y19: 0 | Z19: 0 | AA19: 0 | AB19: 0 | AC19: 0 | AD19: 0 | AE19: 0 | AF19: 0 | AG19: 0 | AH19: 0 | AI19: 0 | AJ19: 0
A20: Vehicles - Standard Bus | B20: 330 | C20: 0 | D20: 0 | E20: 0 | F20: 0 | G20: 0 | H20: 1 | I20: 3 | J20: 0 | K20: 0 | L20: 0 | M20: 0 | N20: 1 | O20: 1 | P20: 0 | Q20: 0 | R20: 0 | S20: 0 | T20: 0 | U20: 0 | V20: 0 | W20: 0 | X20: 0 | Y20: 0 | Z20: 0 | AA20: 0 | AB20: 0 | AC20: 0 | AD20: 0 | AE20: 0 | AF20: 0 | AG20: 0 | AH20: 0 | AI20: 0 | AJ20: 0
A21: Vehicles - Articulated Bus | B21: 0 | C21: 0 | D21: 0 | E21: 0 | F21: 0 | G21: 0 | H21: 1 | I21: 4 | J21: 0 | K21: 0 | L21: 0 | M21: 0 | N21: 1 | O21: 1 | P21: 0 | Q21: 0 | R21: 0 | S21: 0 | T21: 0 | U21: 0 | V21: 0 | W21: 0 | X21: 0 | Y21: 0 | Z21: 0 | AA21: 0 | AB21: 0 | AC21: 0 | AD21: 0 | AE21: 0 | AF21: 0 | AG21: 0 | AH21: 0 | AI21: 0 | AJ21: 0
A22: Vehicles - Metrobus | B22: 418 | C22: 0 | D22: 0 | E22: 0 | F22: 0 | G22: 0 | H22: 1 | I22: 3 | J22: 0 | K22: 0 | L22: 0 | M22: 0 | N22: 1 | O22: 1 | P22: 0 | Q22: 0 | R22: 0 | S22: 0 | T22: 0 | U22: 0 | V22: 0 | W22: 0 | X22: 0 | Y22: 0 | Z22: 0 | AA22: 0 | AB22: 0 | AC22: 0 | AD22: 0 | AE22: 0 | AF22: 0 | AG22: 0 | AH22: 0 | AI22: 0 | AJ22: 0
A23: Mobile Fare Validator | B23: 60
A24: Fare Media - Mifare Ultralight | B24: 0
B26: Totals (Excluding Vehicles) | C26: =SUMPRODUCT($B$6:$B$16,C6:C16) -> 86 | D26: 0 | E26: 86 | F26: 0 | G26: 86 | H26: =SUMPRODUCT($B$6:$B$16,H6:H16) -> 740 | I26: 0 | J26: 109 | K26: 168 | L26: =SUMPRODUCT($B$6:$B$16,L6:L16) -> 109 | M26: 109 | N26: 0 | O26: 10 | P26: =SUMPRODUCT($B$6:$B$16,P6:P16) -> 80 | Q26: 20 | R26: 20 | S26: 50 | T26: 50 | U26: 0 | V26: 20 | W26: 0 | X26: 20 | Y26: 50 | Z26: 20 | AA26: 20 | AB26: 30 | AC26: 0 | AD26: 0 | AE26: 0 | AF26: 0 | AG26: 0 | AH26: 0 | AI26: 1 | AJ26: 3
A28: Estimation Aspects
A29: Maintenance Aspects | B29: Quantity
A30: Yearly Maintenance Percentage | B30: 0.1
A31: Years of Maintenance | B31: 7.5
A32: Years of Operations | B32: 8
A33: Hours of Training | B33: 0
A34: Escallation per Year | B34: 0.058
A36: Operational Aspects - APTMS
A37: Aspect | B37: Quantity
A38: Labour - Fare Systems Specialist | B38: 1
A39: Labour - Technician | B39: =ROUNDUP(B40/2,0) -> 5
A40: Labour - Technician Assistant | B40: =ROUNDUP(SUM(B6:B22)/22/5,0) -> 9

Sheet P's & G's
B1: CITY OF JOHANNESBURG
B2: CONTRACT NO. JDA-WP 15K-01
B4: THE DESIGN, BUILD, AND MAINTENANCE OF AN
B5: AUTOMATED FARE COLLECTION SYSTEM
B6: FOR REA VAYA AND METROBUS FOR A 8 YEAR PERIOD
B8: ="SCHEDULE - " & SUBSTITUTE(B13,")","") & " - " & C13 -> SCHEDULE - C2.A - PRELIMINARY & GENERAL ITEMS
B10: ITEM | C10: DESCRIPTION OF ITEM | D10: SPEC | E10: UNIT | F10: QUANTITY | G10: RATE | H10: AMOUNT
C12: The rates to be filled in hereunder must make provision for all specified equipment, associated materials, integration, and systems in order to execute the complete works as specified. | I12: =FindDuplicates(B13:B89) -> Duplicate Numbering Exists: C2.A.2)
A13: 1 | B13: =SUMMARY!B12 -> C2.A) | C13: =SUMMARY!C12 -> PRELIMINARY & GENERAL ITEMS
A15: 2 | B15: =AutoNumberingFormat(B13,A15) -> C2.A.1) | C15: Performance Security and Insurance
A16: 3 | B16: =AutoNumberingFormat(B15,A16) -> C2.A.1.a) | C16: Performance Security in accordance with FIDIC clause 4.2 of the Conditions of Contract | E16: Month | F16: ='Quantity Matrix'!B31*12 -> 90 | H16: =IF(AND(F16=0,E16<>""),"Rate Only",IF($E16="","",$F16*G16)) -> 0
B17: =AutoNumberingFormat(B16,A18) -> C2.A.1.b) | C17: Insurance for the Design-Build Period in accordance with FIDIC clause 19.2 of the Conditions of Contract | E17: Month | F17: 18
A18: 3 | B18: =AutoNumberingFormat(B17,A19) -> C2.A.1.c) | C18: Insurance for the Design-Build Period in accordance with FIDIC clause 19.2 of the Conditions of Contract | E18: Month | F18: 48 | H18: =IF(AND(F18=0,E18<>""),"Rate Only",IF($E18="","",$F18*G18)) -> 0
A19: 3 | B19: =AutoNumberingFormat(B18,A19) -> C2.A.1.d) | C19: Insurance for the Design-Build Period in accordance with FIDIC clause 19.2 of the Conditions of Contract | E19: Month | F19: 48 | H19: 0
A20: 3 | B20: =AutoNumberingFormat(B19,A21) -> C2.A.1.e) | C20: Insurance for the Design-Build Period in accordance with FIDIC clause 19.2 of the Conditions of Contract | E20: Month | F20: 42
A21: 3 | B21: C2.A.2) | C21: Insurance for the Operational Service Period in accordance with FIDIC clause 19.3 of the Conditions of Contract | E21: Month | F21: 78 | H21: 0
A22: 2 | B22: =AutoNumberingFormat(B18,A22) -> C2.A.2) | C22: Accommodation of Traffic
B23: =AutoNumberingFormat(B22,A23) -> 
A24: 3 | B24: =AutoNumberingFormat(B22,A24) -> C2.A.2.a) | C24: Provision of traffic safety equipment for use by the Employer and/or Employer Representative
A25: 4 | B25: C2.A.2.a.1) | C25: Reflective safety jackets | E25: No | F25: 2 | H25: 0
A26: 4 | B26: C2.A.2.a.2) | C26: Rotating amber flashing lights with magnetic base | E26: No | F26: 2 | H26: 0
A27: 4 | B27: C2.A.2.a.3) | C27: Magnetic 'Construction Vehicle' stickers | E27: No | F27: 4 | H27: 0
A29: 3 | B29: =AutoNumberingFormat(B27,A29) -> C2.A.2.b) | C29: Traffic safety officer | E29: Month | F29: =F18 -> 48 | H29: 0
A31: 3 | B31: =AutoNumberingFormat(B29,A31) -> C2.A.2.c) | C31: Penalties
A32: 4 | B32: C2.A.2.c.1) | C32: Fixed penalty per occurrence | E32: No | F32: 0 | H32: Rate Only
A33: 4 | B33: C2.A.2.c.2) | C33: Time-related penalty | E33: hr | F33: 0 | H33: =IF(AND(F33=0,E33<>""),"Rate Only",IF($E33="","",$F33*G33)) -> Rate Only
A35: 2 | B35: =AutoNumberingFormat(B33,A35) -> C2.A.3) | C35: Environmental Management Plan
B36: =AutoNumberingFormat(B35,A36) -> 
A37: 3 | B37: =AutoNumberingFormat(B35,A37) -> C2.A.3.a) | C37: Penalty for serious violations:
A38: 4 | B38: C2.A.3.a.1) | C38: Hazardous chemical/oil spill and/or dumping in non-approved sites | E38: No | F38: 0 | H38: Rate Only
A39: 4 | B39: C2.A.3.a.2) | C39: Pollution of water sources | E39: No | F39: 0 | H39: Rate Only
A40: 4 | B40: C2.A.3.a.3) | C40: Unauthorised blasting activities | E40: No | F40: 0 | H40: Rate Only
A42: 3 | B42: =AutoNumberingFormat(B40,A42) -> C2.A.3.b) | C42: Penalty for less serious violations
A43: 4 | B43: C2.A.3.b.1) | C43: Littering on site | E43: No | F43: 0 | H43: Rate Only
A44: 4 | B44: C2.A.3.b.2) | C44: Lighting of illegal fires on site | E44: No | F44: 0 | H44: Rate Only
A45: 4 | B45: C2.A.3.b.3) | C45: Cost-To-Client for the remainder of the personnel of type AFC Manager | E45: No | F45: 0 | H45: Rate Only
A46: 4 | B46: C2.A.3.b.4) | C46: Excess dust or excess noise emanating from site | E46: No | F46: 0 | H46: Rate Only
A47: 4 | B47: C2.A.3.b.5) | C47: Possession or use of intoxicating substances on site | E47: No | F47: 0 | H47: Rate Only
A48: 4 | B48: C2.A.3.b.6) | C48: Any vehicles being driven in excess of designated speed limits | E48: No | F48: 0 | H48: Rate Only
A49: 4 | B49: C2.A.3.b.7) | C49: Urination and defecation anywhere except in designated areas | E49: No | F49: 0 | H49: Rate Only
A51: 2 | B51: =AutoNumberingFormat(B49,A51) -> C2.A.4) | C51: Occupational Health & Safety Act
A52: 3 | B52: C2.A.4.a) | C52: Compliance with Construction Regulations including submission and implementation of a health & safety plan | E52: Sum | F52: 1 | H52: 0
A53: 3 | B53: C2.A.4.b) | C53: Provision for a full-time certified SHE official during the Design and Build period | E53: Month | F53: =F18 -> 48 | H53: 0
A54: 3 | B54: =AutoNumberingFormat(B53,A54) -> C2.A.4.c) | C54: Provision for on-site "as-and-when" needed certified SHE official services during the Operations and Maintenance Period | E54: Hour | F54: =8*F19 -> 384 | H54: =IF(AND(F54=0,E54<>""),"Rate Only",IF($E54="","",$F54*G54)) -> 0
B55: =AutoNumberingFormat(B52,A55) -> 
A56: 2 | B56: =AutoNumberingFormat(B52,A56) -> C2.A.5) | C56: Commissioning Engineer
A57: 3 | B57: =AutoNumberingFormat(B56,A57) -> C2.A.5.a) | C57: Provision for a full-time, on-site, experienced Commissioning Engineer for quality assurance, liaising, reporting, programme management, and overseer functions during the Design and Build Period | E57: Month | F57: =F53 -> 48 | H57: 0
A58: 3 | B58: =AutoNumberingFormat(B57,A58) -> C2.A.5.b) | C58: Provision for on-site "as-and-when" needed Commissioning Engineer services during the Operations and Maintenance Period | E58: Hour | F58: =8*F19 -> 384 | H58: =IF(AND(F58=0,E58<>""),"Rate Only",IF($E58="","",$F58*G58)) -> 0
B59: =AutoNumberingFormat(B57,A59) ->  | H59: =IF(AND(F59=0,E59<>""),"Rate Only",IF($E59="","",$F59*G59)) -> 
A60: 2 | B60: =AutoNumberingFormat(B56,A60) -> C2.A.6) | C60: General Items
A61: 3 | B61: =AutoNumberingFormat(B57,A61) -> C2.A.5.b) | C61: Extended warranty period for AFC contract as per caluse in volume 2B Part C3.7 | E61: Month | F61: =F57 -> 48 | H61: =IF(AND(F61=0,E61<>""),"Rate Only",IF($E61="","",$F61*G61)) -> 0
A62: 3 | B62: =AutoNumberingFormat(B58,A61) -> C2.A.5.c) | C62: Asset Refresh Cycle | E62: No | F62: 1 | H62: =IF(AND(F62=0,E62<>""),"Rate Only",IF($E62="","",$F62*G62)) -> 0
B63: =AutoNumberingFormat(B62,A62) -> C2.A.5.d) | C63: Back up routers for 86 modules including 100mb data per site per month | E63: Month | F63: 96 | H63: =IF(AND(F63=0,E63<>""),"Rate Only",IF($E63="","",$F63*G63)) -> 0
A66: 3 | B66: =AutoNumberingFormat(B60,A66) -> C2.A.6.a) | C66: Fixed Obligations+Establishment | E66: Sum | F66: 1 | H66: 0
A68: 3 | B68: =AutoNumberingFormat(B66,A68) -> C2.A.6.b) | C68: General Items for Design-Build Period
A70: 4 | B70: =AutoNumberingFormat(B68,A70) -> C2.A.6.b.1) | C70: Transport | E70: Month | F70: =F29 -> 48 | H70: 0
A71: 4 | B71: C2.A.6.b.2) | C71: Project management | E71: Month | F71: =F70 -> 48 | H71: 0
A72: 4 | B72: C2.A.6.b.3) | C72: Systems engineering | E72: Month | F72: =F71 -> 48 | H72: 0
A73: 4 | B73: C2.A.6.b.4) | C73: Systems design | E73: Month | F73: =F72 -> 48 | H73: 0
A74: 4 | B74: C2.A.6.b.5) | C74: Other Time Related Obligations | E74: Month | F74: =F73 -> 48 | H74: 0
A76: 3 | B76: =AutoNumberingFormat(B74,A76) -> C2.A.6.c) | C76: General Items for Operations Period | H76: =IF(AND(F76=0,E76<>""),"Rate Only",IF($E76="","",$F76*G76)) -> 
B77: =AutoNumberingFormat(B76,A77) -> 
A78: 4 | B78: =AutoNumberingFormat(B76,A78) -> C2.A.6.c.1) | C78: Transport | E78: Month | F78: =F19 -> 48 | H78: 0
A79: 4 | B79: =AutoNumberingFormat(B78,A79) -> C2.A.6.c.2) | C79: Project management | E79: Month | F79: =F78 -> 48 | H79: 0
A80: 4 | B80: C2.A.6.c.3) | C80: Other Time Related Obligations | E80: Month | F80: =F79 -> 48 | H80: 0
A82: 3 | B82: =AutoNumberingFormat(B80,A82) -> C2.A.6.d) | C82: Any other items as may be necessary to complete the installation.
C83: Decommision 1A and 1B Stations (52 modules including AVM) | E83: No | F83: 1 | G83: 0 | H83: 0
C84: Decommision 1A and 1B buses 195 buses | E84: No | F84: 1 | G84: 0 | H84: 0
C85: Decommision Metrobus 400 | E85: No | F85: 1 | G85: 0 | H85: 0
C86: Decommision Point of Sales Ghandi Square and Westgate | E86: No | F86: 1 | G86: 0 | H86: 0
C87: Bidder must price a 10% contigency for all required equipment in the current BOQ | E87: No | F87: 1 | G87: 0 | H87: 0
C88: EMV Level 3 Certification (VISA, Mastercard, Union Pay and Amex) | E88: No | F88: 2 | G88: 0 | H88: 0
C89: =CONCATENATE(C13," TOTAL (Excluding VAT) CARRIED FORWARD TO SUMMARY)") -> PRELIMINARY & GENERAL ITEMS TOTAL (Excluding VAT) CARRIED FORWARD TO SUMMARY) | H89: =SUM(H13:H87) -> 0

Sheet FM
B1: ='P''s & G''s'!B1:H1 -> CITY OF JOHANNESBURG
B4: ='P''s & G''s'!B4:H4 -> THE DESIGN, BUILD, AND MAINTENANCE OF AN
B5: ='P''s & G''s'!B5:H5 -> AUTOMATED FARE COLLECTION SYSTEM
B6: ='P''s & G''s'!B6:H6 -> FOR REA VAYA AND METROBUS FOR A 8 YEAR PERIOD
B7: ='P''s & G''s'!B7:H7 -> 
B8: ="SCHEDULE - " & SUBSTITUTE(B13,")","") & " - " & C13 -> SCHEDULE - C2.B - D&B PERIOD: FARE MEDIA
B10: ITEM | C10: DESCRIPTION OF ITEM | D10: UNIT | E10: QUANTITY | F10: SUPPLY | G10: INSTALL | H10: RATE | I10: AMOUNT
C12: The rates to be filled in hereunder must make provision for all specified equipment, associated materials, integration, and systems in order to execute the complete works as specified. | J12: =FindDuplicates(B13:B233) -> Numbering is okay
A13: 1 | B13: =SUMMARY!B13 -> C2.B) | C13: =SUMMARY!C13 -> D&B PERIOD: FARE MEDIA
A15: 2 | B15: =AutoNumberingFormat(B13,A15) -> C2.B.1) | C15: Fare Media | I15: =IF(D15="","",H15*#REF!) -> 
A16: 3 | B16: =AutoNumberingFormat(B15,A16) -> C2.B.1.a) | C16: Mifare Ultralight Branded Cards | D16: No | E16: ='Quantity Matrix'!B24 -> 0 | H16: =IF($D16="","",SUM(F16:G16)) -> 0 | I16: =IF(AND(E16=0,D16<>""),"Rate Only",IF($D16="","",$E16*H16)) -> Rate Only
A17: 3 | B17: C2.B.1.b) | C17: QR-Code Thermal Printed Rolls | D17: No | E17: =SUM('Quantity Matrix'!B14:B16,'Quantity Matrix'!C26) -> 148 | H17: 0 | I17: 0
A19: 2 | B19: =AutoNumberingFormat(B15,A19) -> C2.B.2) | C19: Mobile Fare Media Validator
A20: 3 | B20: =AutoNumberingFormat(B19,A20) -> C2.B.2.a) | C20: Contact and Contactless Handheld EMV certified Fare Media reader/writer with Thermal Printer with Mifare reader | D20: No | E20: ='Quantity Matrix'!B23 -> 60 | H20: 0 | I20: =IF(AND(E20=0,D20<>""),"Rate Only",IF($D20="","",$E20*H20)) -> 0
A21: 3 | B21: C2.B.2.b) | C21: Negotiate on behalf of COJ with cellular service providers for the best available data communication rates | D21: Sum | E21: 1 | H21: =IF($D21="","",SUM(F21:G21)) -> 0 | I21: 0
A22: 3 | B22: C2.B.2.c) | C22: 100 Megabyte 3G Contract for duration of Contract on behalf of Client | D22: Month | E22: ='Quantity Matrix'!B32*12*E20 -> 5760 | H22: 0 | I22: 0
A23: 3 | B23: C2.B.2.d) | C23: SIM-card management solution (Integrateable into COJ ) | D23: Sum | E23: 1 | H23: 0 | I23: 0
A24: 3 | B24: C2.B.2.e) | C24: Docking Station (Power and Data) | D24: No | E24: =E20 -> 60 | H24: 0 | I24: 0
A25: 3 | B25: =AutoNumberingFormat(B24,A25) -> C2.B.2.f) | C25: Extra Battery | D25: No | E25: =E24 -> 60 | H25: =IF($D25="","",SUM(F25:G25)) -> 0 | I25: =IF(AND(E25=0,D25<>""),"Rate Only",IF($D25="","",$E25*H25)) -> 0
A26: 3 | B26: C2.B.2.g) | C26: Custom Silicon Case for Inspector terminal plus belt strap | D26: No | E26: =E20 -> 60 | H26: 0 | I26: 0
A27: 3 | B27: C2.B.2.h) | C27: USB Cable to Docking Station | D27: No | E27: =E24 -> 60 | H27: 0 | I27: 0
A28: 3 | B28: C2.B.2.i) | C28: 3m CAT5E UTP Ethernet Patch Cable to Docking Station | D28: No | E28: =E27 -> 60 | H28: 0 | I28: 0
A30: 3 | B30: =AutoNumberingFormat(B28,A30) -> C2.B.2.j) | C30: =CONCATENATE("Any other items to complete installation of ",B19) -> Any other items to complete installation of C2.B.2) | I30: =IF(AND(E30=0,D30<>""),"Rate Only",IF($D30="","",$E30*H30)) -> 
I31: =IF(AND(E31=0,D31<>""),"Rate Only",IF($D31="","",$E31*H31)) -> 
A32: 2 | B32: =AutoNumberingFormat(B30,A32) -> C2.B.3) | C32: =CONCATENATE("Vending Machine Infrastructure (For a Single Section of type ",'Quantity Matrix'!A15,")") -> Vending Machine Infrastructure (For a Single Section of type Vending Machines - Cash Recycler)
A34: 3 | B34: =AutoNumberingFormat(B32,A34) -> C2.B.3.a) | C34: Enclosure/Cabinet
A35: 4 | B35: =AutoNumberingFormat(B34,A35) -> C2.B.3.a.1) | C35: Three Compartment Enclosure (Processor, Recycler, and Safe in different lockable compartments) (Ruggedized, Powder Coated) | D35: No | E35: ='Quantity Matrix'!AA15 -> 1
A36: 4 | B36: C2.B.3.a.2) | C36: One Compartment Enclosure (Processor and Card Acceptance in same Compartment) (Ruggedized, Powder Coated) | D36: No | E36: ='Quantity Matrix'!AB15 -> 0
A37: 4 | B37: C2.B.3.a.3) | C37: Mounting Plate Complete with M10 x 70mm Anchor Bolts | D37: Sum | E37: =IF(SUM(E35:E36)>0,1,0) -> 1 | H37: =IF($D37="","",SUM(F37:G37)) -> 0 | I37: =IF(AND(E37=0,D37<>""),"Rate Only",IF($D37="","",$E37*H37)) -> 0
A38: 4 | B38: C2.B.3.a.4) | C38: Sundry installation materials | D38: Sum | E38: =IF(E37=0,0,1) -> 1 | H38: =IF($D38="","",SUM(F38:G38)) -> 0 | I38: =IF(AND(E38=0,D38<>""),"Rate Only",IF($D38="","",$E38*H38)) -> 0
H39: =IF($D39="","",SUM(F39:G39)) -> 
A40: 4 | B40: =AutoNumberingFormat(B38,A40) -> C2.B.3.a.5) | C40: =CONCATENATE("Any other items to complete installation of ",B34) -> Any other items to complete installation of C2.B.3.a) | H40: =IF($D40="","",SUM(F40:G40)) ->  | I40: =IF(AND(E40=0,D40<>""),"Rate Only",IF($D40="","",$E40*H40)) -> 
A42: 3 | B42: =AutoNumberingFormat(B40,A42) -> C2.B.3.b) | C42: Vending Machine Modules | H42: =IF($D42="","",SUM(F42:G42)) ->  | I42: =IF(AND(E42=0,D42<>""),"Rate Only",IF($D42="","",$E42*H42)) -> 
A43: 4 | B43: =AutoNumberingFormat(B42,A43) -> C2.B.3.b.1) | C43: Automated Vending Machine Processor | D43: No | E43: =IF(SUM(E45:E53)>0,1,0) -> 1 | H43: 0 | I43: 0
A44: 4 | B44: C2.B.3.b.2) | C44: Automated Vending Machine User Interface | D44: No | E44: =IF(SUM(E45:E54)>0,1,0) -> 1 | H44: 0 | I44: 0
A45: 4 | B45: C2.B.3.b.3) | C45: Automated Vending Machine Touch Screen Interface | D45: No | E45: ='Quantity Matrix'!T15 -> 1 | H45: 0 | I45: 0
A46: 4 | B46: C2.B.3.b.4) | C46: Coin Handling and Verification Module | D46: No | E46: ='Quantity Matrix'!U15 -> 0 | H46: 0 | I46: Rate Only
A47: 4 | B47: C2.B.3.b.5) | C47: Coin Recycling Module (Providing Change) | D47: No | E47: ='Quantity Matrix'!V15 -> 1 | H47: 0 | I47: 0
A48: 4 | B48: C2.B.3.b.6) | C48: Note Handling and Verification Module | D48: No | E48: ='Quantity Matrix'!W15 -> 0 | H48: 0 | I48: Rate Only
A49: 4 | B49: C2.B.3.b.7) | C49: Note Recycling Module (Providing Change) | D49: No | E49: ='Quantity Matrix'!X15 -> 1 | H49: 0 | I49: 0
A50: 4 | B50: C2.B.3.b.8) | C50: NDoT Regulation Compliant EMV Smart Card Issuance Module (complete with Hopper and Encoder) | D50: No | E50: ='Quantity Matrix'!Q15 -> 1 | H50: 0 | I50: 0
A51: 4 | B51: C2.B.3.b.9) | C51: NDoT Regulation Compliant EMV Smart Card Acceptance Module | D51: No | E51: ='Quantity Matrix'!P15 -> 1 | H51: 0 | I51: 0
A52: 4 | B52: C2.B.3.b.10) | C52: Mifare Ultralight Issuance Module (complete with Hopper and Encoder) | D52: No | E52: ='Quantity Matrix'!R15 -> 1 | H52: =IF($D52="","",SUM(F52:G52)) -> 0 | I52: =IF(AND(E52=0,D52<>""),"Rate Only",IF($D52="","",$E52*H52)) -> 0
A53: 4 | B53: C2.B.3.b.11) | C53: PCI-PED Compliant Keypad and Display | D53: No | E53: ='Quantity Matrix'!Y15 -> 1 | H53: 0 | I53: 0
A54: 4 | B54: C2.B.3.b.12) | C54: Sundry installation materials | D54: Sum | E54: =IF(E37=0,0,1) -> 1 | H54: 0 | I54: 0
H55: =IF($D55="","",SUM(F55:G55)) ->  | I55: =IF(AND(E55=0,D55<>""),"Rate Only",IF($D55="","",$E55*H55)) -> 
A56: 4 | B56: =AutoNumberingFormat(B54,A56) -> C2.B.3.b.13) | C56: =CONCATENATE("Any other items to complete installation of ",B42) -> Any other items to complete installation of C2.B.3.b)
H57: =IF($D57="","",SUM(F57:G57)) ->  | I57: =IF(AND(E57=0,D57<>""),"Rate Only",IF($D57="","",$E57*H57)) -> 
A58: 3 | B58: =AutoNumberingFormat(B56,A58) -> C2.B.3.c) | C58: Power Supplies | H58: =IF($D58="","",SUM(F58:G58)) ->  | I58: =IF(AND(E58=0,D58<>""),"Rate Only",IF($D58="","",$E58*H58)) -> 
B59: =AutoNumberingFormat(B58,A59) -> 
A60: 4 | B60: =AutoNumberingFormat(B58,A60) -> C2.B.3.c.1) | C60: Power Supply for Gate Cabinets
A61: 5 | B61: =AutoNumberingFormat(B60,A61) -> C2.B.3.c.1.a) | C61: Switchmode PSU for Processor (1 per cabinet) | D61: No | E61: =E43 -> 1 | H61: 0 | I61: 0
A62: 5 | B62: =AutoNumberingFormat(B61,A62) -> C2.B.3.c.1.b) | C62: Switchmode PSU for Modules (1 per cabinet) | D62: No | E62: =E61 -> 1 | H62: 0 | I62: 0
A63: 5 | B63: =AutoNumberingFormat(B62,A63) -> C2.B.3.c.1.c) | C63: Sundry installation material and labelling | D63: Sum | E63: =IF(E62=0,0,1) -> 1 | H63: 0 | I63: 0
A65: 5 | B65: =AutoNumberingFormat(B63,A65) -> C2.B.3.c.1.d) | C65: =CONCATENATE("Any other items to complete installation of ",B60) -> Any other items to complete installation of C2.B.3.c.1)
A67: 4 | B67: =AutoNumberingFormat(B65,A67) -> C2.B.3.c.2) | C67: Battery Backup for Vending Machine
A68: 5 | B68: =AutoNumberingFormat(B67,A68) -> C2.B.3.c.2.a) | C68: 30Ah Battery for Processor and Modules (1 per cabinet) | D68: No | E68: =E61 -> 1 | H68: 0 | I68: 0
A69: 5 | B69: =AutoNumberingFormat(B68,A69) -> C2.B.3.c.2.b) | C69: Charger (1 per Battery) | D69: No | E69: =E68 -> 1 | H69: 0 | I69: 0
A70: 5 | B70: =AutoNumberingFormat(B69,A70) -> C2.B.3.c.2.c) | C70: Sundry installation material and labelling | D70: Sum | E70: =IF(E69=0,0,1) -> 1 | H70: 0 | I70: 0
A72: 5 | B72: =AutoNumberingFormat(B70,A72) -> C2.B.3.c.2.d) | C72: =CONCATENATE("Any other items to complete installation of ",B67) -> Any other items to complete installation of C2.B.3.c.2)
A74: 4 | B74: =AutoNumberingFormat(B72,A74) -> C2.B.3.c.3) | C74: =CONCATENATE("Any other items to complete installation of ",B58) -> Any other items to complete installation of C2.B.3.c)
B75: =AutoNumberingFormat(B63,A75) -> 
A76: 3 | B76: =AutoNumberingFormat(B74,A76) -> C2.B.3.d) | C76: Lightning Protection Modules
B77: =AutoNumberingFormat(B76,A77) -> 
A78: 4 | B78: =AutoNumberingFormat(B76,A78) -> C2.B.3.d.1) | C78: Power Supply Protection
A79: 5 | B79: =AutoNumberingFormat(B78,A79) -> C2.B.3.d.1.a) | C79: Class 3 Pluggable Surge Protection Device - Single Pole (Live and Neutral) | D79: No | E79: =(E62+E61) -> 2 | H79: 0 | I79: 0
A80: 5 | B80: =AutoNumberingFormat(B79,A80) -> C2.B.3.d.1.b) | C80: Sundry surge protection installation material | D80: Sum | E80: =IF(E79=0,0,1) -> 1 | H80: 0 | I80: 0
A82: 5 | B82: =AutoNumberingFormat(B80,A82) -> C2.B.3.d.1.c) | C82: =CONCATENATE("Any other items to complete installation of ",B78) -> Any other items to complete installation of C2.B.3.d.1)
A84: 4 | B84: =AutoNumberingFormat(B82,A84) -> C2.B.3.d.2) | C84: =CONCATENATE("Any other items to complete installation of ",B76) -> Any other items to complete installation of C2.B.3.d) | H84: =IF($D84="","",SUM(F84:G84)) -> 
B85: =AutoNumberingFormat(B80,A85) -> 
A86: 3 | B86: =AutoNumberingFormat(B84,A86) -> C2.B.3.e) | C86: Cabling | H86: =IF($D86="","",SUM(F86:G86)) ->  | I86: =IF(AND(E86=0,D86<>""),"Rate Only",IF($D86="","",$E86*H86)) -> 
A88: 4 | B88: =AutoNumberingFormat(B86,A88) -> C2.B.3.e.1) | C88: Power Cabling
A89: 5 | B89: =AutoNumberingFormat(B88,A89) -> C2.B.3.e.1.a) | C89: 3-Core 4mm2 (12 AWG) Cabtyre Power Cable (25 m per AVM) | D89: m | E89: =E43 * 25 -> 25 | H89: 0 | I89: 0
A90: 5 | B90: =AutoNumberingFormat(B89,A90) -> C2.B.3.e.1.b) | C90: SANS 164-4 Dedicated Application (UPS/Flattened Earth) 16A 231V Power Plug (1 per Power Supply) | D90: No | E90: =E43 -> 1 | H90: 0 | I90: 0
A91: 5 | B91: =AutoNumberingFormat(B90,A91) -> C2.B.3.e.1.c) | C91: 5A Circuit Breakers (1 per AVM) | D91: No | E91: =E90 -> 1 | H91: 0 | I91: 0
A92: 5 | B92: =AutoNumberingFormat(B91,A92) -> C2.B.3.e.1.d) | C92: Sundry installation material | D92: Sum | E92: =IF(E91=0,0,1) -> 1 | H92: 0 | I92: 0
A94: 5 | B94: =AutoNumberingFormat(B92,A94) -> C2.B.3.e.1.e) | C94: =CONCATENATE("Any other items to complete installation of ",B88) -> Any other items to complete installation of C2.B.3.e.1)
A96: 4 | B96: =AutoNumberingFormat(B92,A96) -> C2.B.3.e.2) | C96: Copper Data Cabling
A97: 5 | B97: =AutoNumberingFormat(B96,A97) -> C2.B.3.e.2.a) | C97: CAT6 Unshielded Twisted Pair Ethernet Cabling (25m per AVM) to Reticulation Points | D97: m | E97: =E43 * 25 -> 25 | H97: 0 | I97: 0
A98: 5 | B98: =AutoNumberingFormat(B97,A98) -> C2.B.3.e.2.b) | C98: CAT6 Unshielded RJ45 Connector with Strain-Relief Boot (4 per AVM) | D98: No | E98: =E43 *4 -> 4 | H98: 0 | I98: 0
A99: 5 | B99: =AutoNumberingFormat(B98,A99) -> C2.B.3.e.2.c) | C99: Sundry installation material for crimping and reticulation | D99: Sum | E99: =IF(E98=0,0,1) -> 1 | H99: 0 | I99: 0
A101: 5 | B101: =AutoNumberingFormat(B99,A101) -> C2.B.3.e.2.d) | C101: =CONCATENATE("Any other items to complete installation of ",B96) -> Any other items to complete installation of C2.B.3.e.2)
A103: 4 | B103: =AutoNumberingFormat(B101,A103) -> C2.B.3.e.3) | C103: =CONCATENATE("Any other items to complete installation of ",B86) -> Any other items to complete installation of C2.B.3.e)
A105: 3 | B105: =AutoNumberingFormat(B99,A105) -> C2.B.3.f) | C105: =CONCATENATE("Any other items to complete installation of ",B32) -> Any other items to complete installation of C2.B.3)
A107: 2 | B107: =AutoNumberingFormat(B105,A107) -> C2.B.4) | C107: =CONCATENATE("Vending Machine Infrastructure (For the remaining Sections of type ",'Quantity Matrix'!A15,")") -> Vending Machine Infrastructure (For the remaining Sections of type Vending Machines - Cash Recycler)
A108: 3 | B108: =AutoNumberingFormat(B107,A108) -> C2.B.4.a) | C108: =CONCATENATE("Remaining sections with Vending MachineInfrastructure based on item Amount in ",B32) -> Remaining sections with Vending MachineInfrastructure based on item Amount in C2.B.3) | D108: No | E108: ='Quantity Matrix'!B15-1 -> 19 | F108: =SUMPRODUCT($E$32:$E$107,F32:F107) -> 0 | G108: =SUMPRODUCT($E$32:$E$107,G32:G107) -> 0 | H108: =IF($D108="","",SUM(F108:G108)) -> 0 | I108: =IF(AND(E108=0,D108<>""),"Rate Only",IF($D108="","",$E108*H108)) -> 0
H109: =IF($D109="","",SUM(F109:G109)) ->  | I109: =IF(AND(E109=0,D109<>""),"Rate Only",IF($D109="","",$E109*H109)) -> 
A110: 2 | B110: =AutoNumberingFormat(B108,A110) -> C2.B.5) | C110: =CONCATENATE("Vending Machine Infrastructure (For a Single Section of type ",'Quantity Matrix'!A16,")") -> Vending Machine Infrastructure (For a Single Section of type Vending Machines - Card 2 Card)
A112: 3 | B112: =AutoNumberingFormat(B110,A112) -> C2.B.5.a) | C112: Enclosure/Cabinet
A113: 4 | B113: =AutoNumberingFormat(B112,A113) -> C2.B.5.a.1) | C113: Three Compartment Enclosure (Processor, Recycler, and Safe in different lockable compartments) (Ruggedized, Powder Coated) | D113: No | E113: ='Quantity Matrix'!AA16 -> 0
A114: 4 | B114: C2.B.5.a.2) | C114: One Compartment Enclosure (Processor and Card Acceptance in same Compartment) (Ruggedized, Powder Coated) | D114: No | E114: ='Quantity Matrix'!AB16 -> 1
A115: 4 | B115: C2.B.5.a.3) | C115: Mounting Plate Complete with M10 x 70mm Anchor Bolts | D115: Sum | E115: =IF(SUM(E113:E114)>0,1,0) -> 1 | H115: =IF($D115="","",SUM(F115:G115)) -> 0 | I115: =IF(AND(E115=0,D115<>""),"Rate Only",IF($D115="","",$E115*H115)) -> 0
A116: 4 | B116: C2.B.5.a.4) | C116: Sundry installation materials | D116: Sum | E116: =IF(E115=0,0,1) -> 1 | H116: =IF($D116="","",SUM(F116:G116)) -> 0 | I116: =IF(AND(E116=0,D116<>""),"Rate Only",IF($D116="","",$E116*H116)) -> 0
H117: =IF($D117="","",SUM(F117:G117)) -> 
A118: 4 | B118: =AutoNumberingFormat(B116,A118) -> C2.B.5.a.5) | C118: =CONCATENATE("Any other items to complete installation of ",B112) -> Any other items to complete installation of C2.B.5.a) | H118: =IF($D118="","",SUM(F118:G118)) ->  | I118: =IF(AND(E118=0,D118<>""),"Rate Only",IF($D118="","",$E118*H118)) -> 
A120: 3 | B120: =AutoNumberingFormat(B118,A120) -> C2.B.5.b) | C120: Vending Machine Modules | H120: =IF($D120="","",SUM(F120:G120)) ->  | I120: =IF(AND(E120=0,D120<>""),"Rate Only",IF($D120="","",$E120*H120)) -> 
A121: 4 | B121: =AutoNumberingFormat(B120,A121) -> C2.B.5.b.1) | C121: Automated Vending Machine Processor | D121: No | E121: =IF(SUM(E123:E131)>0,1,0) -> 1 | H121: 0 | I121: 0
A122: 4 | B122: C2.B.5.b.2) | C122: Automated Vending Machine User Interface | D122: No | E122: =IF(SUM(E123:E132)>0,1,0) -> 1 | H122: 0 | I122: 0
A123: 4 | B123: C2.B.5.b.3) | C123: Automated Vending Machine Touch Screen Interface | D123: No | E123: ='Quantity Matrix'!T16 -> 1 | H123: 0 | I123: 0
A124: 4 | B124: C2.B.5.b.4) | C124: Coin Handling and Verification Module | D124: No | E124: ='Quantity Matrix'!U16 -> 0 | H124: 0 | I124: Rate Only
A125: 4 | B125: C2.B.5.b.5) | C125: Coin Recycling Module (Providing Change) | D125: No | E125: ='Quantity Matrix'!V16 -> 0 | H125: 0 | I125: Rate Only
A126: 4 | B126: C2.B.5.b.6) | C126: Note Handling and Verification Module | D126: No | E126: ='Quantity Matrix'!W16 -> 0 | H126: 0 | I126: Rate Only
A127: 4 | B127: C2.B.5.b.7) | C127: Note Recycling Module (Providing Change) | D127: No | E127: ='Quantity Matrix'!X16 -> 0 | H127: 0 | I127: Rate Only
A128: 4 | B128: C2.B.5.b.8) | C128: NDoT Regulation Compliant EMV Smart Card Issuance Module (complete with Hopper and Encoder) | D128: No | E128: ='Quantity Matrix'!Q16 -> 0 | H128: 0 | I128: Rate Only
A129: 4 | B129: C2.B.5.b.9) | C129: NDoT Regulation Compliant EMV Smart Card Acceptance Module | D129: No | E129: ='Quantity Matrix'!P16 -> 2 | H129: 0 | I129: 0
A130: 4 | B130: C2.B.5.b.10) | C130: Mifare Ultralight Issuance Module (complete with Hopper and Encoder) | D130: No | E130: ='Quantity Matrix'!R16 -> 0 | H130: 0 | I130: Rate Only
A131: 4 | B131: C2.B.5.b.11) | C131: PCI-PED Compliant Keypad and Display | D131: No | E131: ='Quantity Matrix'!Y16 -> 1 | H131: 0 | I131: 0
A132: 4 | B132: C2.B.5.b.12) | C132: Sundry installation materials | D132: Sum | E132: =IF(E121=0,0,1) -> 1 | H132: 0 | I132: 0
H133: =IF($D133="","",SUM(F133:G133)) ->  | I133: =IF(AND(E133=0,D133<>""),"Rate Only",IF($D133="","",$E133*H133)) -> 
A134: 4 | B134: =AutoNumberingFormat(B132,A134) -> C2.B.5.b.13) | C134: =CONCATENATE("Any other items to complete installation of ",B120) -> Any other items to complete installation of C2.B.5.b)
H135: =IF($D135="","",SUM(F135:G135)) ->  | I135: =IF(AND(E135=0,D135<>""),"Rate Only",IF($D135="","",$E135*H135)) -> 
A136: 3 | B136: =AutoNumberingFormat(B134,A136) -> C2.B.5.c) | C136: Power Supplies | H136: =IF($D136="","",SUM(F136:G136)) ->  | I136: =IF(AND(E136=0,D136<>""),"Rate Only",IF($D136="","",$E136*H136)) -> 
B137: =AutoNumberingFormat(B136,A137) -> 
A138: 4 | B138: =AutoNumberingFormat(B136,A138) -> C2.B.5.c.1) | C138: Power Supply for Gate Cabinets
A139: 5 | B139: =AutoNumberingFormat(B138,A139) -> C2.B.5.c.1.a) | C139: Switchmode PSU for Processor (1 per cabinet) | D139: No | E139: =E121 -> 1 | H139: 0 | I139: 0
A140: 5 | B140: =AutoNumberingFormat(B139,A140) -> C2.B.5.c.1.b) | C140: Switchmode PSU for Modules (1 per cabinet) | D140: No | E140: =E139 -> 1 | H140: 0 | I140: 0
A141: 5 | B141: =AutoNumberingFormat(B140,A141) -> C2.B.5.c.1.c) | C141: Sundry installation material and labelling | D141: Sum | E141: =IF(E140=0,0,1) -> 1 | H141: 0 | I141: 0
A143: 5 | B143: =AutoNumberingFormat(B141,A143) -> C2.B.5.c.1.d) | C143: =CONCATENATE("Any other items to complete installation of ",B138) -> Any other items to complete installation of C2.B.5.c.1)
A145: 4 | B145: =AutoNumberingFormat(B143,A145) -> C2.B.5.c.2) | C145: Battery Backup for Vending Machine
A146: 5 | B146: =AutoNumberingFormat(B145,A146) -> C2.B.5.c.2.a) | C146: 30Ah Battery for Processor and Modules (1 per cabinet) | D146: No | E146: =E139 -> 1 | H146: 0 | I146: 0
A147: 5 | B147: =AutoNumberingFormat(B146,A147) -> C2.B.5.c.2.b) | C147: Charger (1 per Battery) | D147: No | E147: =E146 -> 1 | H147: 0 | I147: 0
A148: 5 | B148: =AutoNumberingFormat(B147,A148) -> C2.B.5.c.2.c) | C148: Sundry installation material and labelling | D148: Sum | E148: =IF(E147=0,0,1) -> 1 | H148: 0 | I148: 0
A150: 5 | B150: =AutoNumberingFormat(B148,A150) -> C2.B.5.c.2.d) | C150: =CONCATENATE("Any other items to complete installation of ",B145) -> Any other items to complete installation of C2.B.5.c.2)
A152: 4 | B152: =AutoNumberingFormat(B150,A152) -> C2.B.5.c.3) | C152: =CONCATENATE("Any other items to complete installation of ",B136) -> Any other items to complete installation of C2.B.5.c)
B153: =AutoNumberingFormat(B141,A153) -> 
A154: 3 | B154: =AutoNumberingFormat(B152,A154) -> C2.B.5.d) | C154: Lightning Protection Modules
B155: =AutoNumberingFormat(B154,A155) -> 
A156: 4 | B156: =AutoNumberingFormat(B154,A156) -> C2.B.5.d.1) | C156: Power Supply Protection
A157: 5 | B157: =AutoNumberingFormat(B156,A157) -> C2.B.5.d.1.a) | C157: Class 3 Pluggable Surge Protection Device - Single Pole (Live and Neutral) | D157: No | E157: =(E140+E139) -> 2 | H157: 0 | I157: 0
A158: 5 | B158: =AutoNumberingFormat(B157,A158) -> C2.B.5.d.1.b) | C158: Sundry surge protection installation material | D158: Sum | E158: =IF(E157=0,0,1) -> 1 | H158: 0 | I158: 0
A160: 5 | B160: =AutoNumberingFormat(B158,A160) -> C2.B.5.d.1.c) | C160: =CONCATENATE("Any other items to complete installation of ",B156) -> Any other items to complete installation of C2.B.5.d.1)
A162: 4 | B162: =AutoNumberingFormat(B160,A162) -> C2.B.5.d.2) | C162: =CONCATENATE("Any other items to complete installation of ",B154) -> Any other items to complete installation of C2.B.5.d) | H162: =IF($D162="","",SUM(F162:G162)) -> 
B163: =AutoNumberingFormat(B158,A163) -> 
A164: 3 | B164: =AutoNumberingFormat(B162,A164) -> C2.B.5.e) | C164: Cabling | H164: =IF($D164="","",SUM(F164:G164)) ->  | I164: =IF(AND(E164=0,D164<>""),"Rate Only",IF($D164="","",$E164*H164)) -> 
A166: 4 | B166: =AutoNumberingFormat(B164,A166) -> C2.B.5.e.1) | C166: Power Cabling
A167: 5 | B167: =AutoNumberingFormat(B166,A167) -> C2.B.5.e.1.a) | C167: 3-Core 4mm2 (12 AWG) Cabtyre Power Cable (25 m per AVM) | D167: m | E167: =E121 * 25 -> 25 | H167: 0 | I167: 0
A168: 5 | B168: =AutoNumberingFormat(B167,A168) -> C2.B.5.e.1.b) | C168: SANS 164-4 Dedicated Application (UPS/Flattened Earth) 16A 231V Power Plug (1 per Power Supply) | D168: No | E168: =E121 -> 1 | H168: 0 | I168: 0
A169: 5 | B169: =AutoNumberingFormat(B168,A169) -> C2.B.5.e.1.c) | C169: 5A Circuit Breakers (1 per AVM) | D169: No | E169: =E168 -> 1 | H169: 0 | I169: 0
A170: 5 | B170: =AutoNumberingFormat(B169,A170) -> C2.B.5.e.1.d) | C170: Sundry installation material | D170: Sum | E170: =IF(E169=0,0,1) -> 1 | H170: 0 | I170: 0
A172: 5 | B172: =AutoNumberingFormat(B170,A172) -> C2.B.5.e.1.e) | C172: =CONCATENATE("Any other items to complete installation of ",B166) -> Any other items to complete installation of C2.B.5.e.1)
A174: 4 | B174: =AutoNumberingFormat(B170,A174) -> C2.B.5.e.2) | C174: Copper Data Cabling
A175: 5 | B175: =AutoNumberingFormat(B174,A175) -> C2.B.5.e.2.a) | C175: CAT6 Unshielded Twisted Pair Ethernet Cabling (25m per AVM) to Reticulation Points | D175: m | E175: =E121 * 25 -> 25 | H175: 0 | I175: 0
A176: 5 | B176: =AutoNumberingFormat(B175,A176) -> C2.B.5.e.2.b) | C176: CAT6 Unshielded RJ45 Connector with Strain-Relief Boot (4 per AVM) | D176: No | E176: =E121 *4 -> 4 | H176: 0 | I176: 0
A177: 5 | B177: =AutoNumberingFormat(B176,A177) -> C2.B.5.e.2.c) | C177: Sundry installation material for crimping and reticulation | D177: Sum | E177: =IF(E176=0,0,1) -> 1 | H177: 0 | I177: 0
A179: 5 | B179: =AutoNumberingFormat(B177,A179) -> C2.B.5.e.2.d) | C179: =CONCATENATE("Any other items to complete installation of ",B174) -> Any other items to complete installation of C2.B.5.e.2)
A181: 4 | B181: =AutoNumberingFormat(B179,A181) -> C2.B.5.e.3) | C181: =CONCATENATE("Any other items to complete installation of ",B164) -> Any other items to complete installation of C2.B.5.e)
A183: 3 | B183: =AutoNumberingFormat(B177,A183) -> C2.B.5.f) | C183: =CONCATENATE("Any other items to complete installation of ",B110) -> Any other items to complete installation of C2.B.5)
A185: 2 | B185: =AutoNumberingFormat(B183,A185) -> C2.B.6) | C185: =CONCATENATE("Vending Machine Infrastructure (For the remaining Sections of type ",'Quantity Matrix'!A16,")") -> Vending Machine Infrastructure (For the remaining Sections of type Vending Machines - Card 2 Card)
A186: 3 | B186: =AutoNumberingFormat(B185,A186) -> C2.B.6.a) | C186: =CONCATENATE("Remaining sections with Vending MachineInfrastructure based on item Amount in ",B110) -> Remaining sections with Vending MachineInfrastructure based on item Amount in C2.B.5) | D186: No | E186: ='Quantity Matrix'!B16-1 -> 29 | F186: =SUMPRODUCT($E$110:$E$185,F110:F185) -> 0 | G186: =SUMPRODUCT($E$110:$E$185,G110:G185) -> 0 | H186: =IF($D186="","",SUM(F186:G186)) -> 0 | I186: =IF(AND(E186=0,D186<>""),"Rate Only",IF($D186="","",$E186*H186)) -> 0
H187: =IF($D187="","",SUM(F187:G187)) ->  | I187: =IF(AND(E187=0,D187<>""),"Rate Only",IF($D187="","",$E187*H187)) -> 
A188: 2 | B188: =AutoNumberingFormat(B186,A188) -> C2.B.7) | C188: Commissioning and Documentation | H188: =IF($D188="","",SUM(F188:G188)) ->  | I188: =IF(AND(E188=0,D188<>""),"Rate Only",IF($D188="","",$E188*H188)) -> 
B189: =AutoNumberingFormat(B188,A189) -> 
A190: 3 | B190: =AutoNumberingFormat(B188,A190) -> C2.B.7.a) | C190: Testing & Commissioning
A191: 4 | B191: =AutoNumberingFormat(B190,A191) -> C2.B.7.a.1) | C191: Contractor’s Component Testing (labour and special test requirements) | D191: Sum | E191: 1 | H191: 0 | I191: 0
A192: 4 | B192: C2.B.7.a.2) | C192: Conduct FATs under Engineer's Supervision | D192: Sum | E192: =IF(E191=0,0,1) -> 1 | H192: 0 | I192: 0
A193: 4 | B193: C2.B.7.a.3) | C193: Conduct IFATs under Engineer's Supervision | D193: Sum | E193: =IF(E192=0,0,1) -> 1 | H193: 0 | I193: 0
A194: 4 | B194: C2.B.7.a.4) | C194: Conduct SATs under Engineer’s Supervision | D194: Sum | E194: =IF(E192=0,0,1) -> 1 | H194: =IF($D194="","",SUM(F194:G194)) -> 0 | I194: 0
A195: 4 | B195: C2.B.7.a.5) | C195: Conduct ISATs under Engineer’s Supervision | D195: Sum | E195: =IF(E193=0,0,1) -> 1 | H195: 0 | I195: 0
A196: 4 | B196: C2.B.7.a.6) | C196: Execute 30-day Trial Period | D196: Sum | E196: =IF(E194=0,0,1) -> 1 | H196: 0 | I196: =IF(AND(E196=0,D196<>""),"Rate Only",IF($D196="","",$E196*H196)) -> 0
A198: 4 | B198: =AutoNumberingFormat(B196,A198) -> C2.B.7.a.7) | C198: =CONCATENATE("Any other items to complete installation of ",B190) -> Any other items to complete installation of C2.B.7.a)
B199: =AutoNumberingFormat(B196,A199) -> 
A200: 3 | B200: =AutoNumberingFormat(B196,A200) -> C2.B.7.b) | C200: Documentation
A201: 4 | B201: =AutoNumberingFormat(B200,A201) -> C2.B.7.b.1) | C201: Design | D201: % | E201: =SUM(I13:I198) -> 0 | F201: 0.01 | H201: =IF($D201="","",SUM(F201:G201)) -> 0.01 | I201: =IF(AND(E201=0,D201<>""),"Rate Only",IF($D201="","",$E201*H201)) -> Rate Only
A202: 4 | B202: C2.B.7.b.2) | C202: FAT and IFAT Test Plan and Methods | D202: % | E202: =E201 -> 0 | F202: 0.0075 | H202: 0.0075 | I202: Rate Only
A203: 4 | B203: C2.B.7.b.3) | C203: SAT and ISAT Test Plan and Methods | D203: % | E203: 0 | F203: 0.0075 | H203: =IF($D203="","",SUM(F203:G203)) -> 0.0075 | I203: =IF(AND(E203=0,D203<>""),"Rate Only",IF($D203="","",$E203*H203)) -> Rate Only
A204: 4 | B204: C2.B.7.b.4) | C204: As-Built | D204: % | E204: 0 | F204: 0.0075 | H204: 0.0075 | I204: Rate Only
A205: 4 | B205: C2.B.7.b.5) | C205: Operations | D205: % | E205: 0 | F205: 0.0025 | H205: 0.0025 | I205: Rate Only
A206: 4 | B206: C2.B.7.b.6) | C206: Maintenance | D206: % | E206: 0 | F206: 0.0025 | H206: 0.0025 | I206: Rate Only
A207: 4 | B207: C2.B.7.b.7) | C207: Training Manuals | D207: % | E207: 0 | F207: 0.0025 | H207: 0.0025 | I207: Rate Only
H208: =IF($D208="","",SUM(F208:G208)) ->  | I208: =IF(AND(E208=0,D208<>""),"Rate Only",IF($D208="","",$E208*H208)) -> 
A209: 4 | B209: =AutoNumberingFormat(B207,A209) -> C2.B.7.b.8) | C209: =CONCATENATE("Any other items to complete installation of ",B200) -> Any other items to complete installation of C2.B.7.b)
A211: 3 | B211: =AutoNumberingFormat(B207,A211) -> C2.B.7.c) | C211: PED Certification
A212: 4 | B212: =AutoNumberingFormat(B211,A212) -> C2.B.7.c.1) | C212: Obtain and Provide PIN Entry Devices Certification | D212: Sum | E212: =IF(E204=0,0,1) -> 0 | H212: 0 | I212: Rate Only
A213: 4 | B213: =AutoNumberingFormat(B212,A213) -> C2.B.7.c.2) | C213: Revisions as required | D213: Sum | E213: =IF(E212=0,0,1) -> 0 | H213: 0 | I213: Rate Only
A215: 4 | B215: =AutoNumberingFormat(B213,A215) -> C2.B.7.c.3) | C215: =CONCATENATE("Any other items to complete installation of ",B211) -> Any other items to complete installation of C2.B.7.c)
A217: 3 | B217: =AutoNumberingFormat(B213,A217) -> C2.B.7.d) | C217: NDoT Certification
A218: 4 | B218: =AutoNumberingFormat(B217,A218) -> C2.B.7.d.1) | C218: Obtain and Provide NDoT AFC Data Structure Certification | D218: Sum | E218: =IF(E213=0,0,1) -> 0 | H218: 0 | I218: Rate Only
A219: 4 | B219: =AutoNumberingFormat(B218,A219) -> C2.B.7.d.2) | C219: Revisions as required | D219: Sum | E219: =IF(E218=0,0,1) -> 0 | H219: 0 | I219: Rate Only
H220: =IF($D220="","",SUM(F220:G220)) ->  | I220: =IF(AND(E220=0,D220<>""),"Rate Only",IF($D220="","",$E220*H220)) -> 
A221: 4 | B221: =AutoNumberingFormat(B219,A221) -> C2.B.7.d.3) | C221: =CONCATENATE("Any other items to complete installation of ",B217) -> Any other items to complete installation of C2.B.7.d)
A223: 3 | B223: =AutoNumberingFormat(B221,A223) -> C2.B.7.e) | C223: =CONCATENATE("Any other items to complete installation of ",B188) -> Any other items to complete installation of C2.B.7)
A225: 2 | B225: =AutoNumberingFormat(B219,A225) -> C2.B.8) | C225: Any other items as may be necessary to complete the installation. | D225: Sum | E225: 1 | H225: 0 | I225: 0
C226: Detail items below:
C227: ………………………………………………… | H227: =IF($D227="","",SUM(F227:G227)) ->  | I227: =IF(AND(E227=0,D227<>""),"Rate Only",IF($D227="","",$E227*H227)) -> 
C228: ………………………………………………… | H228: =IF($D228="","",SUM(F228:G228)) ->  | I228: =IF(AND(E228=0,D228<>""),"Rate Only",IF($D228="","",$E228*H228)) -> 
C229: ………………………………………………… | H229: =IF($D229="","",SUM(F229:G229)) ->  | I229: =IF(AND(E229=0,D229<>""),"Rate Only",IF($D229="","",$E229*H229)) -> 
C230: ………………………………………………… | H230: =IF($D230="","",SUM(F230:G230)) ->  | I230: =IF(AND(E230=0,D230<>""),"Rate Only",IF($D230="","",$E230*H230)) -> 
C233: =CONCATENATE(C13," TOTAL (Excluding VAT) CARRIED FORWARD TO SUMMARY)") -> D&B PERIOD: FARE MEDIA TOTAL (Excluding VAT) CARRIED FORWARD TO SUMMARY) | I233: =SUM(I13:I230) -> 0

Sheet FAC
B1: ='P''s & G''s'!B1:H1 -> CITY OF JOHANNESBURG
B2: ='P''s & G''s'!B2:H2 -> CONTRACT NO. JDA-WP 15K-01
B4: ='P''s & G''s'!B4:H4 -> THE DESIGN, BUILD, AND MAINTENANCE OF AN
B5: ='P''s & G''s'!B5:H5 -> AUTOMATED FARE COLLECTION SYSTEM
B6: ='P''s & G''s'!B6:H6 -> FOR REA VAYA AND METROBUS FOR A 8 YEAR PERIOD
B7: ='P''s & G''s'!B7:H7 -> 
B8: ="SCHEDULE - " & SUBSTITUTE(B13,")","") & " - " & C13 -> SCHEDULE - C2.C - D&B PERIOD: FARE/FEE ACCESS CONTROL SYSTEM
B10: ITEM | C10: DESCRIPTION OF ITEM | D10: UNIT | E10: QUANTITY | F10: SUPPLY | G10: INSTALL | H10: RATE | I10: AMOUNT
C12: The rates to be filled in hereunder must make provision for all specified equipment, associated materials, integration, and systems in order to execute the complete works as specified. | J12: =FindDuplicates(B13:B1195) -> Numbering is okay
A13: 1 | B13: =SUMMARY!B14 -> C2.C) | C13: =SUMMARY!C14 -> D&B PERIOD: FARE/FEE ACCESS CONTROL SYSTEM
A15: 2 | B15: =AutoNumberingFormat(B13,A15) -> C2.C.1) | C15: =CONCATENATE("Fare Access Control Infrastructure (For a Single Section of type ",'Quantity Matrix'!A6,")") -> Fare Access Control Infrastructure (For a Single Section of type Station Type A (One Platform, One Entrance, 5m, CVM))
H16: =IF($D16="","",SUM(F16:G16)) ->  | I16: =IF($D16="","",$E16*H16) -> 
A17: 3 | B17: =AutoNumberingFormat(B15,A17) -> C2.C.1.a) | C17: Fare Access Control Gates | H17: =IF($D17="","",SUM(F17:G17)) ->  | I17: =IF($D17="","",$E17*H17) -> 
A19: 4 | B19: =AutoNumberingFormat(B17,A19) -> C2.C.1.a.1) | C19: Cabinets
A20: 5 | B20: =AutoNumberingFormat(B19,A20) -> C2.C.1.a.1.a) | C20: Standard Single Sided Gate Cabinet (with Internal DIN-rail mounts) | D20: No | E20: ='Quantity Matrix'!J6 -> 1 | H20: =IF($D20="","",SUM(F20:G20)) -> 0 | I20: =IF(AND(E20=0,D20<>""),"Rate Only",IF($D20="","",$E20*H20)) -> 0
A21: 5 | B21: C2.C.1.a.1.b) | C21: Standard Dual Sided Gate Cabinet (with Internal DIN-rail mounts) | D21: No | E21: ='Quantity Matrix'!K6 -> 2 | H21: 0 | I21: 0
A22: 5 | B22: C2.C.1.a.1.c) | C22: Universal Single Sided Gate Cabinet (with Internal DIN-rail mounts) | D22: No | E22: ='Quantity Matrix'!L6 -> 1 | H22: 0 | I22: 0
A23: 5 | B23: C2.C.1.a.1.d) | C23: Universal Dual Sided Gate Cabinet (with Internal DIN-rail mounts) | D23: No | E23: ='Quantity Matrix'!M6 -> 1 | H23: 0 | I23: 0
A24: 5 | B24: C2.C.1.a.1.e) | C24: Mounting Brackets with M10 x 70mm Anchor Bolts (1 set per Cabinet) | D24: No | E24: =SUM(E20:E23) -> 5 | H24: 0 | I24: 0
A25: 5 | B25: C2.C.1.a.1.f) | C25: Concrete Plinth for Levelling (1 per cabinet) matching colour to the surrounding tiles | D25: No | E25: =SUM(E20:E23) -> 5 | H25: 0 | I25: 0
A26: 5 | B26: C2.C.1.a.1.g) | C26: Sundry installation material | D26: Sum | E26: =IF(E25=0,0,1) -> 1 | H26: 0 | I26: 0
A28: 5 | B28: =AutoNumberingFormat(B26,A28) -> C2.C.1.a.1.h) | C28: =CONCATENATE("Any other items to complete installation of ",B19) -> Any other items to complete installation of C2.C.1.a.1)
A30: 4 | B30: =AutoNumberingFormat(B28,A30) -> C2.C.1.a.2) | C30: Motors | I30: =IF(AND(E30=0,D30<>""),"Rate Only",IF($D30="","",$E30*H30)) -> 
A31: 5 | B31: =AutoNumberingFormat(B30,A31) -> C2.C.1.a.2.a) | C31: Standard Gate Cabinet Motor (1 per Single Sided, 2 per Dual Sided) | D31: No | E31: =E47 -> 6 | H31: 0 | I31: 0
A32: 5 | B32: C2.C.1.a.2.b) | C32: Universal Gate Cabinet Motor (1 per Single Sided, 2 per Dual Sided) | D32: No | E32: =E48 -> 2 | H32: 0 | I32: 0
A33: 5 | B33: C2.C.1.a.2.c) | C33: Sundry installation material | D33: Sum | E33: =IF(E61=0,0,1) -> 1 | H33: 0 | I33: 0
A35: 5 | B35: =AutoNumberingFormat(B33,A35) -> C2.C.1.a.2.d) | C35: =CONCATENATE("Any other items to complete installation of ",B30) -> Any other items to complete installation of C2.C.1.a.2)
A37: 4 | B37: =AutoNumberingFormat(B35,A37) -> C2.C.1.a.3) | C37: Gate Cabinet Processor
A38: 5 | B38: =AutoNumberingFormat(B37,A38) -> C2.C.1.a.3.a) | C38: Gate Cabinet Processor (1 per cabinet) | D38: No | E38: =SUM(E20:E23) -> 5 | H38: 0 | I38: =IF(AND(E38=0,D38<>""),"Rate Only",IF($D38="","",$E38*H38)) -> 0
A39: 5 | B39: =AutoNumberingFormat(B38,A39) -> C2.C.1.a.3.b) | C39: Discrete Override Button (1 per lane, and an extra one for emergency per station) | D39: No | E39: =IF(E38=0,0,(SUM(E47:E48)/2)+1) -> 5 | H39: 0 | I39: 0
A40: 5 | B40: =AutoNumberingFormat(B39,A40) -> C2.C.1.a.3.c) | C40: Lane Safety and Tailgating Matrix Sensors (24 per lane) | D40: No | E40: =(SUM(E47:E48)/2)*24 -> 96 | H40: 0 | I40: 0
A41: 5 | B41: =AutoNumberingFormat(B40,A41) -> C2.C.1.a.3.d) | C41: Lane Usage Display (2 per lane) | D41: No | E41: =(SUM(E48:E49)/2)*2 -> 7 | H41: 0 | I41: 0
A42: 5 | B42: =AutoNumberingFormat(B41,A42) -> C2.C.1.a.3.e) | C42: Sundry installation material | D42: Sum | E42: =IF(E41=0,0,1) -> 1 | H42: 0 | I42: 0
A44: 5 | B44: =AutoNumberingFormat(B42,A44) -> C2.C.1.a.3.f) | C44: =CONCATENATE("Any other items to complete installation of ",B37) -> Any other items to complete installation of C2.C.1.a.3)
A46: 4 | B46: =AutoNumberingFormat(B44,A46) -> C2.C.1.a.4) | C46: Glass Barriers | H46: =IF($D46="","",SUM(F46:G46)) ->  | I46: =IF(AND(E46=0,D46<>""),"Rate Only",IF($D46="","",$E46*H46)) -> 
A47: 5 | B47: =AutoNumberingFormat(B46,A47) -> C2.C.1.a.4.a) | C47: Standard Wide Glass Barriers (2 per Lane) | D47: No | E47: =E20+(E21*2)+E20 -> 6 | H47: 0 | I47: 0
A48: 5 | B48: C2.C.1.a.4.b) | C48: Universal Wide Glass Barriers (2 per Lane) | D48: No | E48: =IF(AND(E22=0,E23=0),0,(E23*2)+E22-E20) -> 2 | H48: 0 | I48: 0
A49: 5 | B49: C2.C.1.a.4.c) | C49: Lane Glass Barriers (1 per cabinet) | D49: No | E49: =SUM(E20:E23) -> 5 | H49: 0 | I49: 0
A50: 5 | B50: C2.C.1.a.4.d) | C50: Stainless Steel Balustrade with Glass Inlays from Cabinet to Wall (4m per Station) | D50: m | E50: =E20*4 -> 4 | H50: 0 | I50: 0
A51: 5 | B51: C2.C.1.a.4.e) | C51: Sandblasting branding Allowance for Glass Barriers (1 per Glass Barrier) | D51: No | E51: =SUM(E47:E49) -> 13 | H51: 0 | I51: 0
A52: 5 | B52: C2.C.1.a.4.f) | C52: Sundry installation material | D52: Sum | E52: =IF(E51=0,0,1) -> 1 | H52: 0 | I52: 0
A54: 5 | B54: =AutoNumberingFormat(B52,A54) -> C2.C.1.a.4.g) | C54: =CONCATENATE("Any other items to complete installation of ",B46) -> Any other items to complete installation of C2.C.1.a.4)
A56: 4 | B56: =AutoNumberingFormat(B54,A56) -> C2.C.1.a.5) | C56: =CONCATENATE("Any other items to complete installation of ",B17) -> Any other items to complete installation of C2.C.1.a)
A58: 4 | B58: =AutoNumberingFormat(B56,A58) -> C2.C.1.a.6) | C58: Power Supplies
B59: =AutoNumberingFormat(B58,A59) -> 
A60: 5 | B60: =AutoNumberingFormat(B58,A60) -> C2.C.1.a.6.a) | C60: Power Supply for Gate Cabinets
A61: 6 | B61: =AutoNumberingFormat(B60,A61) -> C2.C.1.a.6.a.1) | C61: Switchmode PSU for Motors (1 per cabinet) | D61: No | E61: =SUM(E20:E23)*1 -> 5 | H61: 0 | I61: 0
A62: 6 | B62: =AutoNumberingFormat(B61,A62) -> C2.C.1.a.6.a.2) | C62: Switchmode PSU for Gate Cabinet Processor (1 per cabinet) | D62: No | E62: =E61 -> 5 | H62: 0 | I62: 0
A63: 6 | B63: =AutoNumberingFormat(B62,A63) -> C2.C.1.a.6.a.3) | C63: Sundry installation material and labelling | D63: Sum | E63: =IF(E62=0,0,1) -> 1 | H63: 0 | I63: 0
A65: 6 | B65: =AutoNumberingFormat(B63,A65) -> C2.C.1.a.6.a.4) | C65: =CONCATENATE("Any other items to complete installation of ",B60) -> Any other items to complete installation of C2.C.1.a.6.a)
A67: 5 | B67: =AutoNumberingFormat(B65,A67) -> C2.C.1.a.6.b) | C67: Battery Backup for Readers and Processor
A68: 6 | B68: =AutoNumberingFormat(B67,A68) -> C2.C.1.a.6.b.1) | C68: 12Ah Battery for Reader and Processor (1 per cabinet) (Not for use with motors) | D68: No | E68: =E61 -> 5 | H68: 0 | I68: 0
A69: 6 | B69: =AutoNumberingFormat(B68,A69) -> C2.C.1.a.6.b.2) | C69: Charger (1 per Battery) | D69: No | E69: =E68 -> 5 | H69: 0 | I69: 0
A70: 6 | B70: =AutoNumberingFormat(B69,A70) -> C2.C.1.a.6.b.3) | C70: Sundry installation material and labelling | D70: Sum | E70: =IF(E69=0,0,1) -> 1 | H70: 0 | I70: 0
A72: 6 | B72: =AutoNumberingFormat(B70,A72) -> C2.C.1.a.6.b.4) | C72: =CONCATENATE("Any other items to complete installation of ",B67) -> Any other items to complete installation of C2.C.1.a.6.b)
A74: 5 | B74: =AutoNumberingFormat(B72,A74) -> C2.C.1.a.6.c) | C74: =CONCATENATE("Any other items to complete installation of ",B58) -> Any other items to complete installation of C2.C.1.a.6)
B75: =AutoNumberingFormat(B63,A75) -> 
A76: 4 | B76: =AutoNumberingFormat(B74,A76) -> C2.C.1.a.7) | C76: Lightning Protection Modules
B77: =AutoNumberingFormat(B76,A77) -> 
A78: 5 | B78: =AutoNumberingFormat(B76,A78) -> C2.C.1.a.7.a) | C78: Power Supply Protection
A79: 6 | B79: =AutoNumberingFormat(B78,A79) -> C2.C.1.a.7.a.1) | C79: Class 3 Pluggable Surge Protection Device - Single Pole (Live and Neutral) | D79: No | E79: =(E62+E61) -> 10 | H79: 0 | I79: 0
A80: 6 | B80: =AutoNumberingFormat(B79,A80) -> C2.C.1.a.7.a.2) | C80: Sundry surge protection installation material | D80: Sum | E80: =IF(E79=0,0,1) -> 1 | H80: 0 | I80: =IF(AND(E80=0,D80<>""),"Rate Only",IF($D80="","",$E80*H80)) -> 0
A82: 6 | B82: =AutoNumberingFormat(B80,A82) -> C2.C.1.a.7.a.3) | C82: =CONCATENATE("Any other items to complete installation of ",B78) -> Any other items to complete installation of C2.C.1.a.7.a)
A84: 5 | B84: =AutoNumberingFormat(B82,A84) -> C2.C.1.a.7.b) | C84: =CONCATENATE("Any other items to complete installation of ",B76) -> Any other items to complete installation of C2.C.1.a.7) | H84: =IF($D84="","",SUM(F84:G84)) -> 
B85: =AutoNumberingFormat(B80,A85) -> 
A86: 4 | B86: =AutoNumberingFormat(B84,A86) -> C2.C.1.a.8) | C86: Cabling
A88: 5 | B88: =AutoNumberingFormat(B86,A88) -> C2.C.1.a.8.a) | C88: Power Cabling
A89: 6 | B89: =AutoNumberingFormat(B88,A89) -> C2.C.1.a.8.a.1) | C89: 3-Core 4mm2 (12 AWG) Cabtyre Power Cable (50 m per Platform) | D89: m | E89: =E20 * 50 -> 50 | H89: 0 | I89: 0
A90: 6 | B90: =AutoNumberingFormat(B89,A90) -> C2.C.1.a.8.a.2) | C90: 5A Circuit Breakers (1 per Cabinet) | D90: No | E90: =E38 -> 5 | H90: 0 | I90: 0
A91: 6 | B91: =AutoNumberingFormat(B90,A91) -> C2.C.1.a.8.a.3) | C91: Sundry installation material | D91: Sum | E91: =IF(E90=0,0,1) -> 1 | H91: 0 | I91: 0
A93: 6 | B93: =AutoNumberingFormat(B91,A93) -> C2.C.1.a.8.a.4) | C93: =CONCATENATE("Any other items to complete installation of ",B88) -> Any other items to complete installation of C2.C.1.a.8.a)
A95: 5 | B95: =AutoNumberingFormat(B93,A95) -> C2.C.1.a.8.b) | C95: Copper Signal Cabling
A96: 6 | B96: =AutoNumberingFormat(B95,A96) -> C2.C.1.a.8.b.1) | C96: 12-Core 1mm2 Biaxial-oriented Polyethylene Terephthalate (Mylar or equivalent) Screened Signal Cable (8 m per Lane) | D96: m | E96: =(SUM(E47:E48)/2) * 8 -> 32 | H96: 0 | I96: 0
A97: 6 | B97: =AutoNumberingFormat(B96,A97) -> C2.C.1.a.8.b.2) | C97: Crimped-On Connecting Terminators (4 per Core Per Each Lane) | D97: No | E97: =(SUM(E47:E48)/2) *4*12 -> 192 | H97: 0 | I97: 0
A98: 6 | B98: =AutoNumberingFormat(B97,A98) -> C2.C.1.a.8.b.3) | C98: Sundry installation material for crimping and reticulation | D98: Sum | E98: =IF(E97=0,0,1) -> 1 | H98: 0 | I98: 0
A100: 6 | B100: =AutoNumberingFormat(B98,A100) -> C2.C.1.a.8.b.4) | C100: =CONCATENATE("Any other items to complete installation of ",B95) -> Any other items to complete installation of C2.C.1.a.8.b)
A102: 5 | B102: =AutoNumberingFormat(B100,A102) -> C2.C.1.a.8.c) | C102: =CONCATENATE("Any other items to complete installation of ",B86) -> Any other items to complete installation of C2.C.1.a.8)
A104: 4 | B104: =AutoNumberingFormat(B102,A104) -> C2.C.1.a.9) | C104: =CONCATENATE("Any other items to complete installation of ",B17) -> Any other items to complete installation of C2.C.1.a)
A106: 3 | B106: =AutoNumberingFormat(B104,A106) -> C2.C.1.b) | C106: Fare Collection / Computation Modules
A108: 4 | B108: =AutoNumberingFormat(B106,A108) -> C2.C.1.b.1) | C108: Fare Processing Controller
A109: 5 | B109: =AutoNumberingFormat(B108,A109) -> C2.C.1.b.1.a) | C109: Fare Processing Controller (1 per lane) | D109: No | E109: =ROUNDUP('Quantity Matrix'!H6/2,0) -> 4 | H109: 0 | I109: 0
A110: 5 | B110: C2.C.1.b.1.b) | C110: Fare Processor Controller Mounting Bracket within Cabinet (1 per Fare Controller) | D110: No | E110: =E109 -> 4 | H110: 0 | I110: 0
A111: 5 | B111: C2.C.1.b.1.c) | C111: Fare Processing Controller Software License (1 per Controller) | D111: No | E111: =E109 -> 4 | H111: 0 | I111: 0
A112: 5 | B112: C2.C.1.b.1.d) | C112: Fare Processing Software License (1 per Station) | D112: No | E112: =IF(E109>0,1,0) -> 1 | H112: 0 | I112: =IF(AND(E112=0,D112<>""),"Rate Only",IF($D112="","",$E112*H112)) -> 0
A113: 5 | B113: C2.C.1.b.1.e) | C113: EMV and NDoT Certified Reader/Writer (Mifare reading capability) (2 per lane) | D113: No | E113: ='Quantity Matrix'!H6 -> 8 | H113: 0 | I113: 0
A114: 5 | B114: C2.C.1.b.1.f) | C114: Mounting Bracket for EMV Reader/Writer (1 per reader/writer) | D114: No | E114: =E113 -> 8 | H114: 0 | I114: 0
A115: 5 | B115: C2.C.1.b.1.g) | C115: Sundry installation material | D115: Sum | E115: =IF(E114=0,0,1) -> 1 | H115: 0 | I115: 0
A117: 5 | B117: =AutoNumberingFormat(B115,A117) -> C2.C.1.b.1.h) | C117: =CONCATENATE("Any other items to complete installation of ",B108) -> Any other items to complete installation of C2.C.1.b.1)
A119: 4 | B119: =AutoNumberingFormat(B117,A119) -> C2.C.1.b.2) | C119: Power Supplies
B120: =AutoNumberingFormat(B119,A120) -> 
A121: 5 | B121: =AutoNumberingFormat(B119,A121) -> C2.C.1.b.2.a) | C121: Power Supply for Fare Processing Controller
A122: 6 | B122: =AutoNumberingFormat(B121,A122) -> C2.C.1.b.2.a.1) | C122: Switchmode PSU for Gate Fare Processor (1 per cabinet) | D122: No | E122: =E109 -> 4 | H122: 0 | I122: 0
A123: 6 | B123: =AutoNumberingFormat(B122,A123) -> C2.C.1.b.2.a.2) | C123: Sundry installation material and labelling | D123: Sum | E123: =IF(E122=0,0,1) -> 1 | H123: 0 | I123: 0
A125: 6 | B125: =AutoNumberingFormat(B123,A125) -> C2.C.1.b.2.a.3) | C125: =CONCATENATE("Any other items to complete installation of ",B121) -> Any other items to complete installation of C2.C.1.b.2.a)
A127: 5 | B127: =AutoNumberingFormat(B125,A127) -> C2.C.1.b.2.b) | C127: =CONCATENATE("Any other items to complete installation of ",B119) -> Any other items to complete installation of C2.C.1.b.2)
B128: =AutoNumberingFormat(B123,A128) -> 
A129: 4 | B129: =AutoNumberingFormat(B127,A129) -> C2.C.1.b.3) | C129: Lightning Protection Modules
B130: =AutoNumberingFormat(B129,A130) -> 
A131: 5 | B131: =AutoNumberingFormat(B129,A131) -> C2.C.1.b.3.a) | C131: Power Supply Protection
A132: 6 | B132: =AutoNumberingFormat(B131,A132) -> C2.C.1.b.3.a.1) | C132: Class 3 Pluggable Surge Protection Device - Single Pole (Live and Neutral) | D132: No | E132: =E122 -> 4 | H132: 0 | I132: 0
A133: 6 | B133: =AutoNumberingFormat(B132,A133) -> C2.C.1.b.3.a.2) | C133: Sundry surge protection installation material | D133: Sum | E133: =IF(E132=0,0,1) -> 1 | H133: 0 | I133: 0
A135: 6 | B135: =AutoNumberingFormat(B133,A135) -> C2.C.1.b.3.a.3) | C135: =CONCATENATE("Any other items to complete installation of ",B131) -> Any other items to complete installation of C2.C.1.b.3.a)
B136: =AutoNumberingFormat(B133,A136) -> 
A137: 5 | B137: =AutoNumberingFormat(B135,A137) -> C2.C.1.b.3.b) | C137: Data Communication Protection
A138: 6 | B138: =AutoNumberingFormat(B137,A138) -> C2.C.1.b.3.b.1) | C138: Class 3 Surge Protection Device - Ethernet CAT6 Pluggable Module with PoE support | D138: No | E138: =E109 -> 4 | H138: 0 | I138: 0
A139: 6 | B139: =AutoNumberingFormat(B138,A139) -> C2.C.1.b.3.b.2) | C139: Sundry surge protection installation material | D139: Sum | E139: =IF(E138=0,0,1) -> 1 | H139: 0 | I139: 0
A141: 6 | B141: =AutoNumberingFormat(B139,A141) -> C2.C.1.b.3.b.3) | C141: =CONCATENATE("Any other items to complete installation of ",B137) -> Any other items to complete installation of C2.C.1.b.3.b)
A143: 5 | B143: =AutoNumberingFormat(B141,A143) -> C2.C.1.b.3.c) | C143: =CONCATENATE("Any other items to complete installation of ",B129) -> Any other items to complete installation of C2.C.1.b.3)
I144: =IF(AND(E144=0,D144<>""),"Rate Only",IF($D144="","",$E144*H144)) -> 
A145: 4 | B145: =AutoNumberingFormat(B143,A145) -> C2.C.1.b.4) | C145: Cabling
A147: 5 | B147: =AutoNumberingFormat(B145,A147) -> C2.C.1.b.4.a) | C147: Power Cabling
A148: 6 | B148: =AutoNumberingFormat(B147,A148) -> C2.C.1.b.4.a.1) | C148: 3-Core 4mm2 (12 AWG) Cabtyre Power Cable (5 m per Reader) | D148: m | E148: =E109*5 -> 20 | H148: =IF($D148="","",SUM(F148:G148)) -> 0 | I148: 0
A149: 6 | B149: =AutoNumberingFormat(B148,A149) -> C2.C.1.b.4.a.2) | C149: 5A Circuit Breakers (1 per Processor PSU) | D149: No | E149: =E122 -> 4 | H149: 0 | I149: 0
A150: 6 | B150: =AutoNumberingFormat(B149,A150) -> C2.C.1.b.4.a.3) | C150: Sundry installation material | D150: Sum | E150: =IF(E149=0,0,1) -> 1 | H150: 0 | I150: 0
A152: 6 | B152: =AutoNumberingFormat(B150,A152) -> C2.C.1.b.4.a.4) | C152: =CONCATENATE("Any other items to complete installation of ",B147) -> Any other items to complete installation of C2.C.1.b.4.a)
A154: 5 | B154: =AutoNumberingFormat(B152,A154) -> C2.C.1.b.4.b) | C154: Copper Ethernet Data Cabling
A155: 6 | B155: =AutoNumberingFormat(B154,A155) -> C2.C.1.b.4.b.1) | C155: CAT6 Screened Foiled Twisted Pair Ethernet Cabling (50m per Reader) to Reticulation Points | D155: m | E155: =E109*50 -> 200 | H155: 0 | I155: 0
A156: 6 | B156: =AutoNumberingFormat(B155,A156) -> C2.C.1.b.4.b.2) | C156: CAT6 Shielded RJ45 Connector with Strain-Relief Boot (8 per Reader) | D156: No | E156: =E109*8 -> 32 | H156: 0 | I156: 0
A157: 6 | B157: =AutoNumberingFormat(B156,A157) -> C2.C.1.b.4.b.3) | C157: Sundry installation material for crimping and reticulation | D157: Sum | E157: =IF(E156=0,0,1) -> 1 | H157: 0 | I157: 0
A159: 6 | B159: =AutoNumberingFormat(B157,A159) -> C2.C.1.b.4.b.4) | C159: =CONCATENATE("Any other items to complete installation of ",B154) -> Any other items to complete installation of C2.C.1.b.4.b)
A161: 5 | B161: =AutoNumberingFormat(B159,A161) -> C2.C.1.b.4.c) | C161: Copper Signal Cabling
A162: 6 | B162: =AutoNumberingFormat(B161,A162) -> C2.C.1.b.4.c.1) | C162: 12-Core 1mm2 Biaxial-oriented Polyethylene Terephthalate (Mylar or equivalent) Screened Signal Cable (8 m per Reader) | D162: m | E162: =E109*8 -> 32 | H162: 0 | I162: 0
A163: 6 | B163: =AutoNumberingFormat(B162,A163) -> C2.C.1.b.4.c.2) | C163: Crimped-On Connecting Terminators (4 per Core Per Each Reader) | D163: No | E163: =E109*4*12 -> 192 | H163: 0 | I163: 0
A164: 6 | B164: =AutoNumberingFormat(B163,A164) -> C2.C.1.b.4.c.3) | C164: Sundry installation material for crimping and reticulation | D164: Sum | E164: =IF(E163=0,0,1) -> 1 | H164: 0 | I164: 0
A166: 6 | B166: =AutoNumberingFormat(B164,A166) -> C2.C.1.b.4.c.4) | C166: =CONCATENATE("Any other items to complete installation of ",B161) -> Any other items to complete installation of C2.C.1.b.4.c)
A168: 5 | B168: =AutoNumberingFormat(B166,A168) -> C2.C.1.b.4.d) | C168: =CONCATENATE("Any other items to complete installation of ",B145) -> Any other items to complete installation of C2.C.1.b.4)
A170: 4 | B170: =AutoNumberingFormat(B168,A170) -> C2.C.1.b.5) | C170: =CONCATENATE("Any other items to complete installation of ",B106) -> Any other items to complete installation of C2.C.1.b)
A172: 3 | B172: =AutoNumberingFormat(B170,A172) -> C2.C.1.c) | C172: =CONCATENATE("Any other items to complete installation of ",B15) -> Any other items to complete installation of C2.C.1)
A174: 2 | B174: =AutoNumberingFormat(B170,A174) -> C2.C.2) | C174: =CONCATENATE("Fare Access Control Infrastructure (For the remaining Sections of type ",'Quantity Matrix'!A6,")") -> Fare Access Control Infrastructure (For the remaining Sections of type Station Type A (One Platform, One Entrance, 5m, CVM))
A175: 3 | B175: =AutoNumberingFormat(B174,A175) -> C2.C.2.a) | C175: =CONCATENATE("Remaining facilities with Fare Access Control Infrastructure based on item Amount in ",B15) -> Remaining facilities with Fare Access Control Infrastructure based on item Amount in C2.C.1) | D175: Sum | E175: ='Quantity Matrix'!B6-1 -> 9 | F175: =SUMPRODUCT($E15:$E174,F15:F174) -> 0 | G175: =SUMPRODUCT($E15:$E174,G15:G174) -> 0 | H175: =IF($D175="","",SUM(F175:G175)) -> 0 | I175: =IF(AND(E175=0,D175<>""),"Rate Only",IF($D175="","",$E175*H175)) -> 0
H176: =IF($D176="","",SUM(F176:G176)) ->  | I176: =IF(AND(E176=0,D176<>""),"Rate Only",IF($D176="","",$E176*H176)) -> 
A177: 2 | B177: =AutoNumberingFormat(B175,A177) -> C2.C.3) | C177: =CONCATENATE("Fare Access Control Infrastructure (For a Single Section of type ",'Quantity Matrix'!A7,")") -> Fare Access Control Infrastructure (For a Single Section of type Station Type B (One Platform, One Entrance, 5m, TOM))
H178: =IF($D178="","",SUM(F178:G178)) ->  | I178: =IF($D178="","",$E178*H178) -> 
A179: 3 | B179: =AutoNumberingFormat(B177,A179) -> C2.C.3.a) | C179: Fare Access Control Gates | H179: =IF($D179="","",SUM(F179:G179)) ->  | I179: =IF($D179="","",$E179*H179) -> 
A181: 4 | B181: =AutoNumberingFormat(B179,A181) -> C2.C.3.a.1) | C181: Cabinets
A182: 5 | B182: =AutoNumberingFormat(B181,A182) -> C2.C.3.a.1.a) | C182: Standard Single Sided Gate Cabinet (with Internal DIN-rail mounts) | D182: No | E182: ='Quantity Matrix'!J7 -> 1 | H182: =IF($D182="","",SUM(F182:G182)) -> 0 | I182: =IF(AND(E182=0,D182<>""),"Rate Only",IF($D182="","",$E182*H182)) -> 0
A183: 5 | B183: C2.C.3.a.1.b) | C183: Standard Dual Sided Gate Cabinet (with Internal DIN-rail mounts) | D183: No | E183: ='Quantity Matrix'!K7 -> 2 | H183: 0 | I183: 0
A184: 5 | B184: C2.C.3.a.1.c) | C184: Universal Single Sided Gate Cabinet (with Internal DIN-rail mounts) | D184: No | E184: ='Quantity Matrix'!L7 -> 1 | H184: 0 | I184: 0
A185: 5 | B185: C2.C.3.a.1.d) | C185: Universal Dual Sided Gate Cabinet (with Internal DIN-rail mounts) | D185: No | E185: ='Quantity Matrix'!M7 -> 1 | H185: 0 | I185: 0
A186: 5 | B186: C2.C.3.a.1.e) | C186: Mounting Brackets with M10 x 70mm Anchor Bolts (1 set per Cabinet) | D186: No | E186: =SUM(E182:E185) -> 5 | H186: 0 | I186: 0
A187: 5 | B187: C2.C.3.a.1.f) | C187: Concrete Plinth for Levelling (1 per cabinet) matching colour to the surrounding tiles | D187: No | E187: =SUM(E182:E185) -> 5 | H187: 0 | I187: 0
A188: 5 | B188: C2.C.3.a.1.g) | C188: Sundry installation material | D188: Sum | E188: =IF(E187=0,0,1) -> 1 | H188: 0 | I188: 0
A190: 5 | B190: =AutoNumberingFormat(B188,A190) -> C2.C.3.a.1.h) | C190: =CONCATENATE("Any other items to complete installation of ",B181) -> Any other items to complete installation of C2.C.3.a.1)
A192: 4 | B192: =AutoNumberingFormat(B190,A192) -> C2.C.3.a.2) | C192: Motors | I192: =IF(AND(E192=0,D192<>""),"Rate Only",IF($D192="","",$E192*H192)) -> 
A193: 5 | B193: =AutoNumberingFormat(B192,A193) -> C2.C.3.a.2.a) | C193: Standard Gate Cabinet Motor (1 per Single Sided, 2 per Dual Sided) | D193: No | E193: =E209 -> 6 | H193: 0 | I193: 0
A194: 5 | B194: =AutoNumberingFormat(B193,A194) -> C2.C.3.a.2.b) | C194: Universal Gate Cabinet Motor (1 per Single Sided, 2 per Dual Sided) | D194: No | E194: =E210 -> 2 | H194: 0 | I194: 0
A195: 5 | B195: C2.C.3.a.2.c) | C195: Sundry installation material | D195: Sum | E195: =IF(E223=0,0,1) -> 1 | H195: 0 | I195: 0
A197: 5 | B197: =AutoNumberingFormat(B195,A197) -> C2.C.3.a.2.d) | C197: =CONCATENATE("Any other items to complete installation of ",B192) -> Any other items to complete installation of C2.C.3.a.2)
A199: 4 | B199: =AutoNumberingFormat(B197,A199) -> C2.C.3.a.3) | C199: Gate Cabinet Processor
A200: 5 | B200: =AutoNumberingFormat(B199,A200) -> C2.C.3.a.3.a) | C200: Gate Cabinet Processor (1 per cabinet) | D200: No | E200: =SUM(E182:E185) -> 5 | H200: 0 | I200: =IF(AND(E200=0,D200<>""),"Rate Only",IF($D200="","",$E200*H200)) -> 0
A201: 5 | B201: =AutoNumberingFormat(B200,A201) -> C2.C.3.a.3.b) | C201: Discrete Override Button (1 per lane, and an extra one for emergency per station) | D201: No | E201: =IF(E200=0,0,(SUM(E209:E210)/2)+1) -> 5 | H201: 0 | I201: 0
A202: 5 | B202: =AutoNumberingFormat(B201,A202) -> C2.C.3.a.3.c) | C202: Lane Safety and Tailgating Matrix Sensors (24 per lane) | D202: No | E202: =(SUM(E209:E210)/2)*24 -> 96 | H202: 0 | I202: 0
A203: 5 | B203: =AutoNumberingFormat(B202,A203) -> C2.C.3.a.3.d) | C203: Lane Usage Display (2 per lane) | D203: No | E203: =(SUM(E210:E211)/2)*2 -> 7 | H203: 0 | I203: 0
A204: 5 | B204: =AutoNumberingFormat(B203,A204) -> C2.C.3.a.3.e) | C204: Sundry installation material | D204: Sum | E204: =IF(E203=0,0,1) -> 1 | H204: 0 | I204: 0
A206: 5 | B206: =AutoNumberingFormat(B204,A206) -> C2.C.3.a.3.f) | C206: =CONCATENATE("Any other items to complete installation of ",B199) -> Any other items to complete installation of C2.C.3.a.3)
A208: 4 | B208: =AutoNumberingFormat(B206,A208) -> C2.C.3.a.4) | C208: Glass Barriers | H208: =IF($D208="","",SUM(F208:G208)) -> 
A209: 5 | B209: =AutoNumberingFormat(B208,A209) -> C2.C.3.a.4.a) | C209: Standard Wide Glass Barriers (2 per Lane) | D209: No | E209: =E182+(E183*2)+E182 -> 6 | H209: 0 | I209: 0
A210: 5 | B210: C2.C.3.a.4.b) | C210: Universal Wide Glass Barriers (2 per Lane) | D210: No | E210: =IF(AND(E184=0,E185=0),0,(E185*2)+E184-E182) -> 2 | H210: 0 | I210: 0
A211: 5 | B211: C2.C.3.a.4.c) | C211: Lane Glass Barriers (1 per cabinet) | D211: No | E211: =SUM(E182:E185) -> 5 | H211: 0 | I211: 0
A212: 5 | B212: C2.C.3.a.4.d) | C212: Stainless Steel Balustrade with Glass Inlays from Cabinet to Wall (4m per Station) | D212: m | E212: =E182*4 -> 4 | H212: 0 | I212: 0
A213: 5 | B213: C2.C.3.a.4.e) | C213: Sandblasting branding Allowance for Glass Barriers (1 per Glass Barrier) | D213: No | E213: =SUM(E209:E211) -> 13 | H213: 0 | I213: 0
A214: 5 | B214: C2.C.3.a.4.f) | C214: Sundry installation material | D214: Sum | E214: =IF(E213=0,0,1) -> 1 | H214: 0 | I214: 0
A216: 5 | B216: =AutoNumberingFormat(B214,A216) -> C2.C.3.a.4.g) | C216: =CONCATENATE("Any other items to complete installation of ",B208) -> Any other items to complete installation of C2.C.3.a.4)
A218: 4 | B218: =AutoNumberingFormat(B216,A218) -> C2.C.3.a.5) | C218: =CONCATENATE("Any other items to complete installation of ",B179) -> Any other items to complete installation of C2.C.3.a) | H218: =IF($D218="","",SUM(F218:G218)) -> 
A220: 4 | B220: =AutoNumberingFormat(B218,A220) -> C2.C.3.a.6) | C220: Power Supplies
B221: =AutoNumberingFormat(B220,A221) -> 
A222: 5 | B222: =AutoNumberingFormat(B220,A222) -> C2.C.3.a.6.a) | C222: Power Supply for Gate Cabinets
A223: 6 | B223: =AutoNumberingFormat(B222,A223) -> C2.C.3.a.6.a.1) | C223: Switchmode PSU for Motors (1 per cabinet) | D223: No | E223: =SUM(E182:E185)*1 -> 5 | H223: 0 | I223: 0
A224: 6 | B224: =AutoNumberingFormat(B223,A224) -> C2.C.3.a.6.a.2) | C224: Switchmode PSU for Gate Cabinet Processor (1 per cabinet) | D224: No | E224: =E223 -> 5 | H224: 0 | I224: 0
A225: 6 | B225: =AutoNumberingFormat(B224,A225) -> C2.C.3.a.6.a.3) | C225: Sundry installation material and labelling | D225: Sum | E225: =IF(E224=0,0,1) -> 1 | H225: 0 | I225: 0
A227: 6 | B227: =AutoNumberingFormat(B225,A227) -> C2.C.3.a.6.a.4) | C227: =CONCATENATE("Any other items to complete installation of ",B222) -> Any other items to complete installation of C2.C.3.a.6.a)
A229: 5 | B229: =AutoNumberingFormat(B227,A229) -> C2.C.3.a.6.b) | C229: Battery Backup for Readers and Processor
A230: 6 | B230: =AutoNumberingFormat(B229,A230) -> C2.C.3.a.6.b.1) | C230: 12Ah Battery for Reader and Processor (1 per cabinet) (Not for use with motors) | D230: No | E230: =E223 -> 5 | H230: 0 | I230: 0
A231: 6 | B231: =AutoNumberingFormat(B230,A231) -> C2.C.3.a.6.b.2) | C231: Charger (1 per Battery) | D231: No | E231: =E230 -> 5 | H231: 0 | I231: 0
A232: 6 | B232: =AutoNumberingFormat(B231,A232) -> C2.C.3.a.6.b.3) | C232: Sundry installation material and labelling | D232: Sum | E232: =IF(E231=0,0,1) -> 1 | H232: 0 | I232: 0
A234: 6 | B234: =AutoNumberingFormat(B232,A234) -> C2.C.3.a.6.b.4) | C234: =CONCATENATE("Any other items to complete installation of ",B229) -> Any other items to complete installation of C2.C.3.a.6.b)
A236: 5 | B236: =AutoNumberingFormat(B234,A236) -> C2.C.3.a.6.c) | C236: =CONCATENATE("Any other items to complete installation of ",B220) -> Any other items to complete installation of C2.C.3.a.6)
B237: =AutoNumberingFormat(B225,A237) -> 
A238: 4 | B238: =AutoNumberingFormat(B236,A238) -> C2.C.3.a.7) | C238: Lightning Protection Modules
B239: =AutoNumberingFormat(B238,A239) -> 
A240: 5 | B240: =AutoNumberingFormat(B238,A240) -> C2.C.3.a.7.a) | C240: Power Supply Protection
A241: 6 | B241: =AutoNumberingFormat(B240,A241) -> C2.C.3.a.7.a.1) | C241: Class 3 Pluggable Surge Protection Device - Single Pole (Live and Neutral) | D241: No | E241: =(E224+E223) -> 10 | H241: 0 | I241: 0
A242: 6 | B242: =AutoNumberingFormat(B241,A242) -> C2.C.3.a.7.a.2) | C242: Sundry surge protection installation material | D242: Sum | E242: =IF(E241=0,0,1) -> 1 | H242: 0 | I242: 0
A244: 6 | B244: =AutoNumberingFormat(B242,A244) -> C2.C.3.a.7.a.3) | C244: =CONCATENATE("Any other items to complete installation of ",B240) -> Any other items to complete installation of C2.C.3.a.7.a)
A246: 5 | B246: =AutoNumberingFormat(B244,A246) -> C2.C.3.a.7.b) | C246: =CONCATENATE("Any other items to complete installation of ",B238) -> Any other items to complete installation of C2.C.3.a.7) | H246: =IF($D246="","",SUM(F246:G246)) -> 
B247: =AutoNumberingFormat(B242,A247) -> 
A248: 4 | B248: =AutoNumberingFormat(B246,A248) -> C2.C.3.a.8) | C248: Cabling
A250: 5 | B250: =AutoNumberingFormat(B248,A250) -> C2.C.3.a.8.a) | C250: Power Cabling
A251: 6 | B251: =AutoNumberingFormat(B250,A251) -> C2.C.3.a.8.a.1) | C251: 3-Core 4mm2 (12 AWG) Cabtyre Power Cable (50 m per Platform) | D251: m | E251: =E182 * 50 -> 50 | H251: 0 | I251: 0
A252: 6 | B252: =AutoNumberingFormat(B251,A252) -> C2.C.3.a.8.a.2) | C252: 5A Circuit Breakers (1 per Cabinet) | D252: No | E252: =E200 -> 5 | H252: 0 | I252: 0
A253: 6 | B253: =AutoNumberingFormat(B252,A253) -> C2.C.3.a.8.a.3) | C253: Sundry installation material | D253: Sum | E253: =IF(E252=0,0,1) -> 1 | H253: 0 | I253: 0
A255: 6 | B255: =AutoNumberingFormat(B253,A255) -> C2.C.3.a.8.a.4) | C255: =CONCATENATE("Any other items to complete installation of ",B250) -> Any other items to complete installation of C2.C.3.a.8.a)
A257: 5 | B257: =AutoNumberingFormat(B255,A257) -> C2.C.3.a.8.b) | C257: Copper Signal Cabling
A258: 6 | B258: =AutoNumberingFormat(B257,A258) -> C2.C.3.a.8.b.1) | C258: 12-Core 1mm2 Biaxial-oriented Polyethylene Terephthalate (Mylar or equivalent) Screened Signal Cable (8 m per Lane) | D258: m | E258: =(SUM(E209:E210)/2) * 8 -> 32 | H258: 0 | I258: 0
A259: 6 | B259: =AutoNumberingFormat(B258,A259) -> C2.C.3.a.8.b.2) | C259: Crimped-On Connecting Terminators (4 per Core Per Each Lane) | D259: No | E259: =(SUM(E209:E210)/2) *4*12 -> 192 | H259: 0 | I259: 0
A260: 6 | B260: =AutoNumberingFormat(B259,A260) -> C2.C.3.a.8.b.3) | C260: Sundry installation material for crimping and reticulation | D260: Sum | E260: =IF(E259=0,0,1) -> 1 | H260: 0 | I260: 0
A262: 6 | B262: =AutoNumberingFormat(B260,A262) -> C2.C.3.a.8.b.4) | C262: =CONCATENATE("Any other items to complete installation of ",B257) -> Any other items to complete installation of C2.C.3.a.8.b)
A264: 5 | B264: =AutoNumberingFormat(B262,A264) -> C2.C.3.a.8.c) | C264: =CONCATENATE("Any other items to complete installation of ",B248) -> Any other items to complete installation of C2.C.3.a.8) | I264: =IF(AND(E264=0,D264<>""),"Rate Only",IF($D264="","",$E264*H264)) -> 
A266: 4 | B266: =AutoNumberingFormat(B264,A266) -> C2.C.3.a.9) | C266: =CONCATENATE("Any other items to complete installation of ",B179) -> Any other items to complete installation of C2.C.3.a)
A268: 3 | B268: =AutoNumberingFormat(B266,A268) -> C2.C.3.b) | C268: Fare Collection / Computation Modules
... 687 more rows

Sheet PRK
B1: ='P''s & G''s'!B1:H1 -> CITY OF JOHANNESBURG
B2: ='P''s & G''s'!B2:H2 -> CONTRACT NO. JDA-WP 15K-01
B4: ='P''s & G''s'!B4:H4 -> THE DESIGN, BUILD, AND MAINTENANCE OF AN
B5: ='P''s & G''s'!B5:H5 -> AUTOMATED FARE COLLECTION SYSTEM
B6: ='P''s & G''s'!B6:H6 -> FOR REA VAYA AND METROBUS FOR A 8 YEAR PERIOD
B8: ="SCHEDULE - " & SUBSTITUTE(B13,")","") & " - " & C13 -> SCHEDULE - C2.D - D&B PERIOD: PARK AND RIDE CONTROL SYSTEM
B10: ITEM | C10: DESCRIPTION OF ITEM | D10: UNIT | E10: QUANTITY | F10: SUPPLY | G10: INSTALL | H10: RATE | I10: AMOUNT
C12: The rates to be filled in hereunder must make provision for all specified equipment, associated materials, integration, and systems in order to execute the complete works as specified. | J12: =FindDuplicates(B13:B425) -> Numbering is okay
A13: 1 | B13: =SUMMARY!B15 -> C2.D) | C13: =SUMMARY!C15 -> D&B PERIOD: PARK AND RIDE CONTROL SYSTEM
A15: 2 | B15: =AutoNumberingFormat(B13,A15) -> C2.D.1) | C15: =CONCATENATE("Park and Ride Infrastructure (For a Single Section of type ",'Quantity Matrix'!A17,")") -> Park and Ride Infrastructure (For a Single Section of type Park-and-Ride Type A (Two Entrances, Two Exits)) | I15: =IF(AND(E15=0,D15<>""),"Rate Only",IF($D15="","",$E15*H15)) -> 
H16: =IF($D16="","",SUM(F16:G16)) -> 
A17: 3 | B17: =AutoNumberingFormat(B15,A17) -> C2.D.1.a) | C17: Park Validator | H17: =IF($D17="","",SUM(F17:G17)) -> 
A19: 4 | B19: =AutoNumberingFormat(B17,A19) -> C2.D.1.a.1) | C19: Park Validator Enclosure | H19: =IF($D19="","",SUM(F19:G19)) -> 
A20: 5 | B20: =AutoNumberingFormat(B19,A20) -> C2.D.1.a.1.a) | C20: IP55 One Compartment Enclosure (Processor and Modules in same Compartment) (Ruggedized, Powder Coated) | D20: No | E20: ='Quantity Matrix'!AD17 -> 4 | H20: =IF($D20="","",SUM(F20:G20)) -> 0 | I20: 0
A21: 5 | B21: =AutoNumberingFormat(B20,A21) -> C2.D.1.a.1.b) | C21: Mounting Plate Complete with M10 x 70mm Anchor Bolts | D21: Sum | E21: =IF(E20>0,1,0) -> 1
A22: 5 | B22: C2.D.1.a.1.c) | C22: Sundry installation materials | D22: Sum | E22: =IF(E20=0,0,1) -> 1 | H22: =IF($D22="","",SUM(F22:G22)) -> 0 | I22: =IF(AND(E22=0,D22<>""),"Rate Only",IF($D22="","",$E22*H22)) -> 0
A24: 5 | B24: =AutoNumberingFormat(B32,A24) -> C2.D.1.a.1.e) | C24: Concrete Plinths
A25: 6 | B25: =AutoNumberingFormat(B24,A25) -> C2.D.1.a.1.e.1) | C25: Cage bolts and sleeves (per set) | D25: No | E25: =E20 -> 4 | H25: 0 | I25: 0
A26: 6 | B26: =AutoNumberingFormat(B25,A26) -> C2.D.1.a.1.e.2) | C26: Excavation (0.5 m³ per enclosure) | D26: m³ | E26: =E25*0.5 -> 2 | H26: 0 | I26: 0
A27: 6 | B27: =AutoNumberingFormat(B26,A27) -> C2.D.1.a.1.e.3) | C27: 25 MPa Concrete (0.5 m³ per pole) | D27: m³ | E27: =E25*0.5 -> 2 | H27: 0 | I27: 0
A28: 6 | B28: C2.D.1.a.1.e.4) | C28: Sundry installation materials | D28: Sum | E28: =IF(E27=0,0,1) -> 1 | H28: 0 | I28: 0
A30: 6 | B30: =AutoNumberingFormat(B28,A30) -> C2.D.1.a.1.e.5) | C30: =CONCATENATE("Any other items to complete installation of ",B24) -> Any other items to complete installation of C2.D.1.a.1.e)
A32: 5 | B32: =AutoNumberingFormat(B22,A32) -> C2.D.1.a.1.d) | C32: =CONCATENATE("Any other items to complete installation of ",B19) -> Any other items to complete installation of C2.D.1.a.1)
A34: 4 | B34: =AutoNumberingFormat(B32,A34) -> C2.D.1.a.2) | C34: Park Validator Modules | H34: =IF($D34="","",SUM(F34:G34)) ->  | I34: =IF(AND(E34=0,D34<>""),"Rate Only",IF($D34="","",$E34*H34)) -> 
A35: 5 | B35: =AutoNumberingFormat(B34,A35) -> C2.D.1.a.2.a) | C35: Validator Processor | D35: No | E35: =E20 -> 4 | H35: 0 | I35: 0
A36: 5 | B36: C2.D.1.a.2.b) | C36: Validator User Interface | D36: No | E36: =E35 -> 4 | H36: 0 | I36: 0
A37: 5 | B37: C2.D.1.a.2.c) | C37: Validator Display/Screen | D37: No | E37: =E36 -> 4 | H37: 0 | I37: 0
A38: 5 | B38: =AutoNumberingFormat(B37,A38) -> C2.D.1.a.2.d) | C38: Validator VoIP Call Station | D38: No | E38: ='Quantity Matrix'!AC17 -> 4 | H38: =IF($D38="","",SUM(F38:G38)) -> 0 | I38: =IF(AND(E38=0,D38<>""),"Rate Only",IF($D38="","",$E38*H38)) -> 0
A39: 5 | B39: C2.D.1.a.2.e) | C39: Validator Battery Backup | D39: No | E39: =E35 -> 4 | H39: =IF($D39="","",SUM(F39:G39)) -> 0 | I39: =IF(AND(E39=0,D39<>""),"Rate Only",IF($D39="","",$E39*H39)) -> 0
A40: 5 | B40: C2.D.1.a.2.f) | C40: Mifare Issuance | D40: No | E40: ='Quantity Matrix'!AE17 -> 2 | H40: =IF($D40="","",SUM(F40:G40)) -> 0 | I40: =IF(AND(E40=0,D40<>""),"Rate Only",IF($D40="","",$E40*H40)) -> 0
A41: 5 | B41: C2.D.1.a.2.g) | C41: Mifare and EMV Reader/Writer | D41: No | E41: ='Quantity Matrix'!AF17 -> 4 | H41: =IF($D41="","",SUM(F41:G41)) -> 0 | I41: =IF(AND(E41=0,D41<>""),"Rate Only",IF($D41="","",$E41*H41)) -> 0
A42: 5 | B42: C2.D.1.a.2.h) | C42: Sundry installation materials | D42: Sum | E42: =IF(E41=0,0,1) -> 1 | H42: =IF($D42="","",SUM(F42:G42)) -> 0 | I42: =IF(AND(E42=0,D42<>""),"Rate Only",IF($D42="","",$E42*H42)) -> 0
H43: =IF($D43="","",SUM(F43:G43)) ->  | I43: =IF(AND(E43=0,D43<>""),"Rate Only",IF($D43="","",$E43*H43)) -> 
A44: 5 | B44: =AutoNumberingFormat(B42,A44) -> C2.D.1.a.2.i) | C44: =CONCATENATE("Any other items to complete installation of ",B34) -> Any other items to complete installation of C2.D.1.a.2) | H44: =IF($D44="","",SUM(F44:G44)) ->  | I44: =IF(AND(E44=0,D44<>""),"Rate Only",IF($D44="","",$E44*H44)) -> 
A46: 4 | B46: =AutoNumberingFormat(B44,A46) -> C2.D.1.a.3) | C46: =CONCATENATE("Any other items to complete installation of ",B17) -> Any other items to complete installation of C2.D.1.a) | H46: =IF($D46="","",SUM(F46:G46)) ->  | I46: =IF(AND(E46=0,D46<>""),"Rate Only",IF($D46="","",$E46*H46)) -> 
A48: 3 | B48: =AutoNumberingFormat(B46,A48) -> C2.D.1.b) | C48: Vehicle Barrier
A50: 4 | B50: =AutoNumberingFormat(B48,A50) -> C2.D.1.b.1) | C50: Lamps
A51: 5 | B51: =AutoNumberingFormat(B50,A51) -> C2.D.1.b.1.a) | C51: Green LED Lamp | D51: No | E51: ='Quantity Matrix'!AG17 -> 4 | H51: 0 | I51: 0
A52: 5 | B52: =AutoNumberingFormat(B51,A52) -> C2.D.1.b.1.b) | C52: Red LED Lamp | D52: No | E52: =E51 -> 4 | H52: 0 | I52: 0
A53: 5 | B53: =AutoNumberingFormat(B52,A53) -> C2.D.1.b.1.c) | C53: Two Aspect Black Background Screen | D53: No | E53: =E51 -> 4 | H53: 0 | I53: 0
A54: 5 | B54: C2.D.1.b.1.d) | C54: Pole Mounting Bracket | D54: No | E54: =E53 -> 4 | H54: 0 | I54: 0
A55: 5 | B55: C2.D.1.b.1.e) | C55: Sundry Installation Material | D55: Sum | E55: =IF(E54=0,0,1) -> 1 | H55: 0 | I55: 0
A57: 5 | B57: =AutoNumberingFormat(B55,A57) -> C2.D.1.b.1.f) | C57: =CONCATENATE("Any other items to complete installation of ",B50) -> Any other items to complete installation of C2.D.1.b.1)
A59: 4 | B59: =AutoNumberingFormat(B57,A59) -> C2.D.1.b.2) | C59: Pole
A60: 5 | B60: =AutoNumberingFormat(B59,A60) -> C2.D.1.b.2.a) | C60: 1.5m Stainless Steel with mounting plate | D60: No | E60: =E20 -> 4 | H60: 0 | I60: 0
A61: 5 | B61: =AutoNumberingFormat(B60,A61) -> C2.D.1.b.2.b) | C61: Stainless Pole-top end cap (half balls, with mounting bracket, and wiring holes) | D61: No | E61: =E60 -> 4 | H61: 0 | I61: 0
A62: 5 | B62: C2.D.1.b.2.c) | C62: Base plate mount cover (purpose made) | D62: No | E62: =E61 -> 4 | H62: 0 | I62: 0
A63: 5 | B63: C2.D.1.b.2.d) | C63: Sundry Installation Material | D63: Sum | E63: =IF(E62=0,0,1) -> 1 | H63: 0 | I63: 0
A65: 5 | B65: =AutoNumberingFormat(B63,A65) -> C2.D.1.b.2.e) | C65: =CONCATENATE("Any other items to complete installation of ",B59) -> Any other items to complete installation of C2.D.1.b.2)
A67: 4 | B67: =AutoNumberingFormat(B63,A67) -> C2.D.1.b.3) | C67: Barrier
A68: 5 | B68: =AutoNumberingFormat(B67,A68) -> C2.D.1.b.3.a) | C68: Boom Gate Cabinet | D68: No | E68: ='Quantity Matrix'!AD17 -> 4 | H68: 0 | I68: 0
A69: 5 | B69: =AutoNumberingFormat(B68,A69) -> C2.D.1.b.3.b) | C69: Boom Gate Motor | D69: No | E69: =E68 -> 4 | H69: 0 | I69: 0
A70: 5 | B70: C2.D.1.b.3.c) | C70: Boom Gate Controller | D70: No | E70: =E69 -> 4 | H70: 0 | I70: 0
A71: 5 | B71: =AutoNumberingFormat(B70,A71) -> C2.D.1.b.3.d) | C71: Boom Gate Battery Backup | D71: No | E71: =E70 -> 4 | H71: 0 | I71: 0
A72: 5 | B72: C2.D.1.b.3.e) | C72: 4.5m Aluminium Arm (Straight) | D72: No | E72: =E70 -> 4 | H72: 0 | I72: 0
A73: 5 | B73: C2.D.1.b.3.f) | C73: 4.5m Aluminium Arm (Articulated) | D73: No | E73: =E72 -> 4 | H73: 0 | I73: 0
A74: 5 | B74: C2.D.1.b.3.g) | C74: Sundry Installation Material | D74: Sum | E74: =IF(E72=0,0,1) -> 1 | H74: 0 | I74: 0
A76: 5 | B76: =AutoNumberingFormat(B74,A76) -> C2.D.1.b.3.h) | C76: =CONCATENATE("Any other items to complete installation of ",B67) -> Any other items to complete installation of C2.D.1.b.3)
A78: 4 | B78: =AutoNumberingFormat(B74,A78) -> C2.D.1.b.4) | C78: Concrete Plinths | H78: =IF($D78="","",SUM(F78:G78)) ->  | I78: =IF(AND(E78=0,D78<>""),"Rate Only",IF($D78="","",$E78*H78)) -> 
A79: 5 | B79: =AutoNumberingFormat(B78,A79) -> C2.D.1.b.4.a) | C79: Cage bolts and sleeves (per set) | D79: No | E79: =E60+E68 -> 8 | H79: 0 | I79: 0
A80: 5 | B80: =AutoNumberingFormat(B79,A80) -> C2.D.1.b.4.b) | C80: Excavation (0.5 m³ per set) | D80: m³ | E80: =E79*0.5 -> 4 | H80: 0 | I80: 0
A81: 5 | B81: =AutoNumberingFormat(B80,A81) -> C2.D.1.b.4.c) | C81: 25 MPa Concrete (0.5 m³ per set) | D81: m³ | E81: =E79*0.5 -> 4 | H81: 0 | I81: 0
A82: 5 | B82: C2.D.1.b.4.d) | C82: Sundry installation materials | D82: Sum | E82: =IF(E81=0,0,1) -> 1 | H82: 0 | I82: 0
A84: 5 | B84: =AutoNumberingFormat(B82,A84) -> C2.D.1.b.4.e) | C84: =CONCATENATE("Any other items to complete installation of ",B78) -> Any other items to complete installation of C2.D.1.b.4)
A86: 4 | B86: =AutoNumberingFormat(B84,A86) -> C2.D.1.b.5) | C86: Inductive Loops
A87: 5 | B87: =AutoNumberingFormat(B86,A87) -> C2.D.1.b.5.a) | C87: Cutting of Grooves | D87: No | E87: =E68 -> 4 | H87: 0 | I87: 0
A88: 5 | B88: C2.D.1.b.5.b) | C88: Induction Loop Material | D88: No | E88: =E87 -> 4 | H88: 0 | I88: 0
A89: 5 | B89: C2.D.1.b.5.c) | C89: Epoxy Loop Sealant | D89: No | E89: =E88 -> 4 | H89: 0 | I89: 0
A90: 5 | B90: C2.D.1.b.5.d) | C90: Sundry Installation Material | D90: Sum | E90: =IF(E89=0,0,1) -> 1 | H90: 0 | I90: 0
A92: 5 | B92: =AutoNumberingFormat(B90,A92) -> C2.D.1.b.5.e) | C92: =CONCATENATE("Any other items to complete installation of ",B86) -> Any other items to complete installation of C2.D.1.b.5)
A94: 4 | B94: =AutoNumberingFormat(B90,A94) -> C2.D.1.b.6) | C94: =CONCATENATE("Any other items to complete installation of ",B48) -> Any other items to complete installation of C2.D.1.b)
A96: 3 | B96: =AutoNumberingFormat(B94,A96) -> C2.D.1.c) | C96: Lightning Protection
A98: 4 | B98: =AutoNumberingFormat(B96,A98) -> C2.D.1.c.1) | C98: Lightning Finial
A99: 5 | B99: =AutoNumberingFormat(B98,A99) -> C2.D.1.c.1.a) | C99: 800mm long with stainless steel mounting plate (Earthed with 16mm BCEW, 1 per pole) | D99: No | E99: =E60 -> 4 | H99: 0 | I99: 0
A100: 5 | B100: =AutoNumberingFormat(B99,A100) -> C2.D.1.c.1.b) | C100: Sundry installation materials | D100: Sum | E100: =IF(E99=0,0,1) -> 1 | H100: 0 | I100: 0
A102: 5 | B102: =AutoNumberingFormat(B100,A102) -> C2.D.1.c.1.c) | C102: =CONCATENATE("Any other items to complete installation of ",B98) -> Any other items to complete installation of C2.D.1.c.1)
A104: 4 | B104: =AutoNumberingFormat(B99,A104) -> C2.D.1.c.2) | C104: Crows' Foot Earthing Node
A105: 5 | B105: =AutoNumberingFormat(B104,A105) -> C2.D.1.c.2.a) | C105: Materials (1 set per plinth) | D105: No | E105: =E79+E25 -> 12 | H105: 0 | I105: 0
A106: 5 | B106: =AutoNumberingFormat(B105,A106) -> C2.D.1.c.2.b) | C106: Trench Excavations and Backfilling (3.2 m³ per pole) | D106: m³ | E106: =E105*3.2 -> 38.4 | H106: 0 | I106: 0
A107: 5 | B107: =AutoNumberingFormat(B106,A107) -> C2.D.1.c.2.c) | C107: Sundry installation materials | D107: Sum | E107: =IF(E106=0,0,1) -> 1 | H107: 0 | I107: 0
A109: 5 | B109: =AutoNumberingFormat(B107,A109) -> C2.D.1.c.2.d) | C109: =CONCATENATE("Any other items to complete installation of ",B104) -> Any other items to complete installation of C2.D.1.c.2)
H110: =IF($D110="","",SUM(F110:G110)) ->  | I110: =IF(AND(E110=0,D110<>""),"Rate Only",IF($D110="","",$E110*H110)) -> 
A111: 4 | B111: =AutoNumberingFormat(B109,A111) -> C2.D.1.c.3) | C111: Power Supply Protection
A112: 5 | B112: =AutoNumberingFormat(B111,A112) -> C2.D.1.c.3.a) | C112: Class 3 Pluggable Surge Protection Device - Single Pole (Live and Neutral) | D112: No | E112: =E129+E128 -> 26 | H112: 0 | I112: 0
A113: 5 | B113: =AutoNumberingFormat(B112,A113) -> C2.D.1.c.3.b) | C113: Sundry surge protection installation material | D113: Sum | E113: =IF(E112=0,0,1) -> 1 | H113: 0 | I113: 0
A115: 5 | B115: =AutoNumberingFormat(B113,A115) -> C2.D.1.c.3.c) | C115: =CONCATENATE("Any other items to complete installation of ",B111) -> Any other items to complete installation of C2.D.1.c.3)
B116: =AutoNumberingFormat(B113,A116) -> 
A117: 4 | B117: =AutoNumberingFormat(B113,A117) -> C2.D.1.c.4) | C117: Data Communication Protection
A118: 5 | B118: =AutoNumberingFormat(B117,A118) -> C2.D.1.c.4.a) | C118: Class 3 Surge Protection Device - Ethernet CAT6 Pluggable Module with PoE support | D118: No | E118: =E35+E38 -> 8 | H118: 0 | I118: 0
A119: 5 | B119: =AutoNumberingFormat(B118,A119) -> C2.D.1.c.4.b) | C119: Sundry surge protection installation material | D119: Sum | E119: =IF(E118=0,0,1) -> 1 | H119: 0 | I119: 0
A121: 5 | B121: =AutoNumberingFormat(B119,A121) -> C2.D.1.c.4.c) | C121: =CONCATENATE("Any other items to complete installation of ",B117) -> Any other items to complete installation of C2.D.1.c.4)
A123: 4 | B123: =AutoNumberingFormat(B121,A123) -> C2.D.1.c.5) | C123: =CONCATENATE("Any other items to complete installation of ",B96) -> Any other items to complete installation of C2.D.1.c)
A125: 3 | B125: =AutoNumberingFormat(B123,A125) -> C2.D.1.d) | C125: Power Supplies
B126: =AutoNumberingFormat(B125,A126) -> 
A127: 4 | B127: =AutoNumberingFormat(B125,A127) -> C2.D.1.d.1) | C127: Power Supply for Validator and Modules
A128: 5 | B128: =AutoNumberingFormat(B127,A128) -> C2.D.1.d.1.a) | C128: Switchmode PSU for a single Processor (1 per Processor) | D128: No | E128: =E35 -> 4 | H128: 0 | I128: 0
A129: 5 | B129: =AutoNumberingFormat(B128,A129) -> C2.D.1.d.1.b) | C129: Switchmode PSU for a Modules (1 per Module) | D129: No | E129: =SUM(E36:E41) -> 22 | H129: 0 | I129: 0
A130: 5 | B130: =AutoNumberingFormat(B129,A130) -> C2.D.1.d.1.c) | C130: Sundry installation material and labelling | D130: Sum | E130: =IF(E128=0,0,1) -> 1 | H130: 0 | I130: 0
A132: 5 | B132: =AutoNumberingFormat(B130,A132) -> C2.D.1.d.1.d) | C132: =CONCATENATE("Any other items to complete installation of ",B127) -> Any other items to complete installation of C2.D.1.d.1)
A134: 4 | B134: =AutoNumberingFormat(B130,A134) -> C2.D.1.d.2) | C134: =CONCATENATE("Any other items to complete installation of ",B125) -> Any other items to complete installation of C2.D.1.d)
B135: =AutoNumberingFormat(B130,A135) -> 
A136: 3 | B136: =AutoNumberingFormat(B134,A136) -> C2.D.1.e) | C136: Reticulation Channel
A138: 4 | B138: =AutoNumberingFormat(B136,A138) -> C2.D.1.e.1) | C138: Channel from Validator Enclosure to Parkade Building
A139: 5 | B139: =AutoNumberingFormat(B138,A139) -> C2.D.1.e.1.a) | C139: Arrange Wayleaves | D139: No | E139: 1 | H139: 0 | I139: 0
A140: 5 | B140: =AutoNumberingFormat(B139,A140) -> C2.D.1.e.1.b) | C140: 50mm UPVC Nextube or Equivalent (50m per Validator Enclosure) | D140: m | E140: =E128*50 -> 200 | H140: 0 | I140: 0
A141: 5 | B141: =AutoNumberingFormat(B140,A141) -> C2.D.1.e.1.c) | C141: Excavation in soft material (850mm(Deep) * 450mm (Wide)) | D141: m³ | E141: =ROUNDUP((E140/2)*(0.85*0.45),0) -> 39 | H141: 0 | I141: 0
A142: 5 | B142: C2.D.1.e.1.d) | C142: Bedding with selected granular material(150mm) | D142: m³ | E142: =ROUNDUP((E140/2)*(0.15*0.45),0) -> 7 | H142: =IF($D142="","",SUM(F142:G142)) -> 0 | I142: =IF(AND(E142=0,D142<>""),"Rate Only",IF($D142="","",$E142*H142)) -> 0
A143: 5 | B143: C2.D.1.e.1.e) | C143: 25MPa Concrete (to 150mm above and below Sleeves) | D143: m³ | E143: =ROUNDUP((E140/2)*(0.35*0.45),0) -> 16 | H143: 0 | I143: 0
A144: 5 | B144: C2.D.1.e.1.f) | C144: Trench Backfilling (Excavated Material compaction to Engineers requirements) | D144: m³ | E144: =E141-E142-E143-E145 -> 9 | H144: 0 | I144: 0
A145: 5 | B145: C2.D.1.e.1.g) | C145: Re-habilitate ground cover to original (Pavement, Concrete, Asphalt etc.) | D145: m³ | E145: =E142 -> 7 | H145: 0 | I145: 0
A146: 5 | B146: C2.D.1.e.1.h) | C146: Sundry Installation Material | D146: Sum | E146: =IF(E145=0,0,1) -> 1 | H146: 0 | I146: 0
A148: 5 | B148: =AutoNumberingFormat(B146,A148) -> C2.D.1.e.1.i) | C148: =CONCATENATE("Any other items to complete installation of ",B138) -> Any other items to complete installation of C2.D.1.e.1)
A150: 4 | B150: =AutoNumberingFormat(B148,A150) -> C2.D.1.e.2) | C150: Wireway from Pole to LED Aspect | H150: =IF($D150="","",SUM(F150:G150)) ->  | I150: =IF(AND(E150=0,D150<>""),"Rate Only",IF($D150="","",$E150*H150)) -> 
A151: 5 | B151: =AutoNumberingFormat(B150,A151) -> C2.D.1.e.2.a) | C151: 25mm Galvanized Steel Sprague (1m per LED Aspect) | D151: m | E151: =E53*1 -> 4 | H151: 0 | I151: 0
A152: 5 | B152: =AutoNumberingFormat(B151,A152) -> C2.D.1.e.2.b) | C152: Galvanized Steel Terminator | D152: No | E152: =E151*2 -> 8 | H152: 0 | I152: 0
A153: 5 | B153: =AutoNumberingFormat(B152,A153) -> C2.D.1.e.2.c) | C153: Sundry material | D153: Sum | E153: =IF(E152=0,0,1) -> 1 | H153: 0 | I153: 0
B154: =AutoNumberingFormat(B151,A154) -> 
A155: 5 | B155: =AutoNumberingFormat(B153,A155) -> C2.D.1.e.2.d) | C155: =CONCATENATE("Any other items to complete installation of ",B150) -> Any other items to complete installation of C2.D.1.e.2)
A157: 4 | B157: =AutoNumberingFormat(B155,A157) -> C2.D.1.e.3) | C157: Channel between Enclosure and Boom
A158: 5 | B158: =AutoNumberingFormat(B157,A158) -> C2.D.1.e.3.a) | C158: 25mm Bosal Type Stainless Conduit Pipe (5m Per Enclosure ) | D158: m | E158: =E68*5 -> 20 | H158: 0 | I158: 0
A159: 5 | B159: =AutoNumberingFormat(B158,A159) -> C2.D.1.e.3.b) | C159: 25mm Bosal Type 90° Slow-bend Conduit Connector (4 per Enclosure) | D159: No | E159: =E68*4 -> 16 | H159: 0 | I159: 0
A160: 5 | B160: =AutoNumberingFormat(B159,A160) -> C2.D.1.e.3.c) | C160: 25mm Stainless Wall mounting Bracket (assume 1 for every 2m) | D160: No | E160: =ROUNDUP(E158/2,0) -> 10 | H160: 0 | I160: 0
A161: 5 | B161: =AutoNumberingFormat(B160,A161) -> C2.D.1.e.3.d) | C161: 25mm Bosal Type Solid Couplings (assume 1 for every 3m) | D161: No | E161: =ROUNDUP(E158/3,0) -> 7 | H161: 0 | I161: 0
A162: 5 | B162: =AutoNumberingFormat(B161,A162) -> C2.D.1.e.3.e) | C162: 25mm Bosal Type Terminator (4 per Enclosure) | D162: No | E162: =E159 -> 16 | H162: =IF($D162="","",SUM(F162:G162)) -> 0 | I162: 0
A163: 5 | B163: =AutoNumberingFormat(B162,A163) -> C2.D.1.e.3.f) | C163: Bosal Type Roundbox (2 per Enclosure, each with 2 entries/exits) | D163: No | E163: =ROUNDUP(E159/2,0) -> 8 | H163: =IF($D163="","",SUM(F163:G163)) -> 0 | I163: 0
A165: 5 | B165: =AutoNumberingFormat(B163,A165) -> C2.D.1.e.3.g) | C165: =CONCATENATE("Any other items/sundries to complete installation of ",B157) -> Any other items/sundries to complete installation of C2.D.1.e.3)
A167: 3 | B167: =AutoNumberingFormat(B165,A167) -> C2.D.1.f) | C167: Cabling | H167: =IF($D167="","",SUM(F167:G167)) ->  | I167: =IF(AND(E167=0,D167<>""),"Rate Only",IF($D167="","",$E167*H167)) -> 
A169: 4 | B169: =AutoNumberingFormat(B167,A169) -> C2.D.1.f.1) | C169: Power Cabling
A170: 5 | B170: =AutoNumberingFormat(B169,A170) -> C2.D.1.f.1.a) | C170: 4-Core 4mm2 (12 AWG) Cabtyre Power Cable (50 m per Processor) | D170: m | E170: =E20*50 -> 200 | H170: 0 | I170: 0
A171: 5 | B171: =AutoNumberingFormat(B170,A171) -> C2.D.1.f.1.b) | C171: 5A Circuit Breakers (2 per Enclosure) | D171: No | E171: =E20*2 -> 8 | H171: 0 | I171: 0
A172: 5 | B172: =AutoNumberingFormat(B171,A172) -> C2.D.1.f.1.c) | C172: Sundry installation material | D172: Sum | E172: =IF(E171=0,0,1) -> 1 | H172: 0 | I172: 0
A174: 5 | B174: =AutoNumberingFormat(B172,A174) -> C2.D.1.f.1.d) | C174: =CONCATENATE("Any other items to complete installation of ",B169) -> Any other items to complete installation of C2.D.1.f.1)
A176: 4 | B176: =AutoNumberingFormat(B172,A176) -> C2.D.1.f.2) | C176: Copper Signal Cabling
A177: 5 | B177: =AutoNumberingFormat(B176,A177) -> C2.D.1.f.2.a) | C177: 4-Core 2.5mm2 Biaxially-oriented Polyethylene Terephthalate (Mylar or equivalent) Screened Signal Cable (10m per Enclosure) | D177: m | E177: =E20*10 -> 40 | H177: 0 | I177: 0
A178: 5 | B178: =AutoNumberingFormat(B177,A178) -> C2.D.1.f.2.b) | C178: Crimped-On Connecting Terminators (16 per Processor) | D178: No | E178: =E20*16 -> 64 | H178: 0 | I178: 0
A179: 5 | B179: =AutoNumberingFormat(B178,A179) -> C2.D.1.f.2.c) | C179: Sundry installation material for crimping and reticulation | D179: Sum | E179: =IF(E178=0,0,1) -> 1 | H179: 0 | I179: 0
A181: 5 | B181: =AutoNumberingFormat(B179,A181) -> C2.D.1.f.2.d) | C181: =CONCATENATE("Any other items to complete installation of ",B176) -> Any other items to complete installation of C2.D.1.f.2)
A183: 4 | B183: =AutoNumberingFormat(B181,A183) -> C2.D.1.f.3) | C183: Copper Ethernet Data Cabling | H183: =IF($D183="","",SUM(F183:G183)) ->  | I183: =IF(AND(E183=0,D183<>""),"Rate Only",IF($D183="","",$E183*H183)) -> 
A184: 5 | B184: =AutoNumberingFormat(B183,A184) -> C2.D.1.f.3.a) | C184: CAT6 Screened Foiled Twisted Pair Ethernet Cabling (50m per Ethernet Connection) to Reticulation Points | D184: m | E184: =(E35+E38)*50 -> 400 | H184: 0 | I184: 0
A185: 5 | B185: =AutoNumberingFormat(B184,A185) -> C2.D.1.f.3.b) | C185: CAT6 Shielded RJ45 Connector with Strain-Relief Boot (8 per Ethernet Connection) | D185: No | E185: =(E35+E38)*8 -> 64 | H185: 0 | I185: 0
A186: 5 | B186: =AutoNumberingFormat(B185,A186) -> C2.D.1.f.3.c) | C186: Sundry installation material for crimping and reticulation | D186: Sum | E186: =IF(E185=0,0,1) -> 1 | H186: 0 | I186: 0
A188: 5 | B188: =AutoNumberingFormat(B186,A188) -> C2.D.1.f.3.d) | C188: =CONCATENATE("Any other items to complete installation of ",B183) -> Any other items to complete installation of C2.D.1.f.3)
A190: 4 | B190: =AutoNumberingFormat(B188,A190) -> C2.D.1.f.4) | C190: =CONCATENATE("Any other items to complete installation of ",B167) -> Any other items to complete installation of C2.D.1.f) | H190: =IF($D190="","",SUM(F190:G190)) ->  | I190: =IF(AND(E190=0,D190<>""),"Rate Only",IF($D190="","",$E190*H190)) -> 
A192: 3 | B192: =AutoNumberingFormat(B190,A192) -> C2.D.1.g) | C192: =CONCATENATE("Any other items to complete installation of ",B15) -> Any other items to complete installation of C2.D.1)
A194: 2 | B194: =AutoNumberingFormat(B192,A194) -> C2.D.2) | C194: =CONCATENATE("Park and Ride Infrastructure (For the remaining Sections of type ",'Quantity Matrix'!A17,")") -> Park and Ride Infrastructure (For the remaining Sections of type Park-and-Ride Type A (Two Entrances, Two Exits))
A195: 3 | B195: =AutoNumberingFormat(B194,A195) -> C2.D.2.a) | C195: =CONCATENATE("Remaining facilities with Park and Ride Infrastructure based on item Amount in ",B15) -> Remaining facilities with Park and Ride Infrastructure based on item Amount in C2.D.1) | D195: No | E195: ='Quantity Matrix'!B17-1 -> 2 | F195: =SUMPRODUCT($E$15:$E$194,F15:F194) -> 0 | G195: =SUMPRODUCT($E$15:$E$194,G15:G194) -> 0 | H195: 0 | I195: 0
A197: 2 | B197: =AutoNumberingFormat(B195,A197) -> C2.D.3) | C197: =CONCATENATE("Park and Ride Infrastructure (For a Single Section of type ",'Quantity Matrix'!A18,")") -> Park and Ride Infrastructure (For a Single Section of type Park-and-Ride Type B (One Entrance, One Exit))
H198: =IF($D198="","",SUM(F198:G198)) -> 
A199: 3 | B199: =AutoNumberingFormat(B197,A199) -> C2.D.3.a) | C199: Park Validator | H199: =IF($D199="","",SUM(F199:G199)) -> 
A201: 4 | B201: =AutoNumberingFormat(B199,A201) -> C2.D.3.a.1) | C201: Park Validator Enclosure | H201: =IF($D201="","",SUM(F201:G201)) -> 
A202: 5 | B202: =AutoNumberingFormat(B201,A202) -> C2.D.3.a.1.a) | C202: IP55 One Compartment Enclosure (Processor and Modules in same Compartment) (Ruggedized, Powder Coated) | D202: No | E202: ='Quantity Matrix'!AD18 -> 2 | H202: =IF($D202="","",SUM(F202:G202)) -> 0 | I202: 0
A203: 5 | B203: =AutoNumberingFormat(B202,A203) -> C2.D.3.a.1.b) | C203: Mounting Plate Complete with M10 x 70mm Anchor Bolts | D203: Sum | E203: =IF(E202>0,1,0) -> 1
A204: 5 | B204: C2.D.3.a.1.c) | C204: Sundry installation materials | D204: Sum | E204: =IF(E202=0,0,1) -> 1 | H204: =IF($D204="","",SUM(F204:G204)) -> 0 | I204: =IF(AND(E204=0,D204<>""),"Rate Only",IF($D204="","",$E204*H204)) -> 0
A206: 5 | B206: =AutoNumberingFormat(B214,A206) -> C2.D.3.a.1.e) | C206: Concrete Plinths
A207: 6 | B207: =AutoNumberingFormat(B206,A207) -> C2.D.3.a.1.e.1) | C207: Cage bolts and sleeves (per set) | D207: No | E207: =E202 -> 2 | H207: 0 | I207: 0
A208: 6 | B208: =AutoNumberingFormat(B207,A208) -> C2.D.3.a.1.e.2) | C208: Excavation (0.5 m³ per enclosure) | D208: m³ | E208: =E207*0.5 -> 1 | H208: 0 | I208: 0
A209: 6 | B209: =AutoNumberingFormat(B208,A209) -> C2.D.3.a.1.e.3) | C209: 25 MPa Concrete (0.5 m³ per pole) | D209: m³ | E209: =E207*0.5 -> 1 | H209: 0 | I209: 0
A210: 6 | B210: C2.D.3.a.1.e.4) | C210: Sundry installation materials | D210: Sum | E210: =IF(E209=0,0,1) -> 1 | H210: 0 | I210: 0
A212: 6 | B212: =AutoNumberingFormat(B210,A212) -> C2.D.3.a.1.e.5) | C212: =CONCATENATE("Any other items to complete installation of ",B206) -> Any other items to complete installation of C2.D.3.a.1.e)
A214: 5 | B214: =AutoNumberingFormat(B204,A214) -> C2.D.3.a.1.d) | C214: =CONCATENATE("Any other items to complete installation of ",B201) -> Any other items to complete installation of C2.D.3.a.1)
A216: 4 | B216: =AutoNumberingFormat(B214,A216) -> C2.D.3.a.2) | C216: Park Validator Modules | H216: =IF($D216="","",SUM(F216:G216)) -> 
A217: 5 | B217: =AutoNumberingFormat(B216,A217) -> C2.D.3.a.2.a) | C217: Validator Processor | D217: No | E217: =E202 -> 2 | H217: 0 | I217: 0
A218: 5 | B218: C2.D.3.a.2.b) | C218: Validator User Interface | D218: No | E218: =E217 -> 2 | H218: 0 | I218: 0
A219: 5 | B219: C2.D.3.a.2.c) | C219: Validator Display/Screen | D219: No | E219: =E218 -> 2 | H219: 0 | I219: 0
A220: 5 | B220: C2.D.3.a.2.d) | C220: Validator VoIP Call Station | D220: No | E220: ='Quantity Matrix'!AC18 -> 2 | H220: =IF($D220="","",SUM(F220:G220)) -> 0 | I220: 0
A221: 5 | B221: C2.D.3.a.2.e) | C221: Validator Battery Backup | D221: No | E221: =E217 -> 2 | H221: 0 | I221: 0
A222: 5 | B222: C2.D.3.a.2.f) | C222: Mifare Issuance | D222: No | E222: ='Quantity Matrix'!AE18 -> 1 | H222: 0 | I222: 0
A223: 5 | B223: C2.D.3.a.2.g) | C223: Mifare and EMV Reader/Writer | D223: No | E223: ='Quantity Matrix'!AF18 -> 2 | H223: 0 | I223: 0
A224: 5 | B224: C2.D.3.a.2.h) | C224: Sundry installation materials | D224: Sum | E224: =IF(E223=0,0,1) -> 1 | H224: =IF($D224="","",SUM(F224:G224)) -> 0 | I224: =IF(AND(E224=0,D224<>""),"Rate Only",IF($D224="","",$E224*H224)) -> 0
H225: =IF($D225="","",SUM(F225:G225)) ->  | I225: =IF(AND(E225=0,D225<>""),"Rate Only",IF($D225="","",$E225*H225)) -> 
A226: 5 | B226: =AutoNumberingFormat(B224,A226) -> C2.D.3.a.2.i) | C226: =CONCATENATE("Any other items to complete installation of ",B216) -> Any other items to complete installation of C2.D.3.a.2) | H226: =IF($D226="","",SUM(F226:G226)) ->  | I226: =IF(AND(E226=0,D226<>""),"Rate Only",IF($D226="","",$E226*H226)) -> 
A228: 4 | B228: =AutoNumberingFormat(B226,A228) -> C2.D.3.a.3) | C228: =CONCATENATE("Any other items to complete installation of ",B199) -> Any other items to complete installation of C2.D.3.a) | H228: =IF($D228="","",SUM(F228:G228)) ->  | I228: =IF(AND(E228=0,D228<>""),"Rate Only",IF($D228="","",$E228*H228)) -> 
A230: 3 | B230: =AutoNumberingFormat(B228,A230) -> C2.D.3.b) | C230: Vehicle Barrier
A232: 4 | B232: =AutoNumberingFormat(B230,A232) -> C2.D.3.b.1) | C232: Lamps
A233: 5 | B233: =AutoNumberingFormat(B232,A233) -> C2.D.3.b.1.a) | C233: Green LED Lamp | D233: No | E233: ='Quantity Matrix'!AG18 -> 2 | H233: 0 | I233: 0
A234: 5 | B234: =AutoNumberingFormat(B233,A234) -> C2.D.3.b.1.b) | C234: Red LED Lamp | D234: No | E234: =E233 -> 2 | H234: 0 | I234: 0
A235: 5 | B235: =AutoNumberingFormat(B234,A235) -> C2.D.3.b.1.c) | C235: Two Aspect Black Background Screen | D235: No | E235: =E233 -> 2 | H235: 0 | I235: 0
A236: 5 | B236: C2.D.3.b.1.d) | C236: Pole Mounting Bracket | D236: No | E236: =E235 -> 2 | H236: 0 | I236: 0
A237: 5 | B237: C2.D.3.b.1.e) | C237: Sundry Installation Material | D237: Sum | E237: =IF(E236=0,0,1) -> 1 | H237: 0 | I237: 0
A239: 5 | B239: =AutoNumberingFormat(B237,A239) -> C2.D.3.b.1.f) | C239: =CONCATENATE("Any other items to complete installation of ",B232) -> Any other items to complete installation of C2.D.3.b.1)
A241: 4 | B241: =AutoNumberingFormat(B239,A241) -> C2.D.3.b.2) | C241: Pole
A242: 5 | B242: =AutoNumberingFormat(B241,A242) -> C2.D.3.b.2.a) | C242: 1.5m Stainless Steel with mounting plate | D242: No | E242: =E202 -> 2 | H242: 0 | I242: 0
A243: 5 | B243: =AutoNumberingFormat(B242,A243) -> C2.D.3.b.2.b) | C243: Stainless Pole-top end cap (half balls, with mounting bracket, and wiring holes) | D243: No | E243: =E242 -> 2 | H243: 0 | I243: 0
A244: 5 | B244: C2.D.3.b.2.c) | C244: Base plate mount cover (purpose made) | D244: No | E244: =E243 -> 2 | H244: 0 | I244: 0
A245: 5 | B245: C2.D.3.b.2.d) | C245: Sundry Installation Material | D245: Sum | E245: =IF(E244=0,0,1) -> 1 | H245: 0 | I245: 0
A247: 5 | B247: =AutoNumberingFormat(B245,A247) -> C2.D.3.b.2.e) | C247: =CONCATENATE("Any other items to complete installation of ",B241) -> Any other items to complete installation of C2.D.3.b.2)
A249: 4 | B249: =AutoNumberingFormat(B245,A249) -> C2.D.3.b.3) | C249: Barrier
A250: 5 | B250: =AutoNumberingFormat(B249,A250) -> C2.D.3.b.3.a) | C250: Boom Gate Cabinet | D250: No | E250: ='Quantity Matrix'!AD18 -> 2 | H250: 0 | I250: 0
A251: 5 | B251: =AutoNumberingFormat(B250,A251) -> C2.D.3.b.3.b) | C251: Boom Gate Motor | D251: No | E251: =E250 -> 2 | H251: 0 | I251: 0
A252: 5 | B252: C2.D.3.b.3.c) | C252: Boom Gate Controller | D252: No | E252: =E251 -> 2 | H252: 0 | I252: 0
A253: 5 | B253: C2.D.3.b.3.d) | C253: Boom Gate Battery Backup | D253: No | E253: =E252 -> 2 | H253: 0 | I253: 0
A254: 5 | B254: C2.D.3.b.3.e) | C254: 4.5m Aluminium Arm (Straight) | D254: No | E254: =E252 -> 2 | H254: 0 | I254: 0
A255: 5 | B255: C2.D.3.b.3.f) | C255: 4.5m Aluminium Arm (Articulated) | D255: No | E255: =E254 -> 2 | H255: 0 | I255: 0
A256: 5 | B256: C2.D.3.b.3.g) | C256: Sundry Installation Material | D256: Sum | E256: =IF(E254=0,0,1) -> 1 | H256: 0 | I256: 0
A258: 5 | B258: =AutoNumberingFormat(B256,A258) -> C2.D.3.b.3.h) | C258: =CONCATENATE("Any other items to complete installation of ",B249) -> Any other items to complete installation of C2.D.3.b.3)
A260: 4 | B260: =AutoNumberingFormat(B256,A260) -> C2.D.3.b.4) | C260: Concrete Plinths
A261: 5 | B261: =AutoNumberingFormat(B260,A261) -> C2.D.3.b.4.a) | C261: Cage bolts and sleeves (per set) | D261: No | E261: =E242+E250 -> 4 | H261: 0 | I261: 0
A262: 5 | B262: =AutoNumberingFormat(B261,A262) -> C2.D.3.b.4.b) | C262: Excavation (0.5 m³ per set) | D262: m³ | E262: =E261*0.5 -> 2 | H262: 0 | I262: 0
A263: 5 | B263: =AutoNumberingFormat(B262,A263) -> C2.D.3.b.4.c) | C263: 25 MPa Concrete (0.5 m³ per set) | D263: m³ | E263: =E261*0.5 -> 2 | H263: 0 | I263: 0
A264: 5 | B264: C2.D.3.b.4.d) | C264: Sundry installation materials | D264: Sum | E264: =IF(E263=0,0,1) -> 1 | H264: 0 | I264: 0
... 120 more rows

Sheet MFK (hidden)
B1: ='P''s & G''s'!B1:H1 -> CITY OF JOHANNESBURG
B2: ='P''s & G''s'!B2:H2 -> CONTRACT NO. JDA-WP 15K-01
B4: ='P''s & G''s'!B4:H4 -> THE DESIGN, BUILD, AND MAINTENANCE OF AN
B5: ='P''s & G''s'!B5:H5 -> AUTOMATED FARE COLLECTION SYSTEM
B6: ='P''s & G''s'!B6:H6 -> FOR REA VAYA AND METROBUS FOR A 8 YEAR PERIOD
B7: ='P''s & G''s'!B7:H7 -> 
B8: ="SCHEDULE - " & SUBSTITUTE(B13,")","") & " - " & C13 -> SCHEDULE - C2.E - D&B PERIOD: MOBILE FARE KIOSK
B10: ITEM | C10: DESCRIPTION OF ITEM | D10: UNIT | E10: QUANTITY | F10: SUPPLY | G10: INSTALL | H10: RATE | I10: AMOUNT
C12: The rates to be filled in hereunder must make provision for all specified equipment, associated materials, integration, and systems in order to execute the complete works as specified. | J12: =FindDuplicates(B13:B159) -> Numbering is okay
A13: 1 | B13: =SUMMARY!B16 -> C2.E) | C13: =SUMMARY!C16 -> D&B PERIOD: MOBILE FARE KIOSK
A15: 2 | B15: =AutoNumberingFormat(B13,A15) -> C2.E.1) | C15: =CONCATENATE("Mobile Fare Kiosk (For a Single Section of type ",'Quantity Matrix'!A19,")") -> Mobile Fare Kiosk (For a Single Section of type Vehicles - Mobile Kiosk) | I15: =IF(D15="","",H15*#REF!) -> 
H16: =IF($D16="","",SUM(F16:G16)) ->  | I16: =IF($D16="","",$E16*H16) -> 
A17: 3 | B17: =AutoNumberingFormat(B15,A17) -> C2.E.1.a) | C17: Vehicle
A19: 4 | B19: =AutoNumberingFormat(B17,A19) -> C2.E.1.a.1) | C19: Panel Van
A20: 5 | B20: =AutoNumberingFormat(B19,A20) -> C2.E.1.a.1.a) | C20: Standard Panel Van Bus (Sprinter type or equivalent panel van with 10m3 cargo space, with high roof, and automatic gearbox) | D20: No | E20: 1 | H20: =IF(D20="","",SUM(F20:G20)) -> 0 | I20: =IF(AND(E20=0,D20<>""),"Rate Only",IF(D20="","",$E20*H20)) -> 0
A21: 5 | B21: C2.E.1.a.1.b) | C21: Mobile Office Vehicle Retrofit (Purpose made for retail purposes, able to accommodate 2 people and equipment listed below with regard to weight, space, safety, security, enclosures, and road worthiness) | D21: No | E21: =E20 -> 1 | H21: 0 | I21: =IF(AND(E21=0,D21<>""),"Rate Only",IF(D21="","",$E21*H21)) -> 0
A22: 5 | B22: C2.E.1.a.1.c) | C22: Padded Chairs (2 chairs per trailer) - Including Securing straps/mechanism for Transport | D22: No | E22: =E21*2 -> 2 | H22: 0 | I22: =IF(AND(E22=0,D22<>""),"Rate Only",IF(D22="","",$E22*H22)) -> 0
A23: 5 | B23: C2.E.1.a.1.d) | C23: RRT Branding Allowance per Vehicle | D23: No | E23: =E21 -> 1 | H23: 0 | I23: =IF(AND(E23=0,D23<>""),"Rate Only",IF(D23="","",$E23*H23)) -> 0
I24: =IF(AND(E24=0,D24<>""),"Rate Only",IF($D24="","",$E24*H24)) -> 
A25: 5 | B25: =AutoNumberingFormat(B23,A25) -> C2.E.1.a.1.e) | C25: =CONCATENATE("Any other items to complete installation of ",B19) -> Any other items to complete installation of C2.E.1.a.1) | I25: =IF(AND(E25=0,D25<>""),"Rate Only",IF($D25="","",$E25*H25)) -> 
A27: 4 | B27: =AutoNumberingFormat(B25,A27) -> C2.E.1.a.2) | C27: Trailer
A28: 5 | B28: =AutoNumberingFormat(B27,A28) -> C2.E.1.a.2.a) | C28: Standard Insulated Trailer (8m3 cargo space) | D28: No | E28: 1 | H28: 0 | I28: =IF(AND(E28=0,D28<>""),"Rate Only",IF(D28="","",$E28*H28)) -> 0
A29: 5 | B29: C2.E.1.a.2.b) | C29: Mobile Office Trailer Retrofit (Purpose made for ablution, generator, and road worthiness) | D29: No | E29: =E28 -> 1 | H29: 0 | I29: =IF(AND(E29=0,D29<>""),"Rate Only",IF(D29="","",$E29*H29)) -> 0
A30: 5 | B30: C2.E.1.a.2.c) | C30: RRT Branding Allowance per Trailer | D30: No | E30: =E23 -> 1 | H30: 0 | I30: =IF(AND(E30=0,D30<>""),"Rate Only",IF(D30="","",$E30*H30)) -> 0
I31: =IF(AND(E31=0,D31<>""),"Rate Only",IF($D31="","",$E31*H31)) -> 
A32: 5 | B32: =AutoNumberingFormat(B30,A32) -> C2.E.1.a.2.d) | C32: =CONCATENATE("Any other items to complete installation of ",B27) -> Any other items to complete installation of C2.E.1.a.2) | I32: =IF(AND(E32=0,D32<>""),"Rate Only",IF($D32="","",$E32*H32)) -> 
I33: =IF(AND(E33=0,D33<>""),"Rate Only",IF($D33="","",$E33*H33)) -> 
A34: 4 | B34: =AutoNumberingFormat(B32,A34) -> C2.E.1.a.3) | C34: =CONCATENATE("Any other items to complete installation of ",B17) -> Any other items to complete installation of C2.E.1.a) | I34: =IF(AND(E34=0,D34<>""),"Rate Only",IF($D34="","",$E34*H34)) -> 
A36: 3 | B36: =AutoNumberingFormat(B34,A36) -> C2.E.1.b) | C36: Vehicle Wiring
A38: 4 | B38: =AutoNumberingFormat(B36,A38) -> C2.E.1.b.1) | C38: Data Wiring
A39: 5 | B39: =AutoNumberingFormat(B38,A39) -> C2.E.1.b.1.a) | C39: IP65 Rated Data Socket to External | D39: No | E39: 1 | H39: 0 | I39: =IF(AND(E39=0,D39<>""),"Rate Only",IF(D39="","",$E39*H39)) -> 0
A40: 5 | B40: =AutoNumberingFormat(B39,A40) -> C2.E.1.b.1.b) | C40: 30m CAT5E OUTDOOR Polyethylene Sheath Rated Retractable Data Reel for External Access (Accessible from IP65 external lockable compartment) | D40: No | E40: =IF(E39>0,1,0) -> 1 | H40: 0 | I40: =IF(AND(E40=0,D40<>""),"Rate Only",IF(D40="","",$E40*H40)) -> 0
A41: 5 | B41: =AutoNumberingFormat(B40,A41) -> C2.E.1.b.1.c) | C41: CAT5E OUTDOOR Polyethylene Sheath, Black Data Cabling (10 m per electronic device per Trailer) | D41: m | E41: =((E69+E82+E83+E85+E87+E90+E89+E92+IF(E97>0,1,0)+IF(E101>0,1,0))*10) -> 120 | H41: 0 | I41: =IF(AND(E41=0,D41<>""),"Rate Only",IF(D41="","",$E41*H41)) -> 0
A42: 5 | B42: C2.E.1.b.1.d) | C42: CAT5E Unshielded Twisted Pair (UTP) Ethernet Wall Outlet (2 per Terminal) | D42: No | E42: =(E92*2) -> 2 | H42: 0 | I42: =IF(AND(E42=0,D42<>""),"Rate Only",IF(D42="","",$E42*H42)) -> 0
A43: 5 | B43: C2.E.1.b.1.e) | C43: CAT5E Unshielded RJ45 Connector with Strain-Relief Boot (4 per Device) | D43: No | E43: =((E69+E82+E83+E85+E87+E90+E89+E92+IF(E97>0,1,0)+IF(E101>0,1,0))*4) -> 48 | H43: 0 | I43: =IF(AND(E43=0,D43<>""),"Rate Only",IF(D43="","",$E43*H43)) -> 0
I44: =IF(AND(E44=0,D44<>""),"Rate Only",IF($D44="","",$E44*H44)) -> 
A45: 5 | B45: =AutoNumberingFormat(B43,A45) -> C2.E.1.b.1.f) | C45: =CONCATENATE("Any other items to complete installation of ",B38) -> Any other items to complete installation of C2.E.1.b.1) | I45: =IF(AND(E45=0,D45<>""),"Rate Only",IF($D45="","",$E45*H45)) -> 
A47: 4 | B47: =AutoNumberingFormat(B45,A47) -> C2.E.1.b.2) | C47: Power Wiring
A48: 5 | B48: =AutoNumberingFormat(B47,A48) -> C2.E.1.b.2.a) | C48: 30m IP65 Rated Retractable Power Reel for Charging (Accessible from IP65 external lockable compartment) | D48: No | E48: =E39 -> 1 | H48: 0 | I48: =IF(AND(E48=0,D48<>""),"Rate Only",IF(D48="","",$E48*H48)) -> 0
A49: 5 | B49: =AutoNumberingFormat(B48,A49) -> C2.E.1.b.2.b) | C49: 3-Core 4mm2 (12 AWG) Cabtyre Power Cable (10 m per powered device per Mobile Kiosk) | D49: m | E49: =((E69+E82+E83+E85+E87+E90+E89+E92+IF(E97>0,1,0)+IF(E101>0,1,0)+E88+E75+E76+E77+E96)*10) -> 360 | H49: 0 | I49: 0
A50: 5 | B50: C2.E.1.b.2.c) | C50: 2-Core 25mm2 (4 AWG) Cable (2m per Battery, Generator, DB, and Charger/Regulator/Invertor) | D50: m | E50: =(E66+E65+E63+E52)*2 -> 26 | H50: 0 | I50: 0
A51: 5 | B51: C2.E.1.b.2.d) | C51: 25mm2 (4 AWG) Lug Cable Crimp Connector (2 per Battery, Inverter, Generator, and Charger/Regulator per trailer) | D51: No | E51: =(E68+E52+E66+E64)*2 -> 20 | H51: 0 | I51: 0
A52: 5 | B52: C2.E.1.b.2.e) | C52: Distribution Board with Switches/Breakers (complete with breakers and wiring) | D52: No | E52: =E21 -> 1 | H52: =IF(D52="","",SUM(F52:G52)) -> 0 | I52: 0
A53: 5 | B53: C2.E.1.b.2.f) | C53: 25mm PVC Reticulation Conduit (10m per DB Breaker (of which there is 7) per Mobile Kiosk | D53: m | E53: =E21*10*7 -> 70 | H53: 0 | I53: 0
A54: 5 | B54: C2.E.1.b.2.g) | C54: 25mm PVC Round Box outlets (10 per Mobile Kiosk) with 25mm glands | D54: No | E54: =E21*10 -> 10 | H54: 0 | I54: 0
A55: 5 | B55: C2.E.1.b.2.h) | C55: SANS 164-4 Dedicated Application (UPS/Flattened Earth) 16A 231V Power Outlet and Box Enclosure (9 per Mobile Kiosk) with 25mm glands | D55: No | E55: =E21*9 -> 9 | H55: 0 | I55: 0
A56: 5 | B56: =AutoNumberingFormat(B55,A56) -> C2.E.1.b.2.i) | C56: Lightswitch for use with Lights and Fans (3 per trailer, 3 per vehicle) Complete with Outlet Box | D56: No | E56: =E21*6 -> 6 | H56: 0 | I56: 0
I57: =IF(AND(E57=0,D57<>""),"Rate Only",IF($D57="","",$E57*H57)) -> 
A58: 5 | B58: =AutoNumberingFormat(B56,A58) -> C2.E.1.b.2.j) | C58: =CONCATENATE("Any other items to complete installation of ",B47) -> Any other items to complete installation of C2.E.1.b.2) | I58: =IF(AND(E58=0,D58<>""),"Rate Only",IF($D58="","",$E58*H58)) -> 
I59: =IF(AND(E59=0,D59<>""),"Rate Only",IF($D59="","",$E59*H59)) -> 
A60: 4 | B60: =AutoNumberingFormat(B58,A60) -> C2.E.1.b.3) | C60: =CONCATENATE("Any other items to complete installation of ",B36) -> Any other items to complete installation of C2.E.1.b) | I60: =IF(AND(E60=0,D60<>""),"Rate Only",IF($D60="","",$E60*H60)) -> 
A62: 3 | B62: =AutoNumberingFormat(B60,A62) -> C2.E.1.c) | C62: Vehicle Power
A63: 4 | B63: =AutoNumberingFormat(B62,A63) -> C2.E.1.c.1) | C63: 11HP Generator (10 hour backup) With Start-up through Relay Capability, With mounting Bracket | D63: No | E63: =E21 -> 1 | H63: 0 | I63: =IF(AND(E63=0,D63<>""),"Rate Only",IF(D63="","",$E63*H63)) -> 0
A64: 4 | B64: C2.E.1.c.2) | C64: Voltage Controlled Solid State Relay (Activating Generator when Batteries are discharged at a certain level) | D64: No | E64: =E63 -> 1 | H64: 0 | I64: 0
A65: 4 | B65: C2.E.1.c.3) | C65: 1000W Intelligent Battery Charger, Regulator, and Inverter (Mains and Generator) (Each battery charger should charge two batteries per trailer) | D65: No | E65: =(ROUNDUP((E66/E21)/2,0))*E21 -> 4 | H65: 0 | I65: 0
A66: 4 | B66: C2.E.1.c.4) | C66: Deep cycle battery (200 Ah) (7 for each trailer to accommodate 16 hours of operation) | D66: No | E66: =E21*7 -> 7 | H66: 0 | I66: 0
A67: 4 | B67: =AutoNumberingFormat(B66,A67) -> C2.E.1.c.5) | C67: Power Isolators (between battery, generator, inverter, db, and external power) | D67: No | E67: =E63*5 -> 5 | H67: 0 | I67: 0
A68: 4 | B68: C2.E.1.c.6) | C68: 2 Farad 24V Capacitor for peak load accommodation | D68: No | E68: =E21 -> 1 | H68: 0 | I68: 0
A69: 4 | B69: C2.E.1.c.7) | C69: Dual Conversion Online 1kVA Rackmountable UPS with Workstation Interface (For Workstation, Switch, 3G Communications, and GPS) | D69: No | E69: =E21 -> 1 | H69: 0 | I69: 0
A70: 4 | B70: =AutoNumberingFormat(B69,A70) -> C2.E.1.c.8) | C70: Retractable power reel for charging of Battery bank at Depot/Warehouse/Office (complete with IP65 external access) | D70: No | E70: =IF(E65>0,1,0) -> 1 | H70: 0 | I70: 0
I71: =IF(AND(E71=0,D71<>""),"Rate Only",IF($D71="","",$E71*H71)) -> 
A72: 4 | B72: =AutoNumberingFormat(B70,A72) -> C2.E.1.c.9) | C72: =CONCATENATE("Any other items to complete installation of ",B62) -> Any other items to complete installation of C2.E.1.c) | I72: =IF(AND(E72=0,D72<>""),"Rate Only",IF($D72="","",$E72*H72)) -> 
A74: 3 | B74: =AutoNumberingFormat(B72,A74) -> C2.E.1.d) | C74: Vehicle Lighting/Ventilation
A75: 4 | B75: =AutoNumberingFormat(B74,A75) -> C2.E.1.d.1) | C75: Internal CFL Lighting dome with Light (two per trailer, two per panel van) | D75: No | E75: =E21*4 -> 4 | H75: 0 | I75: =IF(AND(E75=0,D75<>""),"Rate Only",IF(D75="","",$E75*H75)) -> 0
A76: 4 | B76: =AutoNumberingFormat(B75,A76) -> C2.E.1.d.2) | C76: External CFL Lighting box with Light four per panel van, two per trailer) | D76: No | E76: =E21*8 -> 8 | H76: 0 | I76: =IF(AND(E76=0,D76<>""),"Rate Only",IF(D76="","",$E76*H76)) -> 0
A77: 4 | B77: =AutoNumberingFormat(B76,A77) -> C2.E.1.d.3) | C77: Fresh Air Circulation Fans (120mm) (four per trailer, four per panel van) | D77: No | E77: =E21*8 -> 8 | H77: 0 | I77: =IF(AND(E77=0,D77<>""),"Rate Only",IF(D77="","",$E77*H77)) -> 0
I78: =IF(AND(E78=0,D78<>""),"Rate Only",IF($D78="","",$E78*H78)) -> 
A79: 4 | B79: =AutoNumberingFormat(B77,A79) -> C2.E.1.d.4) | C79: =CONCATENATE("Any other items to complete installation of ",B74) -> Any other items to complete installation of C2.E.1.d) | I79: =IF(AND(E79=0,D79<>""),"Rate Only",IF($D79="","",$E79*H79)) -> 
A81: 3 | B81: =AutoNumberingFormat(B79,A81) -> C2.E.1.e) | C81: Vehicle Electronics
A82: 4 | B82: =AutoNumberingFormat(B81,A82) -> C2.E.1.e.1) | C82: Industrial Rated 8-Port 19" Mount/Bracket Managed Layer 3 Switch (Routing between 3G. Wi-Fi, and External Wiring Connection) | D82: No | E82: =E21 -> 1 | H82: 0 | I82: =IF(AND(E82=0,D82<>""),"Rate Only",IF(D82="","",$E82*H82)) -> 0
A83: 4 | B83: =AutoNumberingFormat(B82,A83) -> C2.E.1.e.2) | C83: Industrial Rated 3G Modem with 19" Rack Bracket and Antenna | D83: No | E83: =E21 -> 1 | H83: 0 | I83: =IF(AND(E83=0,D83<>""),"Rate Only",IF(D83="","",$E83*H83)) -> 0
A84: 4 | B84: =AutoNumberingFormat(B83,A84) -> C2.E.1.e.3) | C84: 1 Gigabyte 3G/HSPA Contract (for duration of contract) | D84: Month | E84: =E83*'Quantity Matrix'!$B$31*12 -> 90 | H84: =IF($D84="","",SUM(F84:G84)) -> 0 | I84: =IF(AND(E84=0,D84<>""),"Rate Only",IF($D84="","",$E84*H84)) -> 0
A85: 4 | B85: C2.E.1.e.4) | C85: Industrial Rated Wi-Fi Access Point with 19" Rack Bracket and Antenna | D85: No | E85: =E23 -> 1 | H85: =IF(D85="","",SUM(F85:G85)) -> 0 | I85: =IF(AND(E85=0,D85<>""),"Rate Only",IF(D85="","",$E85*H85)) -> 0
A86: 4 | B86: C2.E.1.e.5) | C86: Industrial Rated GPS/GNSS Module with 19" Rack Bracket and Antenna | D86: No | E86: =E85 -> 1 | H86: 0 | I86: 0
A87: 4 | B87: C2.E.1.e.6) | C87: Static Outdoor Dome Analogue Day/Night Camera (3 per Mobile Fare Kiosk) | D87: No | E87: =E21*3 -> 3 | H87: 0 | I87: 0
A88: 4 | B88: =AutoNumberingFormat(B87,A88) -> C2.E.1.e.7) | C88: Camera Switcmode Power Supply | D88: No | E88: =E87 -> 3 | H88: 0 | I88: 0
A89: 4 | B89: C2.E.1.e.8) | C89: Discrete Panic Button (with Communications Interface) | D89: No | E89: =E21 -> 1 | H89: 0 | I89: 0
A90: 4 | B90: C2.E.1.e.9) | C90: Industrial Temperature rated 19" Mount Workstation with SSD RAID 1 (Shock and Redundancy) Functionality | D90: No | E90: =E21 -> 1 | H90: 0 | I90: 0
A91: 4 | B91: =AutoNumberingFormat(B90,A91) -> C2.E.1.e.10) | C91: Ruggedized Lockable 19" Vertical Mounting Rack (6U) (1x Workstation, 1x Patch Panel, 1x Switch, 1x UPS, and 1x 3G Modem and Panic Button Interface) | D91: No | E91: =E21 -> 1 | H91: 0 | I91: 0
A92: 4 | B92: C2.E.1.e.11) | C92: Fare Processing Touch Screen Terminal (1 per Trailer) | D92: No | E92: =E21 -> 1 | H92: 0 | I92: 0
A93: 4 | B93: C2.E.1.e.12) | C93: Fare Processing Software License (1 per Terminal) | D93: No | E93: =E92 -> 1 | H93: 0 | I93: 0
A94: 4 | B94: C2.E.1.e.13) | C94: Windows Embedded Software License (1 per Terminal) | D94: No | E94: =E92 -> 1 | H94: 0 | I94: 0
A95: 4 | B95: C2.E.1.e.14) | C95: Mini USB Keyboard (1 per Terminal) | D95: No | E95: =E92 -> 1 | H95: 0 | I95: 0
A96: 4 | B96: C2.E.1.e.15) | C96: Thermal Printer (1 per Terminal) | D96: No | E96: =E92 -> 1 | H96: 0 | I96: 0
A97: 4 | B97: C2.E.1.e.16) | C97: Bank Approved Contact EMV Terminal (1 per Vehicle) | D97: Month | E97: =E92*'Quantity Matrix'!B32*12 -> 96 | H97: 0 | I97: 0
A98: 4 | B98: C2.E.1.e.17) | C98: Bank Approved Approved PIN-PAD with Contact and Contactless Interface for Client Side (1 per Vehicle) | D98: Month | E98: =E97 -> 96 | H98: 0 | I98: 0
A99: 4 | B99: C2.E.1.e.18) | C99: Cash Till/Drawer (1 per Terminal) | D99: No | E99: =E92 -> 1 | H99: 0 | I99: 0
A100: 4 | B100: C2.E.1.e.19) | C100: Client Facing Invoice Display (1 per Terminal) | D100: No | E100: =E92*1 -> 1 | H100: 0 | I100: 0
A101: 4 | B101: C2.E.1.e.20) | C101: Counting Drop Safe with Note Capacity of 1000 Notes and 1000 Coins (1 per Mobile Kiosk) | D101: Month | E101: =E21*'Quantity Matrix'!B32*12 -> 96 | H101: 0 | I101: 0
I102: =IF(AND(E102=0,D102<>""),"Rate Only",IF($D102="","",$E102*H102)) -> 
A103: 4 | B103: =AutoNumberingFormat(B101,A103) -> C2.E.1.e.21) | C103: =CONCATENATE("Any other items to complete installation of ",B81) -> Any other items to complete installation of C2.E.1.e) | I103: =IF(AND(E103=0,D103<>""),"Rate Only",IF($D103="","",$E103*H103)) -> 
C104: Vehicle Processor | D104: No | E104: 1 | H104: 0 | I104: =IF(AND(E104=0,D104<>""),"Rate Only",IF(D104="","",$E104*H104)) -> 0
C105: Vehicle Processor Bracket | D105: No | E105: 1 | H105: 0 | I105: =IF(AND(E105=0,D105<>""),"Rate Only",IF(D105="","",$E105*H105)) -> 0
C106: Antenna 3 in 1 | D106: No | E106: 1 | H106: 0 | I106: =IF(AND(E106=0,D106<>""),"Rate Only",IF(D106="","",$E106*H106)) -> 0
I107: =IF(AND(E107=0,D107<>""),"Rate Only",IF($D107="","",$E107*H107)) -> 
A108: 3 | B108: =AutoNumberingFormat(B103,A108) -> C2.E.1.f) | C108: =CONCATENATE("Any other items to complete installation of ",B15) -> Any other items to complete installation of C2.E.1) | I108: =IF(AND(E108=0,D108<>""),"Rate Only",IF($D108="","",$E108*H108)) -> 
I109: =IF(AND(E109=0,D109<>""),"Rate Only",IF(D109="","",$E109*H109)) -> 
A110: 2 | B110: =AutoNumberingFormat(B108,A110) -> C2.E.2) | C110: =CONCATENATE("Mobile Fare Kiosk (For the remaining Sections of type ",'Quantity Matrix'!A19,")") -> Mobile Fare Kiosk (For the remaining Sections of type Vehicles - Mobile Kiosk)
A111: 3 | B111: =AutoNumberingFormat(B110,A111) -> C2.E.2.a) | C111: =CONCATENATE("Remaining vehicles of type Mobile Fare Kiosk based on item Amount in ",B15) -> Remaining vehicles of type Mobile Fare Kiosk based on item Amount in C2.E.1) | D111: No | E111: ='Quantity Matrix'!B19-1 -> -1 | F111: =SUMPRODUCT($E15:$E110,F15:F110) -> 0 | G111: =SUMPRODUCT($E15:$E110,G15:G110) -> 0 | H111: =IF(D111="","",SUM(F111:G111)) -> 0 | I111: =IF($D111="","",$E111*H111) -> 0
I112: =IF(AND(E112=0,D112<>""),"Rate Only",IF(D112="","",$E112*H112)) -> 
A113: 2 | B113: =AutoNumberingFormat(B111,A113) -> C2.E.3) | C113: Commissioning and Documentation | H113: =IF($D113="","",SUM(F113:G113)) ->  | I113: =IF(AND(E113=0,D113<>""),"Rate Only",IF($D113="","",$E113*H113)) -> 
B114: =AutoNumberingFormat(B113,A114) -> 
A115: 3 | B115: =AutoNumberingFormat(B113,A115) -> C2.E.3.a) | C115: Testing & Commissioning
A116: 4 | B116: =AutoNumberingFormat(B115,A116) -> C2.E.3.a.1) | C116: Contractor’s Component Testing (labour and special test requirements) | D116: Sum | E116: 1 | H116: 0 | I116: 0
A117: 4 | B117: C2.E.3.a.2) | C117: Conduct FATs under Engineer's Supervision | D117: Sum | E117: =IF(E116=0,0,1) -> 1 | H117: 0 | I117: 0
A118: 4 | B118: C2.E.3.a.3) | C118: Conduct IFATs under Engineer's Supervision | D118: Sum | E118: =IF(E117=0,0,1) -> 1 | H118: 0 | I118: 0
A119: 4 | B119: C2.E.3.a.4) | C119: Conduct SATs under Engineer’s Supervision | D119: Sum | E119: =IF(E117=0,0,1) -> 1 | H119: =IF($D119="","",SUM(F119:G119)) -> 0 | I119: 0
A120: 4 | B120: C2.E.3.a.5) | C120: Conduct ISATs under Engineer’s Supervision | D120: Sum | E120: =IF(E118=0,0,1) -> 1 | H120: 0 | I120: 0
A121: 4 | B121: C2.E.3.a.6) | C121: Execute 30-day Trial Period | D121: Sum | E121: =IF(E119=0,0,1) -> 1 | H121: 0 | I121: 0
A123: 4 | B123: =AutoNumberingFormat(B121,A123) -> C2.E.3.a.7) | C123: =CONCATENATE("Any other items to complete installation of ",B115) -> Any other items to complete installation of C2.E.3.a)
B124: =AutoNumberingFormat(B121,A124) -> 
A125: 3 | B125: =AutoNumberingFormat(B121,A125) -> C2.E.3.b) | C125: Documentation
A126: 4 | B126: =AutoNumberingFormat(B125,A126) -> C2.E.3.b.1) | C126: Design | D126: % | E126: =SUM(I13:I123) -> 0 | F126: 0.01 | H126: 0.01 | I126: Rate Only
A127: 4 | B127: C2.E.3.b.2) | C127: FAT and IFAT Test Plan and Methods | D127: % | E127: =E126 -> 0 | F127: 0.0075 | H127: 0.0075 | I127: Rate Only
A128: 4 | B128: C2.E.3.b.3) | C128: SAT and ISAT Test Plan and Methods | D128: % | E128: 0 | F128: 0.0075 | H128: 0.0075 | I128: Rate Only
A129: 4 | B129: C2.E.3.b.4) | C129: As-Built | D129: % | E129: 0 | F129: 0.0075 | H129: 0.0075 | I129: Rate Only
A130: 4 | B130: C2.E.3.b.5) | C130: Operations | D130: % | E130: 0 | F130: 0.0025 | H130: 0.0025 | I130: Rate Only
A131: 4 | B131: C2.E.3.b.6) | C131: Maintenance | D131: % | E131: 0 | F131: 0.0025 | H131: 0.0025 | I131: Rate Only
A132: 4 | B132: C2.E.3.b.7) | C132: Training Manuals | D132: % | E132: 0 | F132: 0.0025 | H132: 0.0025 | I132: Rate Only
A134: 4 | B134: =AutoNumberingFormat(B132,A134) -> C2.E.3.b.8) | C134: =CONCATENATE("Any other items to complete installation of ",B125) -> Any other items to complete installation of C2.E.3.b)
A136: 3 | B136: =AutoNumberingFormat(B132,A136) -> C2.E.3.c) | C136: PED Certification
A137: 4 | B137: =AutoNumberingFormat(B136,A137) -> C2.E.3.c.1) | C137: Obtain and Provide PIN Entry Devices Certification | D137: Sum | E137: =IF(E129=0,0,1) -> 0 | H137: 0 | I137: Rate Only
A138: 4 | B138: =AutoNumberingFormat(B137,A138) -> C2.E.3.c.2) | C138: Revisions as required | D138: Sum | E138: =IF(E137=0,0,1) -> 0 | H138: 0 | I138: Rate Only
A140: 4 | B140: =AutoNumberingFormat(B138,A140) -> C2.E.3.c.3) | C140: =CONCATENATE("Any other items to complete installation of ",B136) -> Any other items to complete installation of C2.E.3.c)
A142: 3 | B142: =AutoNumberingFormat(B138,A142) -> C2.E.3.d) | C142: NDoT Certification
A143: 4 | B143: =AutoNumberingFormat(B142,A143) -> C2.E.3.d.1) | C143: Obtain and Provide NDoT AFC Data Structure Certification | D143: Sum | E143: =IF(E138=0,0,1) -> 0 | H143: 0 | I143: Rate Only
A144: 4 | B144: =AutoNumberingFormat(B143,A144) -> C2.E.3.d.2) | C144: Revisions as required | D144: Sum | E144: =IF(E143=0,0,1) -> 0 | H144: 0 | I144: Rate Only
A146: 4 | B146: =AutoNumberingFormat(B144,A146) -> C2.E.3.d.3) | C146: =CONCATENATE("Any other items to complete installation of ",B142) -> Any other items to complete installation of C2.E.3.d)
A148: 3 | B148: =AutoNumberingFormat(B146,A148) -> C2.E.3.e) | C148: =CONCATENATE("Any other items to complete installation of ",B113) -> Any other items to complete installation of C2.E.3)
A150: 2 | B150: =AutoNumberingFormat(B113,A150) -> C2.E.4) | C150: Any other items as may be necessary to complete the installation. | D150: Sum | E150: 1 | H150: =IF(D150="","",SUM(F150:G150)) -> 0 | I150: =IF(AND(E150=0,D150<>""),"Rate Only",IF($D150="","",$E150*H150)) -> 0
C151: Detail items below:
C152: ………………………………………………… | H152: =IF($D152="","",SUM(F152:G152)) ->  | I152: =IF(AND(E152=0,D152<>""),"Rate Only",IF($D152="","",$E152*H152)) -> 
C153: ………………………………………………… | H153: =IF($D153="","",SUM(F153:G153)) ->  | I153: =IF(AND(E153=0,D153<>""),"Rate Only",IF($D153="","",$E153*H153)) -> 
C154: ………………………………………………… | H154: =IF($D154="","",SUM(F154:G154)) ->  | I154: =IF(AND(E154=0,D154<>""),"Rate Only",IF($D154="","",$E154*H154)) -> 
C155: ………………………………………………… | H155: =IF($D155="","",SUM(F155:G155)) ->  | I155: =IF(AND(E155=0,D155<>""),"Rate Only",IF($D155="","",$E155*H155)) -> 
C158: =CONCATENATE(C13," TOTAL (Excluding VAT) CARRIED FORWARD TO SUMMARY)") -> D&B PERIOD: MOBILE FARE KIOSK TOTAL (Excluding VAT) CARRIED FORWARD TO SUMMARY) | I158: =SUM(I13:I155) -> 0

Sheet VHC
B1: ='P''s & G''s'!B1:H1 -> CITY OF JOHANNESBURG
B2: ='P''s & G''s'!B2:H2 -> CONTRACT NO. JDA-WP 15K-01
B4: ='P''s & G''s'!B4:H4 -> THE DESIGN, BUILD, AND MAINTENANCE OF AN
B5: ='P''s & G''s'!B5:H5 -> AUTOMATED FARE COLLECTION SYSTEM
B6: ='P''s & G''s'!B6:H6 -> FOR REA VAYA AND METROBUS FOR A 8 YEAR PERIOD
B7: ='P''s & G''s'!B7:H7 -> 
B8: ="SCHEDULE - " & SUBSTITUTE(B13,")","") & " - " & C13 -> SCHEDULE - C2.F - D&B PERIOD: VEHICLE EQUIPMENT
B10: ITEM | C10: DESCRIPTION OF ITEM | D10: UNIT | E10: QUANTITY | F10: SUPPLY | G10: INSTALL | H10: RATE | I10: AMOUNT
C12: The rates to be filled in hereunder must make provision for all specified equipment, associated materials, integration, and systems in order to execute the complete works as specified. | J12: =FindDuplicates(B13:B421) -> Numbering is okay
A13: 1 | B13: =SUMMARY!B17 -> C2.F) | C13: =SUMMARY!C17 -> D&B PERIOD: VEHICLE EQUIPMENT
A15: 2 | B15: =AutoNumberingFormat(B13,A15) -> C2.F.1) | C15: =CONCATENATE("Vehicle Fare Collection Systems (For a Single Section of type ",'Quantity Matrix'!A20,")") -> Vehicle Fare Collection Systems (For a Single Section of type Vehicles - Standard Bus) | I15: =IF(D15="","",H15*#REF!) -> 
H16: =IF($D16="","",SUM(F16:G16)) ->  | I16: =IF($D16="","",$E16*H16) -> 
A17: 3 | B17: =AutoNumberingFormat(B15,A17) -> C2.F.1.a) | C17: Fare Media Readers | I17: =IF($D17="","",$E17*H17) -> 
A18: 4 | B18: =AutoNumberingFormat(B17,A18) -> C2.F.1.a.1) | C18: EMV and Paypass/PayWave with NDoT functionality certified IP54 (1 per Vehicle) | D18: No | E18: ='Quantity Matrix'!H20 -> 1 | H18: 0 | I18: =IF(AND(E18=0,D18<>""),"Rate Only",IF($D18="","",$E18*H18)) -> 0
A19: 4 | B19: =AutoNumberingFormat(B18,A19) -> C2.F.1.a.2) | C19: Mounting Bracket for EMV/PayPass/PayWave/NDoT Reader on Pole (1 per reader) | D19: No | E19: =E18 -> 1 | H19: 0 | I19: 0
A20: 4 | B20: =AutoNumberingFormat(B19,A20) -> C2.F.1.a.3) | C20: Fare Collection Software License (1 per reader) | D20: No | E20: =IF(E19>0,1,0) -> 1 | H20: 0 | I20: 0
A21: 4 | B21: =AutoNumberingFormat(B20,A21) -> C2.F.1.a.4) | C21: 4m Stainless Steel Pole Mount with 6 bends (1 per reader, powder coated yellow) | D21: No | E21: =E18 -> 1 | H21: 0 | I21: 0
A22: 4 | B22: =AutoNumberingFormat(B21,A22) -> C2.F.1.a.5) | C22: Sundry Installation Material | D22: Sum | E22: =IF(E21=0,0,1) -> 1 | H22: 0 | I22: 0
A24: 4 | B24: =AutoNumberingFormat(B22,A24) -> C2.F.1.a.6) | C24: =CONCATENATE("Any other items to complete installation of ",B17) -> Any other items to complete installation of C2.F.1.a)
A26: 3 | B26: =AutoNumberingFormat(B24,A26) -> C2.F.1.b) | C26: Vehicle Processor (if not build into reader)
A27: 4 | B27: =AutoNumberingFormat(B26,A27) -> C2.F.1.b.1) | C27: Industrial Embedded Computer (1 per vehicle) | D27: No | E27: =IF(E18>0,1,0) -> 1 | H27: 0 | I27: 0
A28: 4 | B28: =AutoNumberingFormat(B27,A28) -> C2.F.1.b.2) | C28: Mounting Bracket for Industrial Embedded Computer (1 per IEC) | D28: No | E28: =E27 -> 1 | H28: 0 | I28: 0
A29: 4 | B29: C2.F.1.b.3) | C29: Vehicle Processor Software License (1 per Vehicle Processor) | D29: No | E29: =E27 -> 1 | H29: 0 | I29: 0
A30: 4 | B30: C2.F.1.b.4) | C30: Vehicle Processor Module (non-external preference) - Ethernet Module (1 per Vehicle Processor) | D30: No | E30: =E27 -> 1 | H30: 0 | I30: 0
A31: 4 | B31: C2.F.1.b.5) | C31: Vehicle Processor Module (non-external preference) - RS485 Module (1 per Vehicle Processor) | D31: No | E31: =E27 -> 1 | H31: 0 | I31: 0
A32: 4 | B32: C2.F.1.b.6) | C32: Vehicle Processor Module (non-external preference) - USB Module (1 per Vehicle Processor) | D32: No | E32: =E28 -> 1 | H32: 0 | I32: 0
A33: 4 | B33: C2.F.1.b.7) | C33: Vehicle Processor Module (non-external) - 256 GB Industrial Solid-State Drive (1 per Vehicle Processor) | D33: No | E33: =E27 -> 1 | H33: 0 | I33: 0
A34: 4 | B34: C2.F.1.b.8) | C34: Vehicle Processor Module (non-external) - 3G Module (1 per Vehicle Processor) | D34: No | E34: ='Quantity Matrix'!O19 -> 1 | H34: 0 | I34: 0
A35: 4 | B35: C2.F.1.b.9) | C35: 1 Gigabyte 3G/HSPA Contract (for duration of contract) | D35: Month | E35: =E34*'Quantity Matrix'!$B$31*12 -> 90 | H35: 0 | I35: 0
A36: 4 | B36: C2.F.1.b.10) | C36: Vehicle Processor Module (non-external) - GPS Module (1 per Vehicle Processor, complete with dead reckoning co-processor capability) | D36: No | E36: =E27 -> 1 | H36: 0 | I36: 0
A37: 4 | B37: C2.F.1.b.11) | C37: Vehicle Processor Module (non-external) - Wi-Fi Module (1 per Vehicle Processor) | D37: No | E37: =E27 -> 1 | H37: 0 | I37: 0
A38: 4 | B38: C2.F.1.b.12) | C38: Vehicle Processor Module (non-external) - I/O Module | D38: No | E38: =IF(E68>0,1,0) -> 1 | H38: 0 | I38: 0
A39: 4 | B39: C2.F.1.b.13) | C39: Sundry Installation Material | D39: Sum | E39: =IF(E38=0,0,1) -> 1 | H39: 0 | I39: 0
A41: 4 | B41: =AutoNumberingFormat(B39,A41) -> C2.F.1.b.14) | C41: =CONCATENATE("Any other items to complete installation of ",B26) -> Any other items to complete installation of C2.F.1.b)
A43: 3 | B43: =AutoNumberingFormat(B29,A43) -> C2.F.1.c) | C43: Antennae | H43: =IF($D43="","",SUM(F43:G43)) ->  | I43: =IF(AND(E43=0,D43<>""),"Rate Only",IF($D43="","",$E43*H43)) -> 
A44: 4 | B44: =AutoNumberingFormat(B43,A44) -> C2.F.1.c.1) | C44: High Gain Outdoor IP67 (after installation) WiFi Antennae (Complete with mounting plate/bracket, connector interface, and Seal) | D44: No | E44: =E37 -> 1 | H44: =IF($D44="","",SUM(F44:G44)) -> 0 | I44: =IF(AND(E44=0,D44<>""),"Rate Only",IF($D44="","",$E44*H44)) -> 0
A45: 4 | B45: C2.F.1.c.2) | C45: High Gain Outdoor IP67 (after installation) 3G / HSPA Antennae (Complete with mounting plate/bracket, connector interface, and Seal) | D45: No | E45: =E34 -> 1 | H45: =IF($D45="","",SUM(F45:G45)) -> 0 | I45: =IF(AND(E45=0,D45<>""),"Rate Only",IF($D45="","",$E45*H45)) -> 0
A46: 4 | B46: C2.F.1.c.3) | C46: High Gain Outdoor IP67 (after installation) GPS/GNSS Antennae (Complete with mounting plate/bracket, connector interface, and Seal) | D46: No | E46: =E36 -> 1 | H46: =IF($D46="","",SUM(F46:G46)) -> 0 | I46: =IF(AND(E46=0,D46<>""),"Rate Only",IF($D46="","",$E46*H46)) -> 0
A47: 4 | B47: C2.F.1.c.4) | C47: Sundry Installation Material | D47: Sum | E47: =IF(E46=0,0,1) -> 1 | H47: =IF($D47="","",SUM(F47:G47)) -> 0 | I47: =IF(AND(E47=0,D47<>""),"Rate Only",IF($D47="","",$E47*H47)) -> 0
A49: 4 | B49: =AutoNumberingFormat(B47,A49) -> C2.F.1.c.5) | C49: =CONCATENATE("Any other items to complete installation of ",B43) -> Any other items to complete installation of C2.F.1.c) | H49: =IF($D49="","",SUM(F49:G49)) ->  | I49: =IF(AND(E49=0,D49<>""),"Rate Only",IF($D49="","",$E49*H49)) -> 
A51: 3 | B51: =AutoNumberingFormat(B49,A51) -> C2.F.1.d) | C51: Vehicle Switch Fabric | H51: =IF($D51="","",SUM(F51:G51)) ->  | I51: =IF(AND(E51=0,D51<>""),"Rate Only",IF($D51="","",$E51*H51)) -> 
A52: 4 | B52: =AutoNumberingFormat(B51,A52) -> C2.F.1.d.1) | C52: Industrial 8-Port 100-Megabit (With Gigabit uplink, Power-over-Ethernet, M12 Connectors, and DIN rail Mounting Bracket) Layer 3 Switch (1 per Seven Ethernet Connections) | D52: No | E52: =ROUNDUP(SUM(E27,E18,E59,E68)/8,0) -> 1 | H52: =IF($D52="","",SUM(F52:G52)) -> 0 | I52: =IF(AND(E52=0,D52<>""),"Rate Only",IF($D52="","",$E52*H52)) -> 0
A53: 4 | B53: C2.F.1.d.2) | C53: Mounting Bracket for Industrial Switch (1 per Switch) | D53: No | E53: =E52 -> 1 | H53: =IF($D53="","",SUM(F53:G53)) -> 0 | I53: =IF(AND(E53=0,D53<>""),"Rate Only",IF($D53="","",$E53*H53)) -> 0
A54: 4 | B54: C2.F.1.d.3) | C54: Sundry Installation Material | D54: Sum | E54: =IF(E52=0,0,1) -> 1 | H54: =IF($D54="","",SUM(F54:G54)) -> 0 | I54: =IF(AND(E54=0,D54<>""),"Rate Only",IF($D54="","",$E54*H54)) -> 0
A56: 4 | B56: =AutoNumberingFormat(B54,A56) -> C2.F.1.d.4) | C56: =CONCATENATE("Any other items to complete installation of ",B51) -> Any other items to complete installation of C2.F.1.d) | H56: =IF($D56="","",SUM(F56:G56)) ->  | I56: =IF(AND(E56=0,D56<>""),"Rate Only",IF($D56="","",$E56*H56)) -> 
A58: 3 | B58: =AutoNumberingFormat(B56,A58) -> C2.F.1.e) | C58: Passenger Counting System | H58: =IF($D58="","",SUM(F58:G58)) ->  | I58: =IF(AND(E58=0,D58<>""),"Rate Only",IF($D58="","",$E58*H58)) -> 
A59: 4 | B59: =AutoNumberingFormat(B58,A59) -> C2.F.1.e.1) | C59: Overhead Passenger Counting Module (1 per Public Vehicle Entrance/Exit) | D59: No | E59: ='Quantity Matrix'!I20 -> 3 | H59: 0 | I59: 0
A60: 4 | B60: =AutoNumberingFormat(B59,A60) -> C2.F.1.e.2) | C60: Mounting bracket for Passenger Counting Module (1 per Passenger Counting Module) | D60: No | E60: =E59 -> 3 | H60: 0 | I60: 0
A61: 4 | B61: =AutoNumberingFormat(B60,A61) -> C2.F.1.e.3) | C61: Sundry Installation Material | D61: Sum | E61: =IF(E60=0,0,1) -> 1 | H61: 0 | I61: 0
A63: 4 | B63: =AutoNumberingFormat(B61,A63) -> C2.F.1.e.4) | C63: =CONCATENATE("Any other items to complete installation of ",B58) -> Any other items to complete installation of C2.F.1.e)
A65: 3 | B65: =AutoNumberingFormat(B63,A65) -> C2.F.1.f) | C65: Industrial I/O
A67: 4 | B67: =AutoNumberingFormat(B65,A67) -> C2.F.1.f.1) | C67: Industrial I/O Controller (if not built into Reader/Processor)
A68: 5 | B68: =AutoNumberingFormat(B67,A68) -> C2.F.1.f.1.a) | C68: IP Based PAC/PLC/IO Controller (DIN Rail Mountable preference) | D68: No | E68: =IF(E27>0,1,0) -> 1 | H68: 0 | I68: 0
A69: 5 | B69: =AutoNumberingFormat(B68,A69) -> C2.F.1.f.1.b) | C69: Primary Controller Software License | D69: No | E69: =E68 -> 1 | H69: 0 | I69: 0
A70: 5 | B70: =AutoNumberingFormat(B69,A70) -> C2.F.1.f.1.c) | C70: Expansion module for 12 Application Specific Controllers | D70: No | E70: =(E68-ROUNDUP((E68 - (SUM(E79,E86,E87))/24),0))+E68 -> 1 | H70: 0 | I70: 0
A71: 5 | B71: =AutoNumberingFormat(B70,A71) -> C2.F.1.f.1.d) | C71: Mounting Bracket for Controller and Application Specific Controllers (DIN Rails etc.) | D71: No | E71: =E68 -> 1 | H71: 0 | I71: 0
A72: 5 | B72: =AutoNumberingFormat(B71,A72) -> C2.F.1.f.1.e) | C72: Sundry Installation Material | D72: Sum | E72: =IF(E71=0,0,1) -> 1 | H72: 0 | I72: 0
A74: 5 | B74: =AutoNumberingFormat(B72,A74) -> C2.F.1.f.1.f) | C74: =CONCATENATE("Any other items to complete installation of ",B67) -> Any other items to complete installation of C2.F.1.f.1)
H75: =IF($D75="","",SUM(F75:G75)) ->  | I75: =IF(AND(E75=0,D75<>""),"Rate Only",IF($D75="","",$E75*H75)) -> 
A76: 4 | B76: =AutoNumberingFormat(B74,A76) -> C2.F.1.f.2) | C76: Application Specific Expansion Controllers
A78: 5 | B78: =AutoNumberingFormat(B76,A78) -> C2.F.1.f.2.a) | C78: Digital Input
A79: 6 | B79: =AutoNumberingFormat(B78,A79) -> C2.F.1.f.2.a.1) | C79: Input Module for Handling 8 Inputs (Min) | D79: No | E79: =ROUNDUP(SUM(E80:E80)/8,0) -> 1 | H79: 0 | I79: 0
A80: 6 | B80: C2.F.1.f.2.a.2) | C80: Ignition Switch Interface | D80: No | E80: =IF(E27>0,1,0) -> 1 | H80: 0 | I80: 0
A81: 6 | B81: C2.F.1.f.2.a.3) | C81: Sundry Installation Material | D81: Sum | E81: =IF(E79=0,0,1) -> 1 | H81: 0 | I81: 0
A83: 6 | B83: =AutoNumberingFormat(B81,A83) -> C2.F.1.f.2.a.4) | C83: =CONCATENATE("Any other items to complete installation of ",B78) -> Any other items to complete installation of C2.F.1.f.2.a)
A85: 5 | B85: =AutoNumberingFormat(B83,A85) -> C2.F.1.f.2.b) | C85: Communication
A86: 6 | B86: =AutoNumberingFormat(B85,A86) -> C2.F.1.f.2.b.1) | C86: RS485 Communications Modules | D86: No | E86: =IF(E68>0,ROUNDUP(E59/8,0),0) -> 1 | H86: 0 | I86: 0
A87: 6 | B87: =AutoNumberingFormat(B86,A87) -> C2.F.1.f.2.b.2) | C87: Ethernet Communications Modules | D87: No | E87: =E68 -> 1 | H87: 0 | I87: 0
A88: 6 | B88: C2.F.1.f.2.b.3) | C88: Sundry Installation Material | D88: Sum | E88: =IF(E87=0,0,1) -> 1 | H88: 0 | I88: 0
B89: =AutoNumberingFormat(B88,A89) -> 
A90: 6 | B90: =AutoNumberingFormat(B88,A90) -> C2.F.1.f.2.b.4) | C90: =CONCATENATE("Any other items to complete installation of ",B85) -> Any other items to complete installation of C2.F.1.f.2.b)
A92: 5 | B92: =AutoNumberingFormat(B90,A92) -> C2.F.1.f.2.c) | C92: =CONCATENATE("Any other items to complete installation of ",B76) -> Any other items to complete installation of C2.F.1.f.2)
A94: 4 | B94: =AutoNumberingFormat(B88,A94) -> C2.F.1.f.3) | C94: =CONCATENATE("Any other items to complete installation of ",B65) -> Any other items to complete installation of C2.F.1.f)
A96: 3 | B96: =AutoNumberingFormat(B94,A96) -> C2.F.1.g) | C96: Cable Harness
A98: 4 | B98: =AutoNumberingFormat(B96,A98) -> C2.F.1.g.1) | C98: Power Cable
A99: 5 | B99: =AutoNumberingFormat(B98,A99) -> C2.F.1.g.1.a) | C99: 24V Power Cable, SABS PVC/PVC to SANS 1017:2008 (1.5 mm² x 2 Core) | D99: m | E99: =(E59+E27+E18+E68+E70)*2 -> 14 | H99: 0 | I99: 0
A100: 5 | B100: =AutoNumberingFormat(B99,A100) -> C2.F.1.g.1.b) | C100: Supply 5A fusible link | D100: No | E100: =(E59+E27+E18+E68+E70) -> 7 | H100: 0 | I100: 0
A101: 5 | B101: =AutoNumberingFormat(B100,A101) -> C2.F.1.g.1.c) | C101: Heat shrink sleeves, insulated lugs per end | D101: No | E101: =(E59+E27+E18+E68+E70)*2 -> 14 | H101: 0 | I101: 0
A102: 5 | B102: C2.F.1.g.1.d) | C102: Sundry Installation Material | D102: Sum | E102: =IF(E101=0,0,1) -> 1 | H102: 0 | I102: 0
H103: =IF($D103="","",SUM(F103:G103)) ->  | I103: =IF(AND(E103=0,D103<>""),"Rate Only",IF($D103="","",$E103*H103)) -> 
A104: 5 | B104: =AutoNumberingFormat(B102,A104) -> C2.F.1.g.1.e) | C104: =CONCATENATE("Any other items to complete installation of ",B98) -> Any other items to complete installation of C2.F.1.g.1)
A106: 4 | B106: =AutoNumberingFormat(B102,A106) -> C2.F.1.g.2) | C106: Data Cable
A107: 5 | B107: =AutoNumberingFormat(B106,A107) -> C2.F.1.g.2.a) | C107: Biaxial-oriented Polyethylene Terephthalate (Mylar or equivalent) Insulated 4-Core Data Cable, SABS PVC/PVC to SANS 1017:2008 1.5 mm² per core | D107: m | E107: =(SUM(E80:E80))*2 -> 2 | H107: 0 | I107: 0
A108: 5 | B108: C2.F.1.g.2.b) | C108: Biaxial-oriented Polyethylene Terephthalate (Mylar or equivalent) Insulated RS485 Data Cable, SABS PVC/PVC to SANS 1017:2008 1.5 mm² per core | D108: m | E108: =SUM(E86:E86,E31)*8 -> 16 | H108: 0 | I108: 0
A109: 5 | B109: C2.F.1.g.2.c) | C109: CAT5E Screened Foiled Twisted Pair Outdoor Rated (or Direct Burial Rated) Ethernet Solid Cabling (6m per Ethernet device) | D109: m | E109: =E52*8*6 -> 48 | H109: 0 | I109: 0
A110: 5 | B110: C2.F.1.g.2.d) | C110: RG-58 Flexible Coaxial Low-Loss Cable (Antennas) (3m per Antenna per vehicle) | D110: m | E110: =SUM(E44:E46)*3 -> 9 | H110: 0 | I110: 0
A111: 5 | B111: C2.F.1.g.2.e) | C111: Sundry Installation Material | D111: Sum | E111: =IF(E110=0,0,1) -> 1 | H111: 0 | I111: 0
A113: 5 | B113: =AutoNumberingFormat(B111,A113) -> C2.F.1.g.2.f) | C113: =CONCATENATE("Any other items to complete installation of ",B106) -> Any other items to complete installation of C2.F.1.g.2)
B114: =AutoNumberingFormat(B111,A114) -> 
A115: 4 | B115: =AutoNumberingFormat(B111,A115) -> C2.F.1.g.3) | C115: Cable end terminators/connectors
A116: 5 | B116: =AutoNumberingFormat(B115,A116) -> C2.F.1.g.3.a) | C116: Supply industrial data connectors with dust protection shroud and secure fastening mechanism as required per end | D116: No | E116: =(+E59+E27+E18)*2 -> 10 | H116: 0 | I116: 0
A117: 5 | B117: =AutoNumberingFormat(B116,A117) -> C2.F.1.g.3.b) | C117: M12 Ethernet Connector | D117: No | E117: =E52*8 -> 8 | H117: 0 | I117: 0
A118: 5 | B118: C2.F.1.g.3.c) | C118: Termination labour | D118: No | E118: =E116 -> 10 | H118: 0 | I118: 0
A120: 5 | B120: =AutoNumberingFormat(B118,A120) -> C2.F.1.g.3.d) | C120: =CONCATENATE("Any other items to complete installation of ",B115) -> Any other items to complete installation of C2.F.1.g.3)
A122: 4 | B122: =AutoNumberingFormat(B118,A122) -> C2.F.1.g.4) | C122: Cable Harness Sheath
A123: 5 | B123: =AutoNumberingFormat(B122,A123) -> C2.F.1.g.4.a) | C123: Braided stainless steel wire mesh, connected to ground | D123: m | E123: =IF(E111=0,0,12) -> 12 | H123: 0 | I123: 0
A124: 5 | B124: =AutoNumberingFormat(B123,A124) -> C2.F.1.g.4.b) | C124: Sundry Installation Material | D124: Sum | E124: =IF(E123=0,0,1) -> 1 | H124: 0 | I124: 0
A126: 5 | B126: =AutoNumberingFormat(B124,A126) -> C2.F.1.g.4.c) | C126: =CONCATENATE("Any other items to complete installation of ",B122) -> Any other items to complete installation of C2.F.1.g.4)
A128: 4 | B128: =AutoNumberingFormat(B124,A128) -> C2.F.1.g.5) | C128: =CONCATENATE("Any other items to complete installation of ",B96) -> Any other items to complete installation of C2.F.1.g)
H129: =IF($D129="","",SUM(F129:G129)) ->  | I129: =IF(AND(E129=0,D129<>""),"Rate Only",IF($D129="","",$E129*H129)) -> 
A130: 3 | B130: =AutoNumberingFormat(B126,A130) -> C2.F.1.h) | C130: =CONCATENATE("Any other items to complete installation of ",B15) -> Any other items to complete installation of C2.F.1)
A132: 2 | B132: =AutoNumberingFormat(B118,A132) -> C2.F.2) | C132: =CONCATENATE("Vehicle Fare Collection Systems (For the remaining Sections of type ",'Quantity Matrix'!A20,")") -> Vehicle Fare Collection Systems (For the remaining Sections of type Vehicles - Standard Bus)
A133: 3 | B133: =AutoNumberingFormat(B132,A133) -> C2.F.2.a) | C133: =CONCATENATE("Remaining Vehicles with Vehicle Fare Collection Systems based on items Amount in ",B15) -> Remaining Vehicles with Vehicle Fare Collection Systems based on items Amount in C2.F.1) | D133: No | E133: ='Quantity Matrix'!B20-1 -> 329 | F133: =SUMPRODUCT($E15:$E132,F15:F132) -> 0 | G133: =SUMPRODUCT($E15:$E132,G15:G132) -> 0 | H133: =IF($D133="","",SUM(F133:G133)) -> 0 | I133: 0
H134: =IF($D134="","",SUM(F134:G134)) -> 
A135: 2 | B135: =AutoNumberingFormat(B133,A135) -> C2.F.3) | C135: =CONCATENATE("Vehicle Fare Collection Systems (For a Single Section of type ",'Quantity Matrix'!A21,")") -> Vehicle Fare Collection Systems (For a Single Section of type Vehicles - Articulated Bus) | I135: =IF(D135="","",H135*#REF!) -> 
H136: =IF($D136="","",SUM(F136:G136)) ->  | I136: =IF($D136="","",$E136*H136) -> 
A137: 3 | B137: =AutoNumberingFormat(B135,A137) -> C2.F.3.a) | C137: Fare Media Readers | I137: =IF($D137="","",$E137*H137) -> 
A138: 4 | B138: =AutoNumberingFormat(B137,A138) -> C2.F.3.a.1) | C138: EMV and Paypass/PayWave with NDoT functionality certified IP54 (1 per Vehicle) | D138: No | E138: ='Quantity Matrix'!H21 -> 1 | H138: 0 | I138: =IF(AND(E138=0,D138<>""),"Rate Only",IF($D138="","",$E138*H138)) -> 0
A139: 4 | B139: =AutoNumberingFormat(B138,A139) -> C2.F.3.a.2) | C139: Mounting Bracket for EMV/PayPass/PayWave/NDoT Reader on Pole (1 per reader) | D139: No | E139: =E138 -> 1 | H139: 0 | I139: 0
A140: 4 | B140: =AutoNumberingFormat(B139,A140) -> C2.F.3.a.3) | C140: Fare Collection Software License (1 per reader) | D140: No | E140: =IF(E139>0,1,0) -> 1 | H140: 0 | I140: 0
A141: 4 | B141: =AutoNumberingFormat(B140,A141) -> C2.F.3.a.4) | C141: 4m Stainless Steel Pole Mount with 6 bends (1 per reader, powder coated yellow) | D141: No | E141: =E138 -> 1 | H141: 0 | I141: 0
A142: 4 | B142: =AutoNumberingFormat(B141,A142) -> C2.F.3.a.5) | C142: Sundry Installation Material | D142: Sum | E142: =IF(E141=0,0,1) -> 1 | H142: 0 | I142: 0
A144: 4 | B144: =AutoNumberingFormat(B142,A144) -> C2.F.3.a.6) | C144: =CONCATENATE("Any other items to complete installation of ",B137) -> Any other items to complete installation of C2.F.3.a)
A146: 3 | B146: =AutoNumberingFormat(B144,A146) -> C2.F.3.b) | C146: Vehicle Processor (if not build into reader)
A147: 4 | B147: =AutoNumberingFormat(B146,A147) -> C2.F.3.b.1) | C147: Industrial Embedded Computer (1 per vehicle) | D147: No | E147: =IF(E138>0,1,0) -> 1 | H147: 0 | I147: 0
A148: 4 | B148: =AutoNumberingFormat(B147,A148) -> C2.F.3.b.2) | C148: Mounting Bracket for Industrial Embedded Computer (1 per IEC) | D148: No | E148: =E147 -> 1 | H148: 0 | I148: 0
A149: 4 | B149: C2.F.3.b.3) | C149: Vehicle Processor Software License (1 per Vehicle Processor) | D149: No | E149: =E147 -> 1 | H149: 0 | I149: 0
A150: 4 | B150: C2.F.3.b.4) | C150: Vehicle Processor Module (non-external preference) - Ethernet Module (1 per Vehicle Processor) | D150: No | E150: =E147 -> 1 | H150: 0 | I150: 0
A151: 4 | B151: C2.F.3.b.5) | C151: Vehicle Processor Module (non-external preference) - RS485 Module (1 per Vehicle Processor) | D151: No | E151: =E147 -> 1 | H151: 0 | I151: 0
A152: 4 | B152: C2.F.3.b.6) | C152: Vehicle Processor Module (non-external preference) - USB Module (1 per Vehicle Processor) | D152: No | E152: =E148 -> 1 | H152: 0 | I152: 0
A153: 4 | B153: C2.F.3.b.7) | C153: Vehicle Processor Module (non-external) - 256 GB Industrial Solid-State Drive (1 per Vehicle Processor) | D153: No | E153: =E147 -> 1 | H153: 0 | I153: 0
A154: 4 | B154: C2.F.3.b.8) | C154: Vehicle Processor Module (non-external) - 3G Module (1 per Vehicle Processor) | D154: No | E154: ='Quantity Matrix'!O21 -> 1 | H154: 0 | I154: 0
A155: 4 | B155: C2.F.3.b.9) | C155: 1 Gigabyte 3G/HSPA Contract (for duration of contract) | D155: Month | E155: =E154*'Quantity Matrix'!$B$31*12 -> 90 | H155: 0 | I155: 0
A156: 4 | B156: C2.F.3.b.10) | C156: Vehicle Processor Module (non-external) - GPS Module (1 per Vehicle Processor, complete with dead reckoning co-processor capability) | D156: No | E156: =E147 -> 1 | H156: 0 | I156: 0
A157: 4 | B157: C2.F.3.b.11) | C157: Vehicle Processor Module (non-external) - Wi-Fi Module (1 per Vehicle Processor) | D157: No | E157: =E147 -> 1 | H157: 0 | I157: 0
A158: 4 | B158: C2.F.3.b.12) | C158: Vehicle Processor Module (non-external) - I/O Module | D158: No | E158: =IF(E188>0,1,0) -> 1 | H158: 0 | I158: 0
A159: 4 | B159: C2.F.3.b.13) | C159: Sundry Installation Material | D159: Sum | E159: =IF(E158=0,0,1) -> 1 | H159: 0 | I159: 0
A161: 4 | B161: =AutoNumberingFormat(B159,A161) -> C2.F.3.b.14) | C161: =CONCATENATE("Any other items to complete installation of ",B146) -> Any other items to complete installation of C2.F.3.b)
A163: 3 | B163: =AutoNumberingFormat(B149,A163) -> C2.F.3.c) | C163: Antennae | H163: =IF($D163="","",SUM(F163:G163)) ->  | I163: =IF(AND(E163=0,D163<>""),"Rate Only",IF($D163="","",$E163*H163)) -> 
A164: 4 | B164: =AutoNumberingFormat(B163,A164) -> C2.F.3.c.1) | C164: High Gain Outdoor IP67 (after installation) WiFi Antennae (Complete with mounting plate/bracket, connector interface, and Seal) | D164: No | E164: =E157 -> 1 | H164: =IF($D164="","",SUM(F164:G164)) -> 0 | I164: =IF(AND(E164=0,D164<>""),"Rate Only",IF($D164="","",$E164*H164)) -> 0
A165: 4 | B165: C2.F.3.c.2) | C165: High Gain Outdoor IP67 (after installation) 3G / HSPA Antennae (Complete with mounting plate/bracket, connector interface, and Seal) | D165: No | E165: =E154 -> 1 | H165: =IF($D165="","",SUM(F165:G165)) -> 0 | I165: =IF(AND(E165=0,D165<>""),"Rate Only",IF($D165="","",$E165*H165)) -> 0
A166: 4 | B166: C2.F.3.c.3) | C166: High Gain Outdoor IP67 (after installation) GPS/GNSS Antennae (Complete with mounting plate/bracket, connector interface, and Seal) | D166: No | E166: =E156 -> 1 | H166: =IF($D166="","",SUM(F166:G166)) -> 0 | I166: =IF(AND(E166=0,D166<>""),"Rate Only",IF($D166="","",$E166*H166)) -> 0
A167: 4 | B167: C2.F.3.c.4) | C167: Sundry Installation Material | D167: Sum | E167: =IF(E166=0,0,1) -> 1 | H167: =IF($D167="","",SUM(F167:G167)) -> 0 | I167: =IF(AND(E167=0,D167<>""),"Rate Only",IF($D167="","",$E167*H167)) -> 0
A169: 4 | B169: =AutoNumberingFormat(B167,A169) -> C2.F.3.c.5) | C169: =CONCATENATE("Any other items to complete installation of ",B163) -> Any other items to complete installation of C2.F.3.c) | H169: =IF($D169="","",SUM(F169:G169)) ->  | I169: =IF(AND(E169=0,D169<>""),"Rate Only",IF($D169="","",$E169*H169)) -> 
A171: 3 | B171: =AutoNumberingFormat(B169,A171) -> C2.F.3.d) | C171: Vehicle Switch Fabric | H171: =IF($D171="","",SUM(F171:G171)) ->  | I171: =IF(AND(E171=0,D171<>""),"Rate Only",IF($D171="","",$E171*H171)) -> 
A172: 4 | B172: =AutoNumberingFormat(B171,A172) -> C2.F.3.d.1) | C172: Industrial 8-Port 100-Megabit (With Gigabit uplink, Power-over-Ethernet, M12 Connectors, and DIN rail Mounting Bracket) Layer 3 Switch (1 per Seven Ethernet Connections) | D172: No | E172: =ROUNDUP(SUM(E147,E138,E179,E188)/8,0) -> 1 | H172: =IF($D172="","",SUM(F172:G172)) -> 0 | I172: =IF(AND(E172=0,D172<>""),"Rate Only",IF($D172="","",$E172*H172)) -> 0
A173: 4 | B173: C2.F.3.d.2) | C173: Mounting Bracket for Industrial Switch (1 per Switch) | D173: No | E173: =E172 -> 1 | H173: =IF($D173="","",SUM(F173:G173)) -> 0 | I173: =IF(AND(E173=0,D173<>""),"Rate Only",IF($D173="","",$E173*H173)) -> 0
A174: 4 | B174: C2.F.3.d.3) | C174: Sundry Installation Material | D174: Sum | E174: =IF(E172=0,0,1) -> 1 | H174: =IF($D174="","",SUM(F174:G174)) -> 0 | I174: =IF(AND(E174=0,D174<>""),"Rate Only",IF($D174="","",$E174*H174)) -> 0
A176: 4 | B176: =AutoNumberingFormat(B174,A176) -> C2.F.3.d.4) | C176: =CONCATENATE("Any other items to complete installation of ",B171) -> Any other items to complete installation of C2.F.3.d) | H176: =IF($D176="","",SUM(F176:G176)) ->  | I176: =IF(AND(E176=0,D176<>""),"Rate Only",IF($D176="","",$E176*H176)) -> 
A178: 3 | B178: =AutoNumberingFormat(B176,A178) -> C2.F.3.e) | C178: Passenger Counting System | H178: =IF($D178="","",SUM(F178:G178)) -> 
A179: 4 | B179: =AutoNumberingFormat(B178,A179) -> C2.F.3.e.1) | C179: Overhead Passenger Counting Module (1 per Public Vehicle Entrance/Exit) | D179: No | E179: ='Quantity Matrix'!I21 -> 4 | H179: 0 | I179: 0
A180: 4 | B180: =AutoNumberingFormat(B179,A180) -> C2.F.3.e.2) | C180: Mounting bracket for Passenger Counting Module (1 per Passenger Counting Module) | D180: No | E180: =E179 -> 4 | H180: 0 | I180: 0
A181: 4 | B181: =AutoNumberingFormat(B180,A181) -> C2.F.3.e.3) | C181: Sundry Installation Material | D181: Sum | E181: =IF(E180=0,0,1) -> 1 | H181: 0 | I181: 0
A183: 4 | B183: =AutoNumberingFormat(B181,A183) -> C2.F.3.e.4) | C183: =CONCATENATE("Any other items to complete installation of ",B178) -> Any other items to complete installation of C2.F.3.e)
A185: 3 | B185: =AutoNumberingFormat(B183,A185) -> C2.F.3.f) | C185: Industrial I/O
A187: 4 | B187: =AutoNumberingFormat(B185,A187) -> C2.F.3.f.1) | C187: Industrial I/O Controller (if not built into Reader/Processor)
A188: 5 | B188: =AutoNumberingFormat(B187,A188) -> C2.F.3.f.1.a) | C188: IP Based PAC/PLC/IO Controller (DIN Rail Mountable preference) | D188: No | E188: =IF(E147>0,1,0) -> 1 | H188: 0 | I188: 0
A189: 5 | B189: =AutoNumberingFormat(B188,A189) -> C2.F.3.f.1.b) | C189: Primary Controller Software License | D189: No | E189: =E188 -> 1 | H189: 0 | I189: 0
A190: 5 | B190: =AutoNumberingFormat(B189,A190) -> C2.F.3.f.1.c) | C190: Expansion module for 12 Application Specific Controllers | D190: No | E190: =(E188-ROUNDUP((E188 - (SUM(E199,E206,E207))/24),0))+E188 -> 1 | H190: 0 | I190: 0
A191: 5 | B191: =AutoNumberingFormat(B190,A191) -> C2.F.3.f.1.d) | C191: Mounting Bracket for Controller and Application Specific Controllers (DIN Rails etc.) | D191: No | E191: =E188 -> 1 | H191: 0 | I191: 0
A192: 5 | B192: =AutoNumberingFormat(B191,A192) -> C2.F.3.f.1.e) | C192: Sundry Installation Material | D192: Sum | E192: =IF(E191=0,0,1) -> 1 | H192: 0 | I192: 0
A194: 5 | B194: =AutoNumberingFormat(B192,A194) -> C2.F.3.f.1.f) | C194: =CONCATENATE("Any other items to complete installation of ",B187) -> Any other items to complete installation of C2.F.3.f.1)
H195: =IF($D195="","",SUM(F195:G195)) -> 
A196: 4 | B196: =AutoNumberingFormat(B194,A196) -> C2.F.3.f.2) | C196: Application Specific Expansion Controllers
A198: 5 | B198: =AutoNumberingFormat(B196,A198) -> C2.F.3.f.2.a) | C198: Digital Input
A199: 6 | B199: =AutoNumberingFormat(B198,A199) -> C2.F.3.f.2.a.1) | C199: Input Module for Handling 8 Inputs (Min) | D199: No | E199: =ROUNDUP(SUM(E200:E200)/8,0) -> 1 | H199: 0 | I199: 0
A200: 6 | B200: C2.F.3.f.2.a.2) | C200: Ignition Switch Interface | D200: No | E200: =IF(E147>0,1,0) -> 1 | H200: 0 | I200: 0
A201: 6 | B201: C2.F.3.f.2.a.3) | C201: Sundry Installation Material | D201: Sum | E201: =IF(E199=0,0,1) -> 1 | H201: 0 | I201: 0
A203: 6 | B203: =AutoNumberingFormat(B201,A203) -> C2.F.3.f.2.a.4) | C203: =CONCATENATE("Any other items to complete installation of ",B198) -> Any other items to complete installation of C2.F.3.f.2.a)
A205: 5 | B205: =AutoNumberingFormat(B203,A205) -> C2.F.3.f.2.b) | C205: Communication
A206: 6 | B206: =AutoNumberingFormat(B205,A206) -> C2.F.3.f.2.b.1) | C206: RS485 Communications Modules | D206: No | E206: =IF(E188>0,ROUNDUP(E179/8,0),0) -> 1 | H206: 0 | I206: 0
A207: 6 | B207: =AutoNumberingFormat(B206,A207) -> C2.F.3.f.2.b.2) | C207: Ethernet Communications Modules | D207: No | E207: =E188 -> 1 | H207: 0 | I207: 0
A208: 6 | B208: C2.F.3.f.2.b.3) | C208: Sundry Installation Material | D208: Sum | E208: =IF(E207=0,0,1) -> 1 | H208: 0 | I208: 0
A210: 6 | B210: =AutoNumberingFormat(B208,A210) -> C2.F.3.f.2.b.4) | C210: =CONCATENATE("Any other items to complete installation of ",B205) -> Any other items to complete installation of C2.F.3.f.2.b)
A212: 5 | B212: =AutoNumberingFormat(B210,A212) -> C2.F.3.f.2.c) | C212: =CONCATENATE("Any other items to complete installation of ",B196) -> Any other items to complete installation of C2.F.3.f.2)
A214: 4 | B214: =AutoNumberingFormat(B208,A214) -> C2.F.3.f.3) | C214: =CONCATENATE("Any other items to complete installation of ",B185) -> Any other items to complete installation of C2.F.3.f)
A216: 3 | B216: =AutoNumberingFormat(B214,A216) -> C2.F.3.g) | C216: Cable Harness
A218: 4 | B218: =AutoNumberingFormat(B216,A218) -> C2.F.3.g.1) | C218: Power Cable
A219: 5 | B219: =AutoNumberingFormat(B218,A219) -> C2.F.3.g.1.a) | C219: 24V Power Cable, SABS PVC/PVC to SANS 1017:2008 (1.5 mm² x 2 Core) | D219: m | E219: =(E179+E147+E138+E188+E190)*2 -> 16 | H219: 0 | I219: 0
A220: 5 | B220: =AutoNumberingFormat(B219,A220) -> C2.F.3.g.1.b) | C220: Supply 5A fusible link | D220: No | E220: =(E179+E147+E138+E188+E190) -> 8 | H220: 0 | I220: 0
A221: 5 | B221: =AutoNumberingFormat(B220,A221) -> C2.F.3.g.1.c) | C221: Heat shrink sleeves, insulated lugs per end | D221: No | E221: =(E179+E147+E138+E188+E190)*2 -> 16 | H221: 0 | I221: 0
A222: 5 | B222: C2.F.3.g.1.d) | C222: Sundry Installation Material | D222: Sum | E222: =IF(E221=0,0,1) -> 1 | H222: 0 | I222: 0
H223: =IF($D223="","",SUM(F223:G223)) -> 
A224: 5 | B224: =AutoNumberingFormat(B222,A224) -> C2.F.3.g.1.e) | C224: =CONCATENATE("Any other items to complete installation of ",B218) -> Any other items to complete installation of C2.F.3.g.1)
A226: 4 | B226: =AutoNumberingFormat(B222,A226) -> C2.F.3.g.2) | C226: Data Cable
A227: 5 | B227: =AutoNumberingFormat(B226,A227) -> C2.F.3.g.2.a) | C227: Biaxial-oriented Polyethylene Terephthalate (Mylar or equivalent) Insulated 4-Core Data Cable, SABS PVC/PVC to SANS 1017:2008 1.5 mm² per core | D227: m | E227: =(SUM(E200:E200))*2 -> 2 | H227: 0 | I227: 0
A228: 5 | B228: C2.F.3.g.2.b) | C228: Biaxial-oriented Polyethylene Terephthalate (Mylar or equivalent) Insulated RS485 Data Cable, SABS PVC/PVC to SANS 1017:2008 1.5 mm² per core | D228: m | E228: =SUM(E206:E206,E151)*8 -> 16 | H228: 0 | I228: 0
A229: 5 | B229: C2.F.3.g.2.c) | C229: CAT5E Screened Foiled Twisted Pair Outdoor Rated (or Direct Burial Rated) Ethernet Solid Cabling (6m per Ethernet device) | D229: m | E229: =E172*8*6 -> 48 | H229: 0 | I229: 0
A230: 5 | B230: C2.F.3.g.2.d) | C230: RG-58 Flexible Coaxial Low-Loss Cable (Antennas) (3m per Antenna per vehicle) | D230: m | E230: =SUM(E164:E166)*3 -> 9 | H230: 0 | I230: 0
A231: 5 | B231: C2.F.3.g.2.e) | C231: Sundry Installation Material | D231: Sum | E231: =IF(E230=0,0,1) -> 1 | H231: 0 | I231: 0
A233: 5 | B233: =AutoNumberingFormat(B231,A233) -> C2.F.3.g.2.f) | C233: =CONCATENATE("Any other items to complete installation of ",B226) -> Any other items to complete installation of C2.F.3.g.2)
B234: =AutoNumberingFormat(B231,A234) -> 
A235: 4 | B235: =AutoNumberingFormat(B231,A235) -> C2.F.3.g.3) | C235: Cable end terminators/connectors
A236: 5 | B236: =AutoNumberingFormat(B235,A236) -> C2.F.3.g.3.a) | C236: Supply industrial data connectors with dust protection shroud and secure fastening mechanism as required per end | D236: No | E236: =(+E179+E147+E138)*2 -> 12 | H236: 0 | I236: 0
A237: 5 | B237: =AutoNumberingFormat(B236,A237) -> C2.F.3.g.3.b) | C237: M12 Ethernet Connector | D237: No | E237: =E172*8 -> 8 | H237: 0 | I237: 0
A238: 5 | B238: C2.F.3.g.3.c) | C238: Termination labour | D238: No | E238: =E236 -> 12 | H238: 0 | I238: 0
A240: 5 | B240: =AutoNumberingFormat(B238,A240) -> C2.F.3.g.3.d) | C240: =CONCATENATE("Any other items to complete installation of ",B235) -> Any other items to complete installation of C2.F.3.g.3) | I240: =IF(AND(E240=0,D240<>""),"Rate Only",IF($D240="","",$E240*H240)) -> 
A242: 4 | B242: =AutoNumberingFormat(B238,A242) -> C2.F.3.g.4) | C242: Cable Harness Sheath
A243: 5 | B243: =AutoNumberingFormat(B242,A243) -> C2.F.3.g.4.a) | C243: Braided stainless steel wire mesh, connected to ground | D243: m | E243: =IF(E231=0,0,12) -> 12 | H243: 0 | I243: 0
A244: 5 | B244: =AutoNumberingFormat(B243,A244) -> C2.F.3.g.4.b) | C244: Sundry Installation Material | D244: Sum | E244: =IF(E243=0,0,1) -> 1 | H244: 0 | I244: 0
A246: 5 | B246: =AutoNumberingFormat(B244,A246) -> C2.F.3.g.4.c) | C246: =CONCATENATE("Any other items to complete installation of ",B242) -> Any other items to complete installation of C2.F.3.g.4)
A248: 4 | B248: =AutoNumberingFormat(B244,A248) -> C2.F.3.g.5) | C248: =CONCATENATE("Any other items to complete installation of ",B216) -> Any other items to complete installation of C2.F.3.g)
H249: =IF($D249="","",SUM(F249:G249)) -> 
A250: 3 | B250: =AutoNumberingFormat(B246,A250) -> C2.F.3.h) | C250: =CONCATENATE("Any other items to complete installation of ",B135) -> Any other items to complete installation of C2.F.3)
H251: =IF($D251="","",SUM(F251:G251)) -> 
A252: 2 | B252: =AutoNumberingFormat(B238,A252) -> C2.F.4) | C252: =CONCATENATE("Vehicle Fare Collection Systems (For the remaining Sections of type ",'Quantity Matrix'!A21,")") -> Vehicle Fare Collection Systems (For the remaining Sections of type Vehicles - Articulated Bus)
A253: 3 | B253: =AutoNumberingFormat(B252,A253) -> C2.F.4.a) | C253: =CONCATENATE("Remaining Vehicles with Vehicle Fare Collection Systems based on items Amount in ",B135) -> Remaining Vehicles with Vehicle Fare Collection Systems based on items Amount in C2.F.3) | D253: No | E253: ='Quantity Matrix'!B21-1 -> -1 | F253: =SUMPRODUCT($E135:$E252,F135:F252) -> 0 | G253: =SUMPRODUCT($E135:$E252,G135:G252) -> 0 | H253: =IF($D253="","",SUM(F253:G253)) -> 0 | I253: =IF(AND(E253=0,D253<>""),"Rate Only",IF($D253="","",$E253*H253)) -> 0
H254: =IF($D254="","",SUM(F254:G254)) -> 
A255: 2 | B255: =AutoNumberingFormat(B253,A255) -> C2.F.5) | C255: =CONCATENATE("Vehicle Fare Collection Systems (For a Single Section of type ",'Quantity Matrix'!A22,")") -> Vehicle Fare Collection Systems (For a Single Section of type Vehicles - Metrobus) | I255: =IF(D255="","",H255*#REF!) -> 
H256: =IF($D256="","",SUM(F256:G256)) ->  | I256: =IF($D256="","",$E256*H256) -> 
... 129 more rows

Sheet MMINT
B1: ='P''s & G''s'!B1:H1 -> CITY OF JOHANNESBURG
B2: ='P''s & G''s'!B2:H2 -> CONTRACT NO. JDA-WP 15K-01
B4: ='P''s & G''s'!B4:H4 -> THE DESIGN, BUILD, AND MAINTENANCE OF AN
B5: ='P''s & G''s'!B5:H5 -> AUTOMATED FARE COLLECTION SYSTEM
B6: ='P''s & G''s'!B6:H6 -> FOR REA VAYA AND METROBUS FOR A 8 YEAR PERIOD
B7: ='P''s & G''s'!B7:H7 -> 
B8: ="SCHEDULE - " & SUBSTITUTE(B13,")","") & " - " & C13 -> SCHEDULE - C2.G - D&B PERIOD: MAN, MACHINE INTERFACE EQUIPMENT
B10: ITEM | C10: DESCRIPTION OF ITEM | D10: UNIT | E10: QUANTITY | F10: SUPPLY | G10: INSTALL | H10: RATE | I10: AMOUNT
AI11: 0 | AL11: 0
C12: The rates to be filled in hereunder must make provision for all specified equipment, associated materials, integration, and systems in order to execute the complete works as specified. | J12: =FindDuplicates(B13:B820) -> Numbering is okay
A13: 1 | B13: =SUMMARY!B18 -> C2.G) | C13: =SUMMARY!C18 -> D&B PERIOD: MAN, MACHINE INTERFACE EQUIPMENT
A15: 2 | B15: =AutoNumberingFormat(B13,A15) -> C2.G.1) | C15: =CONCATENATE("Kiosk Terminals (For a Single Section of type ",'Quantity Matrix'!A6,")") -> Kiosk Terminals (For a Single Section of type Station Type A (One Platform, One Entrance, 5m, CVM))
B16: =AutoNumberingFormat(B14,A16) ->  | H16: =IF($D16="","",SUM(F16:G16)) ->  | I16: =IF($D16="","",$E16*H16) -> 
A17: 3 | B17: =AutoNumberingFormat(B15,A17) -> C2.G.1.a) | C17: Equipment | H17: =IF($D17="","",SUM(F17:G17)) ->  | I17: =IF(AND(E17=0,D17<>""),"Rate Only",IF($D17="","",$E17*H17)) -> 
A19: 4 | B19: =AutoNumberingFormat(B17,A19) -> C2.G.1.a.1) | C19: Fare Processing Terminal | H19: =IF($D19="","",SUM(F19:G19)) -> 
A20: 5 | B20: =AutoNumberingFormat(B19,A20) -> C2.G.1.a.1.a) | C20: Touch Screen Based Point-of-Sale Terminal (Proven use in Retail Space) | D20: No | E20: ='Quantity Matrix'!C6 -> 0 | H20: 0 | I20: Rate Only
A21: 5 | B21: =AutoNumberingFormat(B20,A21) -> C2.G.1.a.1.b) | C21: Client Facing Invoice Display (1 per Terminal) | D21: No | E21: =E20 -> 0 | H21: 0 | I21: Rate Only
A22: 5 | B22: =AutoNumberingFormat(B21,A22) -> C2.G.1.a.1.c) | C22: Terminal Operating System License (Windows Embedded or equivalent) | D22: No | E22: =E20 -> 0 | H22: 0 | I22: Rate Only
A23: 5 | B23: =AutoNumberingFormat(B22,A23) -> C2.G.1.a.1.d) | C23: Fare Processing Software License | D23: No | E23: =E22 -> 0 | H23: =IF($D23="","",SUM(F23:G23)) -> 0 | I23: Rate Only
A24: 5 | B24: C2.G.1.a.1.e) | C24: Cable Locking Kit | D24: No | E24: =E22 -> 0 | H24: 0 | I24: Rate Only
A25: 5 | B25: C2.G.1.a.1.f) | C25: Sundry Installation Material | D25: Sum | E25: =IF(E22=0,0,1) -> 0 | H25: 0 | I25: Rate Only
A27: 5 | B27: =AutoNumberingFormat(B25,A27) -> C2.G.1.a.1.g) | C27: =CONCATENATE("Any other items to complete installation of ",B19) -> Any other items to complete installation of C2.G.1.a.1)
A29: 4 | B29: =AutoNumberingFormat(B27,A29) -> C2.G.1.a.2) | C29: Biometric Access Control to Fare Processing Terminal | H29: =IF($D29="","",SUM(F29:G29)) ->  | I29: =IF(AND(E29=0,D29<>""),"Rate Only",IF($D29="","",$E29*H29)) -> 
A30: 5 | B30: =AutoNumberingFormat(B29,A30) -> C2.G.1.a.2.a) | C30: USB Connected Biometrics Access Control device (Zvetco Biometrics Verifi P5100 or equivalent) | D30: No | E30: =E20 -> 0 | H30: 0 | I30: Rate Only
A31: 5 | B31: =AutoNumberingFormat(B30,A31) -> C2.G.1.a.2.b) | C31: Biometrics Access Integration with OS and AFC Software | D31: No | E31: =E30 -> 0 | H31: 0 | I31: Rate Only
A32: 5 | B32: =AutoNumberingFormat(B31,A32) -> C2.G.1.a.2.c) | C32: Sundry Installation Material | D32: Sum | E32: =IF(E31=0,0,1) -> 0 | H32: 0 | I32: Rate Only
A34: 5 | B34: =AutoNumberingFormat(B32,A34) -> C2.G.1.a.2.d) | C34: =CONCATENATE("Any other items to complete installation of ",B29) -> Any other items to complete installation of C2.G.1.a.2)
A36: 4 | B36: =AutoNumberingFormat(B34,A36) -> C2.G.1.a.3) | C36: Keyboards + Mice
A37: 5 | B37: =AutoNumberingFormat(B36,A37) -> C2.G.1.a.3.a) | C37: Mini USB Mouse (1 per Terminal) | D37: No | E37: =E20 -> 0 | H37: 0 | I37: Rate Only
A38: 5 | B38: =AutoNumberingFormat(B37,A38) -> C2.G.1.a.3.b) | C38: Mini USB Programmable Keyboard (1 per Terminal) | D38: No | E38: =E20 -> 0 | H38: 0 | I38: Rate Only
A39: 5 | B39: =AutoNumberingFormat(B38,A39) -> C2.G.1.a.3.c) | C39: Sundry Installation Material | D39: Sum | E39: =IF(E38=0,0,1) -> 0 | H39: 0 | I39: Rate Only
A41: 5 | B41: =AutoNumberingFormat(B39,A41) -> C2.G.1.a.3.d) | C41: =CONCATENATE("Any other items to complete installation of ",B36) -> Any other items to complete installation of C2.G.1.a.3)
A43: 4 | B43: =AutoNumberingFormat(B39,A43) -> C2.G.1.a.4) | C43: Laser Printer
A44: 5 | B44: =AutoNumberingFormat(B43,A44) -> C2.G.1.a.4.a) | C44: A4 Single Sided Monochrome Laser Printer | D44: No | E44: =E20 -> 0 | H44: 0 | I44: Rate Only
A45: 5 | B45: =AutoNumberingFormat(B44,A45) -> C2.G.1.a.4.b) | C45: Laser Printer Compatible High-Yield Printer Cartridge (3 Cartridges per Kiosk) | D45: No | E45: =E44*3 -> 0 | H45: 0 | I45: Rate Only
A46: 5 | B46: =AutoNumberingFormat(B45,A46) -> C2.G.1.a.4.c) | C46: Premium Ream A4 White Copier Paper (1 Ream per Printer) | D46: No | E46: =E44 -> 0 | H46: 0 | I46: Rate Only
A47: 5 | B47: =AutoNumberingFormat(B46,A47) -> C2.G.1.a.4.d) | C47: Sundry Installation Material | D47: Sum | E47: =IF(E46=0,0,1) -> 0 | H47: 0 | I47: Rate Only
A49: 5 | B49: =AutoNumberingFormat(B47,A49) -> C2.G.1.a.4.e) | C49: =CONCATENATE("Any other items to complete installation of ",B43) -> Any other items to complete installation of C2.G.1.a.4)
A51: 4 | B51: =AutoNumberingFormat(B49,A51) -> C2.G.1.a.5) | C51: Cash Drawer
A52: 5 | B52: =AutoNumberingFormat(B51,A52) -> C2.G.1.a.5.a) | C52: Under Counter Cash Drawer with mechatronic release and open/close sensor | D52: No | E52: ='Quantity Matrix'!D6 -> 0 | H52: 0 | I52: Rate Only
A53: 5 | B53: =AutoNumberingFormat(B52,A53) -> C2.G.1.a.5.b) | C53: Sundry Installation Material | D53: Sum | E53: =IF(E52=0,0,1) -> 0 | H53: 0 | I53: Rate Only
A55: 5 | B55: =AutoNumberingFormat(B53,A55) -> C2.G.1.a.5.c) | C55: =CONCATENATE("Any other items to complete installation of ",B51) -> Any other items to complete installation of C2.G.1.a.5)
A57: 4 | B57: =AutoNumberingFormat(B55,A57) -> C2.G.1.a.6) | C57: Intelligent Drop Safe
A58: 5 | B58: =AutoNumberingFormat(B57,A58) -> C2.G.1.a.6.a) | C58: Counting Drop Safe with Note Capacity of 1000 Notes and 1000 Coins (Ethernet Interface, and Staff Identification) (1 per Kiosk) | D58: Month | E58: ='Quantity Matrix'!B32*12*'Quantity Matrix'!F6 -> 0 | H58: 0 | I58: Rate Only
A59: 5 | B59: =AutoNumberingFormat(B58,A59) -> C2.G.1.a.6.b) | C59: Sundry Installation Material | D59: Sum | E59: =IF(E58=0,0,1) -> 0 | H59: 0 | I59: Rate Only
A61: 5 | B61: =AutoNumberingFormat(B59,A61) -> C2.G.1.a.6.c) | C61: =CONCATENATE("Any other items to complete installation of ",B57) -> Any other items to complete installation of C2.G.1.a.6) | H61: =IF($D61="","",SUM(F61:G61)) -> 
I62: =IF(AND(E62=0,D62<>""),"Rate Only",IF($D62="","",$E62*H62)) -> 
A63: 4 | B63: =AutoNumberingFormat(B59,A63) -> C2.G.1.a.7) | C63: Cash Recycler | H63: =IF($D63="","",SUM(F63:G63)) -> 
A64: 5 | B64: =AutoNumberingFormat(B63,A64) -> C2.G.1.a.7.a) | C64: Cash Recycler with Note Capacity of 1000 Notes and 1000 Coins (Ethernet Interface, and Staff Identification) (1 per Kiosk) | D64: Month | E64: ='Quantity Matrix'!$B$32*12*'Quantity Matrix'!G6 -> 0 | H64: 0 | I64: Rate Only
A65: 5 | B65: =AutoNumberingFormat(B64,A65) -> C2.G.1.a.7.b) | C65: Interface and Integration into Fare Processing Terminal | D65: No | E65: ='Quantity Matrix'!G6 -> 0 | H65: =IF($D65="","",SUM(F65:G65)) -> 0 | I65: =IF(AND(E65=0,D65<>""),"Rate Only",IF($D65="","",$E65*H65)) -> Rate Only
A66: 5 | B66: =AutoNumberingFormat(B65,A66) -> C2.G.1.a.7.c) | C66: Sundry Installation Material | D66: Sum | E66: =IF(E64=0,0,1) -> 0 | H66: 0 | I66: Rate Only
A68: 5 | B68: =AutoNumberingFormat(B66,A68) -> C2.G.1.a.7.d) | C68: =CONCATENATE("Any other items to complete installation of ",B63) -> Any other items to complete installation of C2.G.1.a.7) | H68: =IF($D68="","",SUM(F68:G68)) -> 
I69: =IF(AND(E69=0,D69<>""),"Rate Only",IF($D69="","",$E69*H69)) -> 
A70: 4 | B70: =AutoNumberingFormat(B68,A70) -> C2.G.1.a.8) | C70: EMV Compliant Card Acceptance/Updating Device
A71: 5 | B71: =AutoNumberingFormat(B70,A71) -> C2.G.1.a.8.a) | C71: Issuing Bank Approved EMV Chip Card Terminal Device for EMV Scripting and Acquiring Functions complete with PCI-PED Pinpad device (1 per Fare Processing Terminal) | D71: Month | E71: ='Quantity Matrix'!B32*12*'Quantity Matrix'!C6 -> 0 | H71: 0 | I71: Rate Only
A72: 5 | B72: =AutoNumberingFormat(B71,A72) -> C2.G.1.a.8.b) | C72: Issuing Bank Approved PIN-PAD with Contact and/or Contactless Interface for Client Side (1 per Fare Processing Terminal) | D72: Month | E72: ='Quantity Matrix'!B32*12*'Quantity Matrix'!C6 -> 0 | H72: 0 | I72: Rate Only
A73: 5 | B73: =AutoNumberingFormat(B72,A73) -> C2.G.1.a.8.c) | C73: Sundry Installation Material | D73: Sum | E73: =IF(E71=0,0,1) -> 0 | H73: 0 | I73: Rate Only
A75: 5 | B75: =AutoNumberingFormat(B73,A75) -> C2.G.1.a.8.d) | C75: =CONCATENATE("Any other items to complete installation of ",B70) -> Any other items to complete installation of C2.G.1.a.8)
A77: 4 | B77: =AutoNumberingFormat(B73,A77) -> C2.G.1.a.9) | C77: =CONCATENATE("Any other items to complete installation of ",B17) -> Any other items to complete installation of C2.G.1.a)
A79: 3 | B79: =AutoNumberingFormat(B77,A79) -> C2.G.1.b) | C79: Cabling
A81: 4 | B81: =AutoNumberingFormat(B79,A81) -> C2.G.1.b.1) | C81: Power Cabling
A82: 5 | B82: =AutoNumberingFormat(B81,A82) -> C2.G.1.b.1.a) | C82: 3-Core 4mm2 (12 AWG) Cabtyre Power Cable (3 m per Device) | D82: m | E82: =SUM(E58,E52,IF(E71>0,1,0),1) * 3 -> 3 | H82: 0 | I82: 0
A83: 5 | B83: =AutoNumberingFormat(B82,A83) -> C2.G.1.b.1.b) | C83: SANS 164-4 Dedicated Application (UPS/Flattened Earth) 16A 231V Power Socket (1 per Device) | D83: No | E83: =SUM(E58,E52,IF(E71>0,1,0),1) -> 1 | H83: 0 | I83: 0
A84: 5 | B84: =AutoNumberingFormat(B83,A84) -> C2.G.1.b.1.c) | C84: 5A Circuit Breakers (1 per Kiosk) | D84: No | E84: =E20 -> 0 | H84: 0 | I84: Rate Only
A85: 5 | B85: =AutoNumberingFormat(B84,A85) -> C2.G.1.b.1.d) | C85: Sundry installation material | D85: Sum | E85: =IF(E84=0,0,1) -> 0 | H85: 0 | I85: Rate Only
A87: 5 | B87: =AutoNumberingFormat(B85,A87) -> C2.G.1.b.1.e) | C87: =CONCATENATE("Any other items to complete installation of ",B81) -> Any other items to complete installation of C2.G.1.b.1)
A89: 4 | B89: =AutoNumberingFormat(B85,A89) -> C2.G.1.b.2) | C89: Copper Ethernet Data Cabling
A90: 5 | B90: =AutoNumberingFormat(B89,A90) -> C2.G.1.b.2.a) | C90: CAT6 Screened Foiled Twisted Pair Ethernet Cabling (3m per Device) to Reticulation Points | D90: m | E90: =SUM(E58,E52,IF(E71>0,1,0),1) *3 -> 3 | H90: 0 | I90: 0
A91: 5 | B91: =AutoNumberingFormat(B90,A91) -> C2.G.1.b.2.b) | C91: CAT6 Shielded RJ45 Connector with Strain-Relief Boot (4 per Device) | D91: No | E91: =SUM(E58,E52,IF(E71>0,1,0),1)*4 -> 4 | H91: 0 | I91: 0
A92: 5 | B92: =AutoNumberingFormat(B91,A92) -> C2.G.1.b.2.c) | C92: Sundry installation material for crimping and reticulation | D92: Sum | E92: =IF(E91=0,0,1) -> 1 | H92: 0 | I92: 0
A94: 5 | B94: =AutoNumberingFormat(B92,A94) -> C2.G.1.b.2.d) | C94: =CONCATENATE("Any other items to complete installation of ",B89) -> Any other items to complete installation of C2.G.1.b.2)
A96: 4 | B96: =AutoNumberingFormat(B94,A96) -> C2.G.1.b.3) | C96: USB Signal Cabling
A97: 5 | B97: =AutoNumberingFormat(B96,A97) -> C2.G.1.b.3.a) | C97: 2m USB 2.0 Cable (Standard A to Standard B) | D97: No | E97: =1+IF(E71>0,1,0) -> 1 | H97: 0 | I97: 0
A98: 5 | B98: =AutoNumberingFormat(B97,A98) -> C2.G.1.b.3.b) | C98: 3m USB 2.0 Extension Cable (Standard-A receptacle to Standard-A plug) | D98: No | E98: =E97 -> 1 | H98: 0 | I98: 0
A99: 5 | B99: =AutoNumberingFormat(B98,A99) -> C2.G.1.b.3.c) | C99: Sundry installation material for crimping and reticulation | D99: Sum | E99: =IF(E98=0,0,1) -> 1 | H99: 0 | I99: 0
A101: 5 | B101: =AutoNumberingFormat(B99,A101) -> C2.G.1.b.3.d) | C101: =CONCATENATE("Any other items to complete installation of ",B96) -> Any other items to complete installation of C2.G.1.b.3)
A103: 4 | B103: =AutoNumberingFormat(B99,A103) -> C2.G.1.b.4) | C103: =CONCATENATE("Any other items to complete installation of ",B79) -> Any other items to complete installation of C2.G.1.b)
A105: 3 | B105: =AutoNumberingFormat(B101,A105) -> C2.G.1.c) | C105: =CONCATENATE("Any other items to complete installation of ",B15) -> Any other items to complete installation of C2.G.1)
A107: 2 | B107: =AutoNumberingFormat(B103,A107) -> C2.G.2) | C107: =CONCATENATE("Kiosk Terminals (For the remaining Sections of type ",'Quantity Matrix'!A6,")") -> Kiosk Terminals (For the remaining Sections of type Station Type A (One Platform, One Entrance, 5m, CVM))
A108: 3 | B108: =AutoNumberingFormat(B107,A108) -> C2.G.2.a) | C108: =CONCATENATE("Remaining facilities with Kiosk Terminals Infrastructure based on item Amount in ",B15) -> Remaining facilities with Kiosk Terminals Infrastructure based on item Amount in C2.G.1) | D108: No | E108: ='Quantity Matrix'!B6-1 -> 9 | F108: =SUMPRODUCT($E15:$E107,F15:F107) -> 0 | G108: =SUMPRODUCT($E15:$E107,G15:G107) -> 0 | H108: 0 | I108: 0
A110: 2 | B110: =AutoNumberingFormat(B108,A110) -> C2.G.3) | C110: =CONCATENATE("Kiosk Terminals (For a Single Section of type ",'Quantity Matrix'!A7,")") -> Kiosk Terminals (For a Single Section of type Station Type B (One Platform, One Entrance, 5m, TOM))
B111: =AutoNumberingFormat(B109,A111) ->  | H111: =IF($D111="","",SUM(F111:G111)) ->  | I111: =IF($D111="","",$E111*H111) -> 
A112: 3 | B112: =AutoNumberingFormat(B110,A112) -> C2.G.3.a) | C112: Equipment | H112: =IF($D112="","",SUM(F112:G112)) ->  | I112: =IF(AND(E112=0,D112<>""),"Rate Only",IF($D112="","",$E112*H112)) -> 
A114: 4 | B114: =AutoNumberingFormat(B112,A114) -> C2.G.3.a.1) | C114: Fare Processing Terminal | H114: =IF($D114="","",SUM(F114:G114)) -> 
A115: 5 | B115: =AutoNumberingFormat(B114,A115) -> C2.G.3.a.1.a) | C115: Touch Screen Based Point-of-Sale Terminal (Proven use in Retail Space) | D115: No | E115: ='Quantity Matrix'!C7 -> 1 | H115: 0 | I115: 0
A116: 5 | B116: =AutoNumberingFormat(B115,A116) -> C2.G.3.a.1.b) | C116: Client Facing Invoice Display (1 per Terminal) | D116: No | E116: =E115 -> 1 | H116: 0 | I116: 0
A117: 5 | B117: =AutoNumberingFormat(B116,A117) -> C2.G.3.a.1.c) | C117: Terminal Operating System License (Windows Embedded or equivalent) | D117: No | E117: =E115 -> 1 | H117: 0 | I117: 0
A118: 5 | B118: =AutoNumberingFormat(B117,A118) -> C2.G.3.a.1.d) | C118: Fare Processing Software License | D118: No | E118: =E117 -> 1 | H118: =IF($D118="","",SUM(F118:G118)) -> 0 | I118: 0
A119: 5 | B119: C2.G.3.a.1.e) | C119: Cable Locking Kit | D119: No | E119: =E117 -> 1 | H119: =IF($D119="","",SUM(F119:G119)) -> 0 | I119: 0
A120: 5 | B120: C2.G.3.a.1.f) | C120: Sundry Installation Material | D120: Sum | E120: =IF(E117=0,0,1) -> 1 | H120: 0 | I120: 0
A122: 5 | B122: =AutoNumberingFormat(B120,A122) -> C2.G.3.a.1.g) | C122: =CONCATENATE("Any other items to complete installation of ",B114) -> Any other items to complete installation of C2.G.3.a.1)
A124: 4 | B124: =AutoNumberingFormat(B122,A124) -> C2.G.3.a.2) | C124: Biometric Access Control to Fare Processing Terminal | H124: =IF($D124="","",SUM(F124:G124)) -> 
A125: 5 | B125: =AutoNumberingFormat(B124,A125) -> C2.G.3.a.2.a) | C125: USB Connected Biometrics Access Control device (Zvetco Biometrics Verifi P5100 or equivalent) | D125: No | E125: =E115 -> 1 | H125: 0 | I125: 0
A126: 5 | B126: =AutoNumberingFormat(B125,A126) -> C2.G.3.a.2.b) | C126: Biometrics Access Integration with OS and AFC Software | D126: No | E126: =E125 -> 1 | H126: 0 | I126: 0
A127: 5 | B127: =AutoNumberingFormat(B126,A127) -> C2.G.3.a.2.c) | C127: Sundry Installation Material | D127: Sum | E127: =IF(E126=0,0,1) -> 1 | H127: 0 | I127: 0
A129: 5 | B129: =AutoNumberingFormat(B127,A129) -> C2.G.3.a.2.d) | C129: =CONCATENATE("Any other items to complete installation of ",B124) -> Any other items to complete installation of C2.G.3.a.2)
A131: 4 | B131: =AutoNumberingFormat(B129,A131) -> C2.G.3.a.3) | C131: Keyboards + Mice | H131: =IF($D131="","",SUM(F131:G131)) -> 
A132: 5 | B132: =AutoNumberingFormat(B131,A132) -> C2.G.3.a.3.a) | C132: Mini USB Mouse (1 per Terminal) | D132: No | E132: =E115 -> 1 | H132: 0 | I132: 0
A133: 5 | B133: =AutoNumberingFormat(B132,A133) -> C2.G.3.a.3.b) | C133: Mini USB Programmable Keyboard (1 per Terminal) | D133: No | E133: =E115 -> 1 | H133: 0 | I133: 0
A134: 5 | B134: =AutoNumberingFormat(B133,A134) -> C2.G.3.a.3.c) | C134: Sundry Installation Material | D134: Sum | E134: =IF(E133=0,0,1) -> 1 | H134: 0 | I134: 0
A136: 5 | B136: =AutoNumberingFormat(B134,A136) -> C2.G.3.a.3.d) | C136: =CONCATENATE("Any other items to complete installation of ",B131) -> Any other items to complete installation of C2.G.3.a.3)
A138: 4 | B138: =AutoNumberingFormat(B134,A138) -> C2.G.3.a.4) | C138: Laser Printer
A139: 5 | B139: =AutoNumberingFormat(B138,A139) -> C2.G.3.a.4.a) | C139: A4 Single Sided Monochrome Laser Printer | D139: No | E139: =E115 -> 1 | H139: 0 | I139: 0
A140: 5 | B140: =AutoNumberingFormat(B139,A140) -> C2.G.3.a.4.b) | C140: Laser Printer Compatible High-Yield Printer Cartridge (3 Cartridges per Kiosk) | D140: No | E140: =E139*3 -> 3 | H140: 0 | I140: 0
A141: 5 | B141: =AutoNumberingFormat(B140,A141) -> C2.G.3.a.4.c) | C141: Premium Ream A4 White Copier Paper (1 Ream per Printer) | D141: No | E141: =E139 -> 1 | H141: 0 | I141: 0
A142: 5 | B142: =AutoNumberingFormat(B141,A142) -> C2.G.3.a.4.d) | C142: Sundry Installation Material | D142: Sum | E142: =IF(E141=0,0,1) -> 1 | H142: 0 | I142: 0
A144: 5 | B144: =AutoNumberingFormat(B142,A144) -> C2.G.3.a.4.e) | C144: =CONCATENATE("Any other items to complete installation of ",B138) -> Any other items to complete installation of C2.G.3.a.4)
A146: 4 | B146: =AutoNumberingFormat(B144,A146) -> C2.G.3.a.5) | C146: Cash Drawer | H146: =IF($D146="","",SUM(F146:G146)) -> 
A147: 5 | B147: =AutoNumberingFormat(B146,A147) -> C2.G.3.a.5.a) | C147: Under Counter Cash Drawer with mechatronic release and open/close sensor | D147: No | E147: 1 | H147: 0 | I147: 0
A148: 5 | B148: =AutoNumberingFormat(B147,A148) -> C2.G.3.a.5.b) | C148: Sundry Installation Material | D148: Sum | E148: =IF(E147=0,0,1) -> 1 | H148: 0 | I148: 0
A150: 5 | B150: =AutoNumberingFormat(B148,A150) -> C2.G.3.a.5.c) | C150: =CONCATENATE("Any other items to complete installation of ",B146) -> Any other items to complete installation of C2.G.3.a.5)
A152: 4 | B152: =AutoNumberingFormat(B150,A152) -> C2.G.3.a.6) | C152: Intelligent Drop Safe
A153: 5 | B153: =AutoNumberingFormat(B152,A153) -> C2.G.3.a.6.a) | C153: Counting Drop Safe with Note Capacity of 1000 Notes and 1000 Coins (Ethernet Interface, and Staff Identification) (1 per Kiosk) | D153: Month | E153: ='Quantity Matrix'!$B$32*12*'Quantity Matrix'!F7 -> 0 | H153: 0 | I153: Rate Only
A154: 5 | B154: =AutoNumberingFormat(B153,A154) -> C2.G.3.a.6.b) | C154: Sundry Installation Material | D154: Sum | E154: =IF(E153=0,0,1) -> 0 | H154: 0 | I154: Rate Only
A156: 5 | B156: =AutoNumberingFormat(B154,A156) -> C2.G.3.a.6.c) | C156: =CONCATENATE("Any other items to complete installation of ",B152) -> Any other items to complete installation of C2.G.3.a.6) | H156: =IF($D156="","",SUM(F156:G156)) -> 
A158: 4 | B158: =AutoNumberingFormat(B154,A158) -> C2.G.3.a.7) | C158: Cash Recycler | H158: =IF($D158="","",SUM(F158:G158)) -> 
A159: 5 | B159: =AutoNumberingFormat(B158,A159) -> C2.G.3.a.7.a) | C159: Cash Recycler with Note Capacity of 1000 Notes and 1000 Coins (Ethernet Interface, and Staff Identification) (1 per Kiosk) | D159: Month | E159: ='Quantity Matrix'!$B$32*12*'Quantity Matrix'!G7 -> 96 | H159: 0 | I159: 0
A160: 5 | B160: =AutoNumberingFormat(B159,A160) -> C2.G.3.a.7.b) | C160: Interface and Integration into Fare Processing Terminal | D160: No | E160: ='Quantity Matrix'!G7 -> 1 | H160: =IF($D160="","",SUM(F160:G160)) -> 0 | I160: 0
A161: 5 | B161: =AutoNumberingFormat(B160,A161) -> C2.G.3.a.7.c) | C161: Sundry Installation Material | D161: Sum | E161: =IF(E159=0,0,1) -> 1 | H161: =IF($D161="","",SUM(F161:G161)) -> 0 | I161: 0
A163: 5 | B163: =AutoNumberingFormat(B161,A163) -> C2.G.3.a.7.d) | C163: =CONCATENATE("Any other items to complete installation of ",B158) -> Any other items to complete installation of C2.G.3.a.7) | H163: =IF($D163="","",SUM(F163:G163)) -> 
A165: 4 | B165: =AutoNumberingFormat(B163,A165) -> C2.G.3.a.8) | C165: EMV Compliant Card Acceptance/Updating Device
A166: 5 | B166: =AutoNumberingFormat(B165,A166) -> C2.G.3.a.8.a) | C166: Issuing Bank Approved EMV Chip Card Terminal Device for EMV Scripting and Acquiring Functions complete with PCI-PED Pinpad device (1 per Fare Processing Terminal) | D166: Month | E166: ='Quantity Matrix'!$B$32*12*'Quantity Matrix'!C7 -> 96 | H166: 0 | I166: 0
A167: 5 | B167: =AutoNumberingFormat(B166,A167) -> C2.G.3.a.8.b) | C167: Issuing Bank Approved PIN-PAD with Contact and/or Contactless Interface for Client Side (1 per Fare Processing Terminal) | D167: Month | E167: ='Quantity Matrix'!$B$32*12*'Quantity Matrix'!C7 -> 96 | H167: 0 | I167: 0
A168: 5 | B168: =AutoNumberingFormat(B167,A168) -> C2.G.3.a.8.c) | C168: Sundry Installation Material | D168: Sum | E168: =IF(E166=0,0,1) -> 1 | H168: 0 | I168: 0
A170: 5 | B170: =AutoNumberingFormat(B168,A170) -> C2.G.3.a.8.d) | C170: =CONCATENATE("Any other items to complete installation of ",B165) -> Any other items to complete installation of C2.G.3.a.8)
A172: 4 | B172: =AutoNumberingFormat(B168,A172) -> C2.G.3.a.9) | C172: =CONCATENATE("Any other items to complete installation of ",B112) -> Any other items to complete installation of C2.G.3.a)
A174: 3 | B174: =AutoNumberingFormat(B172,A174) -> C2.G.3.b) | C174: Cabling
A176: 4 | B176: =AutoNumberingFormat(B174,A176) -> C2.G.3.b.1) | C176: Power Cabling | I176: =IF(AND(E176=0,D176<>""),"Rate Only",IF($D176="","",$E176*H176)) -> 
A177: 5 | B177: =AutoNumberingFormat(B176,A177) -> C2.G.3.b.1.a) | C177: 3-Core 4mm2 (12 AWG) Cabtyre Power Cable (3 m per Device) | D177: m | E177: =SUM(E153,E147,IF(E166>0,1,0),1) * 3 -> 9 | H177: 0 | I177: 0
A178: 5 | B178: =AutoNumberingFormat(B177,A178) -> C2.G.3.b.1.b) | C178: SANS 164-4 Dedicated Application (UPS/Flattened Earth) 16A 231V Power Socket (1 per Device) | D178: No | E178: =SUM(E153,E147,IF(E166>0,1,0),1) -> 3 | H178: 0 | I178: 0
A179: 5 | B179: =AutoNumberingFormat(B178,A179) -> C2.G.3.b.1.c) | C179: 5A Circuit Breakers (1 per Kiosk) | D179: No | E179: =E115 -> 1 | H179: 0 | I179: 0
A180: 5 | B180: =AutoNumberingFormat(B179,A180) -> C2.G.3.b.1.d) | C180: Sundry installation material | D180: Sum | E180: =IF(E179=0,0,1) -> 1 | H180: 0 | I180: 0
A182: 5 | B182: =AutoNumberingFormat(B180,A182) -> C2.G.3.b.1.e) | C182: =CONCATENATE("Any other items to complete installation of ",B176) -> Any other items to complete installation of C2.G.3.b.1)
A184: 4 | B184: =AutoNumberingFormat(B180,A184) -> C2.G.3.b.2) | C184: Copper Ethernet Data Cabling
A185: 5 | B185: =AutoNumberingFormat(B184,A185) -> C2.G.3.b.2.a) | C185: CAT6 Screened Foiled Twisted Pair Ethernet Cabling (3m per Device) to Reticulation Points | D185: m | E185: =SUM(E153,E147,IF(E166>0,1,0),1) *3 -> 9 | H185: 0 | I185: 0
A186: 5 | B186: =AutoNumberingFormat(B185,A186) -> C2.G.3.b.2.b) | C186: CAT6 Shielded RJ45 Connector with Strain-Relief Boot (4 per Device) | D186: No | E186: =SUM(E153,E147,IF(E166>0,1,0),1)*4 -> 12 | H186: 0 | I186: 0
A187: 5 | B187: =AutoNumberingFormat(B186,A187) -> C2.G.3.b.2.c) | C187: Sundry installation material for crimping and reticulation | D187: Sum | E187: =IF(E186=0,0,1) -> 1 | H187: 0 | I187: 0
A189: 5 | B189: =AutoNumberingFormat(B187,A189) -> C2.G.3.b.2.d) | C189: =CONCATENATE("Any other items to complete installation of ",B184) -> Any other items to complete installation of C2.G.3.b.2)
A191: 4 | B191: =AutoNumberingFormat(B189,A191) -> C2.G.3.b.3) | C191: USB Signal Cabling
A192: 5 | B192: =AutoNumberingFormat(B191,A192) -> C2.G.3.b.3.a) | C192: 2m USB 2.0 Cable (Standard A to Standard B) | D192: No | E192: =1+IF(E166>0,1,0) -> 2 | H192: 0 | I192: 0
A193: 5 | B193: =AutoNumberingFormat(B192,A193) -> C2.G.3.b.3.b) | C193: 3m USB 2.0 Extension Cable (Standard-A receptacle to Standard-A plug) | D193: No | E193: =E192 -> 2 | H193: 0 | I193: 0
A194: 5 | B194: =AutoNumberingFormat(B193,A194) -> C2.G.3.b.3.c) | C194: Sundry installation material for crimping and reticulation | D194: Sum | E194: =IF(E193=0,0,1) -> 1 | H194: 0 | I194: 0
A196: 5 | B196: =AutoNumberingFormat(B194,A196) -> C2.G.3.b.3.d) | C196: =CONCATENATE("Any other items to complete installation of ",B191) -> Any other items to complete installation of C2.G.3.b.3)
A198: 4 | B198: =AutoNumberingFormat(B194,A198) -> C2.G.3.b.4) | C198: =CONCATENATE("Any other items to complete installation of ",B174) -> Any other items to complete installation of C2.G.3.b)
A200: 3 | B200: =AutoNumberingFormat(B196,A200) -> C2.G.3.c) | C200: =CONCATENATE("Any other items to complete installation of ",B110) -> Any other items to complete installation of C2.G.3)
A202: 2 | B202: =AutoNumberingFormat(B198,A202) -> C2.G.4) | C202: =CONCATENATE("Kiosk Terminals (For the remaining Sections of type ",'Quantity Matrix'!A7,")") -> Kiosk Terminals (For the remaining Sections of type Station Type B (One Platform, One Entrance, 5m, TOM))
A203: 3 | B203: =AutoNumberingFormat(B202,A203) -> C2.G.4.a) | C203: =CONCATENATE("Remaining facilities with Kiosk Terminals Infrastructure based on item Amount in ",B110) -> Remaining facilities with Kiosk Terminals Infrastructure based on item Amount in C2.G.3) | D203: No | E203: ='Quantity Matrix'!B7-1 -> 26 | F203: =SUMPRODUCT($E110:$E202,F110:F202) -> 0 | G203: =SUMPRODUCT($E110:$E202,G110:G202) -> 0 | H203: =IF($D203="","",SUM(F203:G203)) -> 0 | I203: =IF(AND(E203=0,D203<>""),"Rate Only",IF($D203="","",$E203*H203)) -> 0
A205: 2 | B205: =AutoNumberingFormat(B203,A205) -> C2.G.5) | C205: =CONCATENATE("Kiosk Terminals (For a Single Section of type ",'Quantity Matrix'!A8,")") -> Kiosk Terminals (For a Single Section of type Station Type C (Two Platform, Two Entrance, 4m, TOM))
B206: =AutoNumberingFormat(B204,A206) ->  | H206: =IF($D206="","",SUM(F206:G206)) ->  | I206: =IF($D206="","",$E206*H206) -> 
A207: 3 | B207: =AutoNumberingFormat(B205,A207) -> C2.G.5.a) | C207: Equipment | H207: =IF($D207="","",SUM(F207:G207)) ->  | I207: =IF(AND(E207=0,D207<>""),"Rate Only",IF($D207="","",$E207*H207)) -> 
A209: 4 | B209: =AutoNumberingFormat(B207,A209) -> C2.G.5.a.1) | C209: Fare Processing Terminal | H209: =IF($D209="","",SUM(F209:G209)) -> 
A210: 5 | B210: =AutoNumberingFormat(B209,A210) -> C2.G.5.a.1.a) | C210: Touch Screen Based Point-of-Sale Terminal (Proven use in Retail Space) | D210: No | E210: ='Quantity Matrix'!C8 -> 2 | H210: 0 | I210: 0
A211: 5 | B211: =AutoNumberingFormat(B210,A211) -> C2.G.5.a.1.b) | C211: Client Facing Invoice Display (1 per Terminal) | D211: No | E211: =E210 -> 2 | H211: 0 | I211: 0
A212: 5 | B212: =AutoNumberingFormat(B211,A212) -> C2.G.5.a.1.c) | C212: Terminal Operating System License (Windows Embedded or equivalent) | D212: No | E212: =E210 -> 2 | H212: 0 | I212: 0
A213: 5 | B213: =AutoNumberingFormat(B212,A213) -> C2.G.5.a.1.d) | C213: Fare Processing Software License | D213: No | E213: =E212 -> 2 | H213: =IF($D213="","",SUM(F213:G213)) -> 0 | I213: 0
A214: 5 | B214: C2.G.5.a.1.e) | C214: Cable Locking Kit | D214: No | E214: =E212 -> 2 | H214: =IF($D214="","",SUM(F214:G214)) -> 0 | I214: 0
A215: 5 | B215: C2.G.5.a.1.f) | C215: Sundry Installation Material | D215: Sum | E215: =IF(E212=0,0,1) -> 1 | H215: 0 | I215: 0
A217: 5 | B217: =AutoNumberingFormat(B215,A217) -> C2.G.5.a.1.g) | C217: =CONCATENATE("Any other items to complete installation of ",B209) -> Any other items to complete installation of C2.G.5.a.1)
A219: 4 | B219: =AutoNumberingFormat(B217,A219) -> C2.G.5.a.2) | C219: Biometric Access Control to Fare Processing Terminal | H219: =IF($D219="","",SUM(F219:G219)) -> 
A220: 5 | B220: =AutoNumberingFormat(B219,A220) -> C2.G.5.a.2.a) | C220: USB Connected Biometrics Access Control device (Zvetco Biometrics Verifi P5100 or equivalent) | D220: No | E220: =E210 -> 2 | H220: 0 | I220: 0
A221: 5 | B221: =AutoNumberingFormat(B220,A221) -> C2.G.5.a.2.b) | C221: Biometrics Access Integration with OS and AFC Software | D221: No | E221: =E220 -> 2 | H221: 0 | I221: 0
A222: 5 | B222: =AutoNumberingFormat(B221,A222) -> C2.G.5.a.2.c) | C222: Sundry Installation Material | D222: Sum | E222: =IF(E221=0,0,1) -> 1 | H222: 0 | I222: 0
A224: 5 | B224: =AutoNumberingFormat(B222,A224) -> C2.G.5.a.2.d) | C224: =CONCATENATE("Any other items to complete installation of ",B219) -> Any other items to complete installation of C2.G.5.a.2)
A226: 4 | B226: =AutoNumberingFormat(B224,A226) -> C2.G.5.a.3) | C226: Keyboards + Mice | H226: =IF($D226="","",SUM(F226:G226)) -> 
A227: 5 | B227: =AutoNumberingFormat(B226,A227) -> C2.G.5.a.3.a) | C227: Mini USB Mouse (1 per Terminal) | D227: No | E227: =E210 -> 2 | H227: 0 | I227: 0
A228: 5 | B228: =AutoNumberingFormat(B227,A228) -> C2.G.5.a.3.b) | C228: Mini USB Programmable Keyboard (1 per Terminal) | D228: No | E228: =E210 -> 2 | H228: 0 | I228: 0
A229: 5 | B229: =AutoNumberingFormat(B228,A229) -> C2.G.5.a.3.c) | C229: Sundry Installation Material | D229: Sum | E229: =IF(E228=0,0,1) -> 1 | H229: 0 | I229: 0
A231: 5 | B231: =AutoNumberingFormat(B229,A231) -> C2.G.5.a.3.d) | C231: =CONCATENATE("Any other items to complete installation of ",B226) -> Any other items to complete installation of C2.G.5.a.3)
A233: 4 | B233: =AutoNumberingFormat(B229,A233) -> C2.G.5.a.4) | C233: Laser Printer
A234: 5 | B234: =AutoNumberingFormat(B233,A234) -> C2.G.5.a.4.a) | C234: A4 Single Sided Monochrome Laser Printer | D234: No | E234: =E210 -> 2 | H234: 0 | I234: 0
A235: 5 | B235: =AutoNumberingFormat(B234,A235) -> C2.G.5.a.4.b) | C235: Laser Printer Compatible High-Yield Printer Cartridge (3 Cartridges per Kiosk) | D235: No | E235: =E234*3 -> 6 | H235: 0 | I235: 0
A236: 5 | B236: =AutoNumberingFormat(B235,A236) -> C2.G.5.a.4.c) | C236: Premium Ream A4 White Copier Paper (1 Ream per Printer) | D236: No | E236: =E234 -> 2 | H236: 0 | I236: 0
A237: 5 | B237: =AutoNumberingFormat(B236,A237) -> C2.G.5.a.4.d) | C237: Sundry Installation Material | D237: Sum | E237: =IF(E236=0,0,1) -> 1 | H237: 0 | I237: 0
A239: 5 | B239: =AutoNumberingFormat(B237,A239) -> C2.G.5.a.4.e) | C239: =CONCATENATE("Any other items to complete installation of ",B233) -> Any other items to complete installation of C2.G.5.a.4)
A241: 4 | B241: =AutoNumberingFormat(B239,A241) -> C2.G.5.a.5) | C241: Cash Drawer | H241: =IF($D241="","",SUM(F241:G241)) -> 
A242: 5 | B242: =AutoNumberingFormat(B241,A242) -> C2.G.5.a.5.a) | C242: Under Counter Cash Drawer with mechatronic release and open/close sensor | D242: No | E242: ='Quantity Matrix'!D8 -> 0 | H242: 0 | I242: Rate Only
A243: 5 | B243: =AutoNumberingFormat(B242,A243) -> C2.G.5.a.5.b) | C243: Sundry Installation Material | D243: Sum | E243: =IF(E242=0,0,1) -> 0 | H243: 0 | I243: Rate Only
A245: 5 | B245: =AutoNumberingFormat(B243,A245) -> C2.G.5.a.5.c) | C245: =CONCATENATE("Any other items to complete installation of ",B241) -> Any other items to complete installation of C2.G.5.a.5)
A247: 4 | B247: =AutoNumberingFormat(B245,A247) -> C2.G.5.a.6) | C247: Intelligent Drop Safe
A248: 5 | B248: =AutoNumberingFormat(B247,A248) -> C2.G.5.a.6.a) | C248: Counting Drop Safe with Note Capacity of 1000 Notes and 1000 Coins (Ethernet Interface, and Staff Identification) (1 per Kiosk) | D248: Month | E248: ='Quantity Matrix'!$B$32*12*'Quantity Matrix'!F8 -> 0 | H248: 0 | I248: Rate Only
A249: 5 | B249: =AutoNumberingFormat(B248,A249) -> C2.G.5.a.6.b) | C249: Sundry Installation Material | D249: Sum | E249: =IF(E248=0,0,1) -> 0 | H249: 0 | I249: Rate Only
A251: 5 | B251: =AutoNumberingFormat(B249,A251) -> C2.G.5.a.6.c) | C251: =CONCATENATE("Any other items to complete installation of ",B247) -> Any other items to complete installation of C2.G.5.a.6) | H251: =IF($D251="","",SUM(F251:G251)) -> 
A253: 4 | B253: =AutoNumberingFormat(B249,A253) -> C2.G.5.a.7) | C253: Cash Recycler | H253: =IF($D253="","",SUM(F253:G253)) -> 
A254: 5 | B254: =AutoNumberingFormat(B253,A254) -> C2.G.5.a.7.a) | C254: Cash Recycler with Note Capacity of 1000 Notes and 1000 Coins (Ethernet Interface, and Staff Identification) (1 per Kiosk) | D254: Month | E254: ='Quantity Matrix'!$B$32*12*'Quantity Matrix'!G8 -> 192 | H254: 0 | I254: 0
A255: 5 | B255: =AutoNumberingFormat(B254,A255) -> C2.G.5.a.7.b) | C255: Interface and Integration into Fare Processing Terminal | D255: No | E255: ='Quantity Matrix'!G8 -> 2 | H255: =IF($D255="","",SUM(F255:G255)) -> 0 | I255: 0
A256: 5 | B256: =AutoNumberingFormat(B255,A256) -> C2.G.5.a.7.c) | C256: Sundry Installation Material | D256: Sum | E256: =IF(E254=0,0,1) -> 1 | H256: =IF($D256="","",SUM(F256:G256)) -> 0 | I256: 0
A258: 5 | B258: =AutoNumberingFormat(B256,A258) -> C2.G.5.a.7.d) | C258: =CONCATENATE("Any other items to complete installation of ",B253) -> Any other items to complete installation of C2.G.5.a.7) | H258: =IF($D258="","",SUM(F258:G258)) -> 
A260: 4 | B260: =AutoNumberingFormat(B258,A260) -> C2.G.5.a.8) | C260: EMV Compliant Card Acceptance/Updating Device
A261: 5 | B261: =AutoNumberingFormat(B260,A261) -> C2.G.5.a.8.a) | C261: Issuing Bank Approved EMV Chip Card Terminal Device for EMV Scripting and Acquiring Functions complete with PCI-PED Pinpad device (1 per Fare Processing Terminal) | D261: Month | E261: ='Quantity Matrix'!$B$32*12*'Quantity Matrix'!C8 -> 192 | H261: 0 | I261: 0
A262: 5 | B262: =AutoNumberingFormat(B261,A262) -> C2.G.5.a.8.b) | C262: Issuing Bank Approved PIN-PAD with Contact and/or Contactless Interface for Client Side (1 per Fare Processing Terminal) | D262: Month | E262: ='Quantity Matrix'!$B$32*12*'Quantity Matrix'!C8 -> 192 | H262: 0 | I262: 0
A263: 5 | B263: =AutoNumberingFormat(B262,A263) -> C2.G.5.a.8.c) | C263: Sundry Installation Material | D263: Sum | E263: =IF(E261=0,0,1) -> 1 | H263: 0 | I263: 0
A265: 5 | B265: =AutoNumberingFormat(B263,A265) -> C2.G.5.a.8.d) | C265: =CONCATENATE("Any other items to complete installation of ",B260) -> Any other items to complete installation of C2.G.5.a.8)
A267: 4 | B267: =AutoNumberingFormat(B263,A267) -> C2.G.5.a.9) | C267: =CONCATENATE("Any other items to complete installation of ",B207) -> Any other items to complete installation of C2.G.5.a)
A269: 3 | B269: =AutoNumberingFormat(B267,A269) -> C2.G.5.b) | C269: Cabling
A271: 4 | B271: =AutoNumberingFormat(B269,A271) -> C2.G.5.b.1) | C271: Power Cabling | I271: =IF(AND(E271=0,D271<>""),"Rate Only",IF($D271="","",$E271*H271)) -> 
A272: 5 | B272: =AutoNumberingFormat(B271,A272) -> C2.G.5.b.1.a) | C272: 3-Core 4mm2 (12 AWG) Cabtyre Power Cable (3 m per Device) | D272: m | E272: =SUM(E248,E242,IF(E261>0,1,0),1) * 3 -> 6 | H272: 0 | I272: 0
A273: 5 | B273: =AutoNumberingFormat(B272,A273) -> C2.G.5.b.1.b) | C273: SANS 164-4 Dedicated Application (UPS/Flattened Earth) 16A 231V Power Socket (1 per Device) | D273: No | E273: =SUM(E248,E242,IF(E261>0,1,0),1) -> 2 | H273: 0 | I273: 0
A274: 5 | B274: =AutoNumberingFormat(B273,A274) -> C2.G.5.b.1.c) | C274: 5A Circuit Breakers (1 per Kiosk) | D274: No | E274: =E210 -> 2 | H274: 0 | I274: 0
A275: 5 | B275: =AutoNumberingFormat(B274,A275) -> C2.G.5.b.1.d) | C275: Sundry installation material | D275: Sum | E275: =IF(E274=0,0,1) -> 1 | H275: 0 | I275: 0
A277: 5 | B277: =AutoNumberingFormat(B275,A277) -> C2.G.5.b.1.e) | C277: =CONCATENATE("Any other items to complete installation of ",B271) -> Any other items to complete installation of C2.G.5.b.1)
... 385 more rows

Sheet DPE
B1: ='P''s & G''s'!B1:H1 -> CITY OF JOHANNESBURG
B2: ='P''s & G''s'!B2:H2 -> CONTRACT NO. JDA-WP 15K-01
B4: ='P''s & G''s'!B4:H4 -> THE DESIGN, BUILD, AND MAINTENANCE OF AN
B5: ='P''s & G''s'!B5:H5 -> AUTOMATED FARE COLLECTION SYSTEM
B6: ='P''s & G''s'!B6:H6 -> FOR REA VAYA AND METROBUS FOR A 8 YEAR PERIOD
B7: ='P''s & G''s'!B7:H7 -> 
B8: ="SCHEDULE - " & SUBSTITUTE(B13,")","") & " - " & C13 -> SCHEDULE - C2.H - D&B PERIOD: DIGITAL PROCESSING EQUIPMENT
B10: ITEM | C10: DESCRIPTION OF ITEM | D10: UNIT | E10: QUANTITY | F10: SUPPLY | G10: INSTALL | H10: RATE | I10: AMOUNT
AI11: 0 | AL11: 0
C12: The rates to be filled in hereunder must make provision for all specified equipment, associated materials, integration, and systems in order to execute the complete works as specified. | J12: =FindDuplicates(B13:B279) -> Numbering is okay
A13: 1 | B13: =SUMMARY!B19 -> C2.H) | C13: =SUMMARY!C19 -> D&B PERIOD: DIGITAL PROCESSING EQUIPMENT
A15: 2 | B15: =AutoNumberingFormat(B13,A15) -> C2.H.1) | C15: =CONCATENATE("Control and Operations Servers (For a Single Section of type ",'Quantity Matrix'!A13,")") -> Control and Operations Servers (For a Single Section of type Back Office (66 Sauer Street))
B16: =AutoNumberingFormat(B14,A16) ->  | H16: =IF($D16="","",SUM(F16:G16)) ->  | I16: =IF($D16="","",$E16*H16) -> 
A17: 3 | B17: =AutoNumberingFormat(B15,A17) -> C2.H.1.a) | C17: Server Hardware
B18: =AutoNumberingFormat(B16,A18) -> 
A19: 4 | B19: =AutoNumberingFormat(B17,A19) -> C2.H.1.a.1) | C19: Virtual Server Cloud | H19: =IF($D19="","",SUM(F19:G19)) ->  | I19: =IF($D19="","",$E19*H19) -> 
A20: 5 | B20: =AutoNumberingFormat(B19,A20) -> C2.H.1.a.1.a) | C20: Hypervisor Server (2x CPUs, 64-Bit, 10 cores per CPU Min, 128GB ECC RAM Min, 4x x4 PCIe v3.0 Slots, 4x SAS 12Gbs Min RAID10 Controller) Virtual Software Certified Server | D20: No | E20: ='Quantity Matrix'!AJ13 -> 3 | H20: 0 | I20: =IF(AND(E20=0,D20<>""),"Rate Only",IF($D20="","",$E20*H20)) -> 0
A21: 5 | B21: =AutoNumberingFormat(B20,A21) -> C2.H.1.a.1.b) | C21: 4 TB Internal Enterprise SAS Solid State Drive Configured in RAID10 (4 drives per Server) | D21: No | E21: =E20*4 -> 12 | H21: 0 | I21: 0
A22: 5 | B22: =AutoNumberingFormat(B21,A22) -> C2.H.1.a.1.c) | C22: Remote Access Card (Maintenance) | D22: No | E22: =E20 -> 3 | H22: =IF($D22="","",SUM(F22:G22)) -> 0 | I22: =IF(AND(E22=0,D22<>""),"Rate Only",IF($D22="","",$E22*H22)) -> 0
A23: 5 | B23: C2.H.1.a.1.d) | C23: Internal Blue Ray DVD Reader Writer | D23: No | E23: =E20 -> 3 | H23: 0 | I23: 0
A24: 5 | B24: C2.H.1.a.1.e) | C24: Blue Ray Media (10 per Server) | D24: No | E24: =E20*10 -> 30 | H24: 0 | I24: 0
A25: 5 | B25: C2.H.1.a.1.f) | C25: Sundry Installation Material | D25: Sum | E25: =IF(E24=0,0,1) -> 1 | H25: 0 | I25: 0
A27: 5 | B27: =AutoNumberingFormat(B25,A27) -> C2.H.1.a.1.g) | C27: =CONCATENATE("Any other items to complete installation of ",B19) -> Any other items to complete installation of C2.H.1.a.1)
A29: 4 | B29: =AutoNumberingFormat(B25,A29) -> C2.H.1.a.2) | C29: Server Expansion Modules
A30: 5 | B30: =AutoNumberingFormat(B29,A30) -> C2.H.1.a.2.a) | C30: 8Gb (min) Host Bus Adapter (HBA) (Complete with Offload Engines and Protocol Overhead Engines, min PCIe x4 v3.0 interface) (2 per Server) | D30: No | E30: =IF('Quantity Matrix'!AI13>=1,E20*2,0) -> 6 | H30: 0 | I30: 0
A31: 5 | B31: =AutoNumberingFormat(B30,A31) -> C2.H.1.a.2.b) | C31: 10Gb Ethernet Network Interface Card (min PCIe x4 v3.0 interface) (2 per Server) | D31: No | E31: =E20*2 -> 6 | H31: 0 | I31: 0
A32: 5 | B32: =AutoNumberingFormat(B31,A32) -> C2.H.1.a.2.c) | C32: Sundry Installation Material | D32: Sum | E32: =IF(E31=0,0,1) -> 1 | H32: 0 | I32: 0
A34: 5 | B34: =AutoNumberingFormat(B32,A34) -> C2.H.1.a.2.d) | C34: =CONCATENATE("Any other items to complete installation of ",B29) -> Any other items to complete installation of C2.H.1.a.2)
A36: 4 | B36: =AutoNumberingFormat(B32,A36) -> C2.H.1.a.3) | C36: Stratum 1 NTP Server/Appliance
A37: 5 | B37: =AutoNumberingFormat(B36,A37) -> C2.H.1.a.3.a) | C37: Stratum 1 NTP Certified Dedicated Server/Appliance | D37: No | E37: =IF(E20>1,1,0) -> 1 | H37: 0 | I37: 0
A38: 5 | B38: =AutoNumberingFormat(B37,A38) -> C2.H.1.a.3.b) | C38: GPS-Disciplined Oscillator (Stratum-0 Certified) | D38: No | E38: =E37 -> 1 | H38: 0 | I38: 0
A39: 5 | B39: =AutoNumberingFormat(B38,A39) -> C2.H.1.a.3.c) | C39: GPS-Disciplined Oscillator Certified Antenna Kit (Min 50m, Complete with connectors, and mounting equipment) | D39: No | E39: =E38 -> 1 | H39: 0 | I39: 0
A40: 5 | B40: =AutoNumberingFormat(B39,A40) -> C2.H.1.a.3.d) | C40: GPS-Disciplined Oscillator Certified Lightning Arrestor (properly earthed) | D40: No | E40: =E39 -> 1 | H40: 0 | I40: 0
A41: 5 | B41: =AutoNumberingFormat(B40,A41) -> C2.H.1.a.3.e) | C41: Sundry Installation Material | D41: Sum | E41: =IF(E38=0,0,1) -> 1 | H41: 0 | I41: 0
A43: 5 | B43: =AutoNumberingFormat(B41,A43) -> C2.H.1.a.3.f) | C43: =CONCATENATE("Any other items to complete installation of ",B36) -> Any other items to complete installation of C2.H.1.a.3) | D43: Sum | E43: =IF(E37>0,1,0) -> 1 | H43: 0 | I43: 0
A45: 4 | B45: =AutoNumberingFormat(B43,A45) -> C2.H.1.a.4) | C45: Dedicated Offsite Hosting | I45: =IF($D45="","",$E45*H45) -> 
A46: 5 | B46: =AutoNumberingFormat(B45,A46) -> C2.H.1.a.4.a) | C46: Hyper Visor Server (2x CPUs, 64-Bit, 10 cores per CPU Min, 128GB RAM Min, 4x x4 PCIe v3.0 Slots, 4x SAS 12Gbs Min) Virtual Software Certified Server | D46: No | E46: =E20 -> 3 | H46: 0 | I46: =IF(AND(E46=0,D46<>""),"Rate Only",IF($D46="","",$E46*H46)) -> 0
A47: 5 | B47: =AutoNumberingFormat(B46,A47) -> C2.H.1.a.4.b) | C47: 4 TB Internal Enterprise SAS Solid State Drive Configured in RAID10 (4 drives per Server) | D47: No | E47: =E46*4 -> 12 | H47: 0 | I47: 0
A48: 5 | B48: =AutoNumberingFormat(B47,A48) -> C2.H.1.a.4.c) | C48: Internal Blue Ray DVD Reader Writer | D48: No | E48: =E46 -> 3 | H48: 0 | I48: 0
A49: 5 | B49: =AutoNumberingFormat(B48,A49) -> C2.H.1.a.4.d) | C49: Physical offsite hosting at AAA Hosting Facility with Static IP and DNS Facilities | D49: Month | E49: =IF(E46>0,'Quantity Matrix'!B32*12,0) -> 96 | H49: 0 | I49: 0
A50: 5 | B50: =AutoNumberingFormat(B49,A50) -> C2.H.1.a.4.e) | C50: Sundry Installation Material | D50: Sum | E50: =IF(E48=0,0,1) -> 1 | H50: 0 | I50: 0
A52: 5 | B52: =AutoNumberingFormat(B50,A52) -> C2.H.1.a.4.f) | C52: =CONCATENATE("Any other items to complete installation of ",B45) -> Any other items to complete installation of C2.H.1.a.4)
A54: 4 | B54: =AutoNumberingFormat(B52,A54) -> C2.H.1.a.5) | C54: =CONCATENATE("Any other items to complete installation of ",B17) -> Any other items to complete installation of C2.H.1.a)
B55: =AutoNumberingFormat(B19,A55) -> 
A56: 3 | B56: =AutoNumberingFormat(B54,A56) -> C2.H.1.b) | C56: Storage Hardware
A58: 4 | B58: =AutoNumberingFormat(B56,A58) -> C2.H.1.b.1) | C58: Storage Area Network
A60: 5 | B60: =AutoNumberingFormat(B58,A60) -> C2.H.1.b.1.a) | C60: SAN Controller
A61: 6 | B61: =AutoNumberingFormat(B60,A61) -> C2.H.1.b.1.a.1) | C61: SAN Controller (handle 6 hdd enclosures min, serves 6 hosts min) | D61: No | E61: =ROUNDUP(E74/6,0) -> 1 | H61: 0 | I61: 0
A62: 6 | B62: =AutoNumberingFormat(B61,A62) -> C2.H.1.b.1.a.2) | C62: Sundry Installation Material | D62: Sum | E62: =IF(E61=0,0,1) -> 1 | H62: 0 | I62: 0
A64: 6 | B64: =AutoNumberingFormat(B62,A64) -> C2.H.1.b.1.a.3) | C64: =CONCATENATE("Any other items to complete installation of ",B60) -> Any other items to complete installation of C2.H.1.b.1.a)
A66: 5 | B66: =AutoNumberingFormat(B62,A66) -> C2.H.1.b.1.b) | C66: SAN Switch Fabric
A67: 6 | B67: =AutoNumberingFormat(B66,A67) -> C2.H.1.b.1.b.1) | C67: Redundant 8Gb switch fabric (min 24x 8Gb ports) (2 ports per connected device) | D67: No | E67: =IF('Quantity Matrix'!AI13>=1,ROUNDUP((E74+E61+E30+E85)/24*2,0),0) -> 1 | H67: 0 | I67: 0
A68: 6 | B68: =AutoNumberingFormat(B67,A68) -> C2.H.1.b.1.b.2) | C68: Redundant patch links between Controllers, Enclosures, and Servers (4 per each SAN connected device) | D68: No | E68: =IF('Quantity Matrix'!AI13>=1,(E74+E61+E20+E85)*4,0) -> 20 | H68: 0 | I68: 0
A69: 6 | B69: =AutoNumberingFormat(B68,A69) -> C2.H.1.b.1.b.3) | C69: Sundry Installation Material | D69: Sum | E69: =IF(E68=0,0,1) -> 1 | H69: 0 | I69: 0
A71: 6 | B71: =AutoNumberingFormat(B69,A71) -> C2.H.1.b.1.b.4) | C71: =CONCATENATE("Any other items to complete installation of ",B66) -> Any other items to complete installation of C2.H.1.b.1.b)
A73: 5 | B73: =AutoNumberingFormat(B69,A73) -> C2.H.1.b.1.c) | C73: SAN Expansion Enclosures
A74: 6 | B74: =AutoNumberingFormat(B73,A74) -> C2.H.1.b.1.c.1) | C74: Dual 8Gb Connection SAN disk enclosures (able to handle 12 HDDs min) | D74: No | E74: =ROUNDUP(E75/12,0) -> 1 | H74: 0 | I74: 0
A75: 6 | B75: =AutoNumberingFormat(B74,A75) -> C2.H.1.b.1.c.2) | C75: 4TB LFF SAS - 7200RPM - RAID10 | D75: No | E75: =IF('Quantity Matrix'!AI13>0,E47,0) -> 12 | H75: 0 | I75: 0
A76: 6 | B76: =AutoNumberingFormat(B75,A76) -> C2.H.1.b.1.c.3) | C76: Sundry Installation Material | D76: Sum | E76: =IF(E75=0,0,1) -> 1 | H76: 0 | I76: 0
A78: 6 | B78: =AutoNumberingFormat(B76,A78) -> C2.H.1.b.1.c.4) | C78: =CONCATENATE("Any other items to complete installation of ",B73) -> Any other items to complete installation of C2.H.1.b.1.c)
A80: 5 | B80: =AutoNumberingFormat(B76,A80) -> C2.H.1.b.1.d) | C80: =CONCATENATE("Any other items to complete installation of ",B58) -> Any other items to complete installation of C2.H.1.b.1)
B81: =AutoNumberingFormat(B65,A81) -> 
A82: 4 | B82: =AutoNumberingFormat(B80,A82) -> C2.H.1.b.2) | C82: Backup System
A84: 5 | B84: =AutoNumberingFormat(B82,A84) -> C2.H.1.b.2.a) | C84: Tape Backup System | H84: =IF($D84="","",SUM(F84:G84)) -> 
A85: 6 | B85: =AutoNumberingFormat(B84,A85) -> C2.H.1.b.2.a.1) | C85: Automated Tape Backup System Controller with 8Gb Interface (80 cartridge handling min) | D85: No | E85: =ROUNDUP(E86/7,0) -> 0 | H85: 0 | I85: Rate Only
A86: 6 | B86: =AutoNumberingFormat(B85,A86) -> C2.H.1.b.2.a.2) | C86: Automated Tape Backup System Expansion with 8Gb Interface (80 cartridge handling min) | D86: No | E86: =ROUNDUP(E87/80,0) -> 0 | H86: 0 | I86: Rate Only
A87: 6 | B87: =AutoNumberingFormat(B86,A87) -> C2.H.1.b.2.a.3) | C87: LTO-5 Tapes (80 per Automated Tape Backup System) | D87: No | E87: =IF('Quantity Matrix'!AH13>=1,ROUNDUP(((E75*3/2))/1.5,0),0) -> 0 | H87: 0 | I87: Rate Only
A88: 6 | B88: =AutoNumberingFormat(B87,A88) -> C2.H.1.b.2.a.4) | C88: Sundry Installation Material | D88: Sum | E88: =IF(E87=0,0,1) -> 0 | H88: 0 | I88: Rate Only
A90: 6 | B90: =AutoNumberingFormat(B88,A90) -> C2.H.1.b.2.a.5) | C90: =CONCATENATE("Any other items to complete installation of ",B84) -> Any other items to complete installation of C2.H.1.b.2.a)
A92: 5 | B92: =AutoNumberingFormat(B88,A92) -> C2.H.1.b.2.b) | C92: =CONCATENATE("Any other items to complete installation of ",B82) -> Any other items to complete installation of C2.H.1.b.2)
A94: 3 | B94: =AutoNumberingFormat(B92,A94) -> C2.H.1.c) | C94: Security Hardware
A96: 4 | B96: =AutoNumberingFormat(B94,A96) -> C2.H.1.c.1) | C96: Network Firewall Appliance
A97: 5 | B97: =AutoNumberingFormat(B96,A97) -> C2.H.1.c.1.a) | C97: Network (OSI Layer 4) Statefull Packet Inspection Firewall Appliance (with SSL and TLS Content Filtering/Inspection Capability ) (one for every external connection) | D97: No | E97: =IF(E46>0,1,0) -> 1 | H97: 0 | I97: 0
A98: 5 | B98: =AutoNumberingFormat(B97,A98) -> C2.H.1.c.1.b) | C98: Network Firewall License (for duration of Contract) | D98: No | E98: =E97 -> 1 | H98: 0 | I98: 0
A99: 5 | B99: =AutoNumberingFormat(B98,A99) -> C2.H.1.c.1.c) | C99: Sundry Installation Material | D99: Sum | E99: =IF(E98=0,0,1) -> 1 | H99: 0 | I99: 0
A101: 5 | B101: =AutoNumberingFormat(B99,A101) -> C2.H.1.c.1.d) | C101: =CONCATENATE("Any other items to complete installation of ",B96) -> Any other items to complete installation of C2.H.1.c.1)
A103: 4 | B103: =AutoNumberingFormat(B99,A103) -> C2.H.1.c.2) | C103: =CONCATENATE("Any other items to complete installation of ",B94) -> Any other items to complete installation of C2.H.1.c) | I103: =IF(AND(E103=0,D103<>""),"Rate Only",IF($D103="","",$E103*H103)) -> 
B104: =AutoNumberingFormat(B99,A104) -> 
A105: 3 | B105: =AutoNumberingFormat(B103,A105) -> C2.H.1.d) | C105: Rack Equipment
A107: 4 | B107: =AutoNumberingFormat(B105,A107) -> C2.H.1.d.1) | C107: Rack
A108: 5 | B108: =AutoNumberingFormat(B107,A108) -> C2.H.1.d.1.a) | C108: 19" 42U Rack with integrated Cable Management System | D108: No | E108: =ROUNDUP(SUM(E20*3,E61*4,E67*2,E74*3,(E85+E86)*6)/42*2.5,0) -> 2 | H108: 0 | I108: 0
A109: 5 | B109: =AutoNumberingFormat(B108,A109) -> C2.H.1.d.1.b) | C109: Clearline protected power array | D109: No | E109: =E108 -> 2 | H109: 0 | I109: 0
A110: 5 | B110: =AutoNumberingFormat(B109,A110) -> C2.H.1.d.1.c) | C110: Brush Panels for Rack (1 per device) | D110: No | E110: =SUM(E20,E61,E67,E74,E85)*4 -> 24 | H110: 0 | I110: 0
A111: 5 | B111: =AutoNumberingFormat(B110,A111) -> C2.H.1.d.1.d) | C111: Blank Perforated 1U Plates | D111: No | E111: =E110 -> 24 | H111: 0 | I111: 0
A112: 5 | B112: =AutoNumberingFormat(B111,A112) -> C2.H.1.d.1.e) | C112: Sundry Installation Material | D112: Sum | E112: =IF(E111=0,0,1) -> 1 | H112: 0 | I112: 0
A114: 5 | B114: =AutoNumberingFormat(B112,A114) -> C2.H.1.d.1.f) | C114: =CONCATENATE("Any other items to complete installation of ",B107) -> Any other items to complete installation of C2.H.1.d.1)
B115: =AutoNumberingFormat(B112,A115) -> 
A116: 4 | B116: =AutoNumberingFormat(B112,A116) -> C2.H.1.d.2) | C116: Rack Power Supply
A117: 5 | B117: =AutoNumberingFormat(B116,A117) -> C2.H.1.d.2.a) | C117: Supply Dual-Conversion Online UPS (30 min standby time per rack) (Complete with Server Interface for Automatic Shutdown) | D117: No | E117: =E108 -> 2 | H117: 0 | I117: 0
A118: 5 | B118: =AutoNumberingFormat(B117,A118) -> C2.H.1.d.2.b) | C118: Sundry Installation Material | D118: Sum | E118: =IF(E117=0,0,1) -> 1 | H118: 0 | I118: 0
A120: 5 | B120: =AutoNumberingFormat(B118,A120) -> C2.H.1.d.2.c) | C120: =CONCATENATE("Any other items to complete installation of ",B116) -> Any other items to complete installation of C2.H.1.d.2)
B121: =AutoNumberingFormat(B118,A121) -> 
A122: 4 | B122: =AutoNumberingFormat(B118,A122) -> C2.H.1.d.3) | C122: KVM Switch
A123: 5 | B123: =AutoNumberingFormat(B122,A123) -> C2.H.1.d.3.a) | C123: IP Console Switch (able to handle 16 connected devices) | D123: No | E123: =ROUNDUP(E124/16,0) -> 1 | H123: 0 | I123: 0
A124: 5 | B124: =AutoNumberingFormat(B123,A124) -> C2.H.1.d.3.b) | C124: Interface Adapter (1 per Physical Server) | D124: No | E124: =E20+E97+E61+E85+E37 -> 6 | H124: 0 | I124: 0
A125: 5 | B125: =AutoNumberingFormat(B124,A125) -> C2.H.1.d.3.c) | C125: Sundry Installation Material | D125: Sum | E125: =IF(E124=0,0,1) -> 1 | H125: 0 | I125: 0
A127: 5 | B127: =AutoNumberingFormat(B125,A127) -> C2.H.1.d.3.d) | C127: =CONCATENATE("Any other items to complete installation of ",B122) -> Any other items to complete installation of C2.H.1.d.3)
B128: =AutoNumberingFormat(B125,A128) -> 
A129: 4 | B129: =AutoNumberingFormat(B125,A129) -> C2.H.1.d.4) | C129: Rackmount Keyboard and Monitor
A130: 5 | B130: =AutoNumberingFormat(B129,A130) -> C2.H.1.d.4.a) | C130: 1U Rackmount Keyboard, Video, and Mouse | D130: No | E130: =E123 -> 1 | H130: 0 | I130: 0
A131: 5 | B131: =AutoNumberingFormat(B130,A131) -> C2.H.1.d.4.b) | C131: Sundry Installation Material | D131: Sum | E131: =IF(E130=0,0,1) -> 1 | H131: 0 | I131: 0
A133: 5 | B133: =AutoNumberingFormat(B131,A133) -> C2.H.1.d.4.c) | C133: =CONCATENATE("Any other items to complete installation of ",B129) -> Any other items to complete installation of C2.H.1.d.4)
A135: 4 | B135: =AutoNumberingFormat(B131,A135) -> C2.H.1.d.5) | C135: Rackmount Environmental Monitor
A136: 5 | B136: =AutoNumberingFormat(B135,A136) -> C2.H.1.d.5.a) | C136: Rackmount Environmental Monitor (min 16 Sensors, with IP Connectivity) | D136: No | E136: =ROUNDUP(SUM(E137:E141)/16,0) -> 1 | H136: 0 | I136: 0
A137: 5 | B137: C2.H.1.d.5.b) | C137: Environmental Monitor Compliant Temprature Sensor (1 per Rack) | D137: No | E137: =E108 -> 2 | H137: 0 | I137: 0
A138: 5 | B138: C2.H.1.d.5.c) | C138: Environmental Monitor Compliant Humidity Sensor (1 per Rack) | D138: No | E138: =E137 -> 2 | H138: 0 | I138: 0
A139: 5 | B139: C2.H.1.d.5.d) | C139: Environmental Monitor Compliant Vibration Sensor (1 per Rack) | D139: No | E139: =E138 -> 2 | H139: 0 | I139: 0
A140: 5 | B140: C2.H.1.d.5.e) | C140: Environmental Monitor Compliant Door Sensor (1 per Rack) | D140: No | E140: =E139 -> 2 | H140: 0 | I140: 0
A141: 5 | B141: C2.H.1.d.5.f) | C141: Environmental Monitor Compliant Power Consumption Sensor (1 per Rack) | D141: No | E141: =E140 -> 2 | H141: =IF($D141="","",SUM(F141:G141)) -> 0 | I141: 0
A142: 5 | B142: C2.H.1.d.5.g) | C142: Sundry Installation Material | D142: Sum | E142: =IF(E136=0,0,1) -> 1 | H142: 0 | I142: 0
A144: 5 | B144: =AutoNumberingFormat(B142,A144) -> C2.H.1.d.5.h) | C144: =CONCATENATE("Any other items to complete installation of ",B135) -> Any other items to complete installation of C2.H.1.d.5)
A146: 4 | B146: =AutoNumberingFormat(B144,A146) -> C2.H.1.d.6) | C146: =CONCATENATE("Any other items to complete installation of ",B105) -> Any other items to complete installation of C2.H.1.d)
A148: 3 | B148: =AutoNumberingFormat(B146,A148) -> C2.H.1.e) | C148: Software
B149: =AutoNumberingFormat(B148,A149) -> 
A150: 4 | B150: =AutoNumberingFormat(B148,A150) -> C2.H.1.e.1) | C150: Hypervisor System
A151: 5 | B151: =AutoNumberingFormat(B150,A151) -> C2.H.1.e.1.a) | C151: VMWare vSphere >= 6.5 Enterprise (Complete with 64-bit functionality covering all processors) or Equivalent (1 for each of the physical servers, including offsite hosted servers) | D151: No | E151: =E20+E46 -> 6 | H151: 0 | I151: 0
A152: 5 | B152: =AutoNumberingFormat(B151,A152) -> C2.H.1.e.1.b) | C152: Licensing for High-Availability, Replication, vSAN, Recovering, and Updates for duration of Contract | D152: No | E152: =E151 -> 6 | H152: 0 | I152: 0
A153: 5 | B153: =AutoNumberingFormat(B152,A153) -> C2.H.1.e.1.c) | C153: Sundry Installation Material | D153: Sum | E153: =IF(E152=0,0,1) -> 1 | H153: 0 | I153: 0
A155: 5 | B155: =AutoNumberingFormat(B153,A155) -> C2.H.1.e.1.d) | C155: =CONCATENATE("Any other items to complete installation of ",B150) -> Any other items to complete installation of C2.H.1.e.1)
A157: 4 | B157: =AutoNumberingFormat(B155,A157) -> C2.H.1.e.2) | C157: Server Operating System
A158: 5 | B158: =AutoNumberingFormat(B157,A158) -> C2.H.1.e.2.a) | C158: Microsoft Windows Server >= 2012 R2 (64-bit) Standard | D158: No | E158: =E20*4 -> 12 | H158: 0 | I158: 0
A159: 5 | B159: =AutoNumberingFormat(B158,A159) -> C2.H.1.e.2.b) | C159: Client Access Licenses (25 CALs per Server) | D159: No | E159: =E158*25 -> 300 | H159: 0 | I159: 0
A160: 5 | B160: =AutoNumberingFormat(B159,A160) -> C2.H.1.e.2.c) | C160: Device Access Licenses (25 DALs per Server) | D160: No | E160: =E159 -> 300 | H160: 0 | I160: 0
A161: 5 | B161: =AutoNumberingFormat(B160,A161) -> C2.H.1.e.2.d) | C161: Sundry Installation Material | D161: Sum | E161: =IF(E160=0,0,1) -> 1 | H161: 0 | I161: 0
A163: 5 | B163: =AutoNumberingFormat(B161,A163) -> C2.H.1.e.2.e) | C163: =CONCATENATE("Any other items to complete installation of ",B157) -> Any other items to complete installation of C2.H.1.e.2)
B164: =AutoNumberingFormat(B161,A164) -> 
A165: 4 | B165: =AutoNumberingFormat(B163,A165) -> C2.H.1.e.3) | C165: Database System
A166: 5 | B166: =AutoNumberingFormat(B165,A166) -> C2.H.1.e.3.a) | C166: Microsoft SQL Server >= 2014 Enterprise (64-Bit with 2 cores enabled) or Equivalent | D166: No | E166: =IF(E158>0,2,0) -> 2 | H166: 0 | I166: 0
A167: 5 | B167: =AutoNumberingFormat(B166,A167) -> C2.H.1.e.3.b) | C167: Other non-MS Database (if required) | D167: No | E167: =E166 -> 2 | H167: =IF($D167="","",SUM(F167:G167)) -> 0 | I167: =IF(AND(E167=0,D167<>""),"Rate Only",IF($D167="","",$E167*H167)) -> 0
A168: 5 | B168: C2.H.1.e.3.c) | C168: Sundry Installation Material | D168: Sum | E168: =IF(E166=0,0,1) -> 1 | H168: 0 | I168: =IF(AND(E168=0,D168<>""),"Rate Only",IF($D168="","",$E168*H168)) -> 0
A170: 5 | B170: =AutoNumberingFormat(B168,A170) -> C2.H.1.e.3.d) | C170: =CONCATENATE("Any other items to complete installation of ",B165) -> Any other items to complete installation of C2.H.1.e.3)
A172: 4 | B172: =AutoNumberingFormat(B170,A172) -> C2.H.1.e.4) | C172: Security System
A174: 5 | B174: =AutoNumberingFormat(B172,A174) -> C2.H.1.e.4.a) | C174: Malware Security System
A175: 6 | B175: =AutoNumberingFormat(B174,A175) -> C2.H.1.e.4.a.1) | C175: Centralized Anti-Malware Software | D175: No | E175: =IF(E158>0,1,0) -> 1 | H175: 0 | I175: =IF(AND(E175=0,D175<>""),"Rate Only",IF($D175="","",$E175*H175)) -> 0
A176: 6 | B176: =AutoNumberingFormat(B175,A176) -> C2.H.1.e.4.a.2) | C176: Client Side Anti-Malware Software | D176: No | E176: =E158 -> 12 | H176: 0 | I176: 0
A177: 6 | B177: =AutoNumberingFormat(B176,A177) -> C2.H.1.e.4.a.3) | C177: Licensing for duartion of Contract (for all Client Side Updates) | D177: Month | E177: =IF(E175>0,'Quantity Matrix'!B32*12,0) -> 96 | H177: 0 | I177: 0
A178: 6 | B178: =AutoNumberingFormat(B177,A178) -> C2.H.1.e.4.a.4) | C178: Sundry Installation Material | D178: Sum | E178: =IF(E175=0,0,1) -> 1 | H178: 0 | I178: 0
A180: 6 | B180: =AutoNumberingFormat(B178,A180) -> C2.H.1.e.4.a.5) | C180: =CONCATENATE("Any other items to complete installation of ",B174) -> Any other items to complete installation of C2.H.1.e.4.a)
B181: =AutoNumberingFormat(B178,A181) -> 
A182: 5 | B182: =AutoNumberingFormat(B180,A182) -> C2.H.1.e.4.b) | C182: Biometric Security System | H182: =IF($D182="","",SUM(F182:G182)) -> 
A183: 6 | B183: =AutoNumberingFormat(B182,A183) -> C2.H.1.e.4.b.1) | C183: Centralized Biometric Security Software (LDAP Integration) | D183: No | E183: =IF(E166>0,1,0) -> 1 | H183: 0 | I183: =IF(AND(E183=0,D183<>""),"Rate Only",IF($D183="","",$E183*H183)) -> 0
A184: 6 | B184: =AutoNumberingFormat(B183,A184) -> C2.H.1.e.4.b.2) | C184: Client Side Biometric Security Software | D184: No | E184: =E176+'Quantity Matrix'!C26 -> 98 | H184: 0 | I184: 0
A185: 6 | B185: =AutoNumberingFormat(B184,A185) -> C2.H.1.e.4.b.3) | C185: Licensing for duartion of Contract (for all Client Side Updates) | D185: Month | E185: =IF(E175>0,'Quantity Matrix'!B32*12,0) -> 96 | H185: 0 | I185: 0
A186: 6 | B186: =AutoNumberingFormat(B185,A186) -> C2.H.1.e.4.b.4) | C186: Sundry Installation Material | D186: Sum | E186: =IF(E183=0,0,1) -> 1 | H186: 0 | I186: 0
A188: 6 | B188: =AutoNumberingFormat(B186,A188) -> C2.H.1.e.4.b.5) | C188: =CONCATENATE("Any other items to complete installation of ",B182) -> Any other items to complete installation of C2.H.1.e.4.b)
B189: =AutoNumberingFormat(B186,A189) -> 
A190: 5 | B190: =AutoNumberingFormat(B188,A190) -> C2.H.1.e.4.c) | C190: =CONCATENATE("Any other items to complete installation of ",B172) -> Any other items to complete installation of C2.H.1.e.4) | H190: =IF($D190="","",SUM(F190:G190)) ->  | I190: =IF(AND(E190=0,D190<>""),"Rate Only",IF($D190="","",$E190*H190)) -> 
A192: 4 | B192: =AutoNumberingFormat(B190,A192) -> C2.H.1.e.5) | C192: Centralised Patch/Software Deployement Management Server
A193: 5 | B193: =AutoNumberingFormat(B192,A193) -> C2.H.1.e.5.a) | C193: Patch/Software Management Server for all OS and Software Suites | D193: No | E193: =IF(E166>0,1,0) -> 1 | H193: 0 | I193: 0
A194: 5 | B194: =AutoNumberingFormat(B193,A194) -> C2.H.1.e.5.b) | C194: Client Side Centralized Patch/Software Deployement Software | D194: No | E194: =E158 -> 12 | H194: 0 | I194: 0
A195: 5 | B195: =AutoNumberingFormat(B194,A195) -> C2.H.1.e.5.c) | C195: Licensing for duartion of Contract | D195: Month | E195: =IF(E193>0,'Quantity Matrix'!B32*12,0) -> 96 | H195: 0 | I195: 0
A196: 5 | B196: =AutoNumberingFormat(B195,A196) -> C2.H.1.e.5.d) | C196: Sundry Installation Material | D196: Sum | E196: =IF(E193=0,0,1) -> 1 | H196: 0 | I196: 0
A198: 5 | B198: =AutoNumberingFormat(B196,A198) -> C2.H.1.e.5.e) | C198: =CONCATENATE("Any other items to complete installation of ",B192) -> Any other items to complete installation of C2.H.1.e.5)
B199: =AutoNumberingFormat(B196,A199) -> 
A200: 4 | B200: =AutoNumberingFormat(B198,A200) -> C2.H.1.e.6) | C200: Office System
A201: 5 | B201: =AutoNumberingFormat(B200,A201) -> C2.H.1.e.6.a) | C201: Microsoft Office Sharepoint Virtual Appliance | D201: No | E201: =IF(E203>0,1,0) -> 1 | H201: 0 | I201: 0
A202: 5 | B202: =AutoNumberingFormat(B201,A202) -> C2.H.1.e.6.b) | C202: Customize Sharepoint with Branding and Applications | D202: Sum | E202: =IF(E201=0,0,1) -> 1 | H202: 0 | I202: 0
A203: 5 | B203: =AutoNumberingFormat(B202,A203) -> C2.H.1.e.6.c) | C203: Microsoft Office Professional >=2013 | D203: No | E203: =E158 -> 12
A204: 5 | B204: =AutoNumberingFormat(B203,A204) -> C2.H.1.e.6.d) | C204: Client Access Licenses (For duration of Contract) | D204: Month | E204: =IF(E201>0,'Quantity Matrix'!B32*12,0) -> 96 | H204: 0 | I204: 0
A205: 5 | B205: C2.H.1.e.6.e) | C205: Sundry Installation Material | D205: Sum | E205: =IF(E202=0,0,1) -> 1 | H205: 0 | I205: 0
A207: 5 | B207: =AutoNumberingFormat(B205,A207) -> C2.H.1.e.6.f) | C207: =CONCATENATE("Any other items to complete installation of ",B200) -> Any other items to complete installation of C2.H.1.e.6)
A209: 4 | B209: =AutoNumberingFormat(B207,A209) -> C2.H.1.e.7) | C209: GTFS Calculation Server | H209: =IF($D209="","",SUM(F209:G209)) ->  | I209: =IF(AND(E209=0,D209<>""),"Rate Only",IF($D209="","",$E209*H209)) -> 
A210: 5 | B210: =AutoNumberingFormat(B209,A210) -> C2.H.1.e.7.a) | C210: General Transit Feed Specification (GTFS) Calculation Server (OneBusAway or Equivalent) | D210: No | E210: =IF(E158>0,1,0) -> 1 | H210: 0 | I210: 0
A211: 5 | B211: =AutoNumberingFormat(B210,A211) -> C2.H.1.e.7.b) | C211: License (For duration of Contract and unlimited amount of sub-domains) | D211: Month | E211: =IF(E210>0,'Quantity Matrix'!B32*12,0) -> 96 | H211: 0 | I211: 0
A212: 5 | B212: =AutoNumberingFormat(B211,A212) -> C2.H.1.e.7.c) | C212: Sundry Installation Material | D212: Sum | E212: =IF(E210=0,0,1) -> 1 | H212: 0 | I212: 0
A214: 5 | B214: =AutoNumberingFormat(B212,A214) -> C2.H.1.e.7.d) | C214: =CONCATENATE("Any other items to complete installation of ",B209) -> Any other items to complete installation of C2.H.1.e.7)
A216: 4 | B216: =AutoNumberingFormat(B214,A216) -> C2.H.1.e.8) | C216: =CONCATENATE("Any other items to complete installation of ",B148) -> Any other items to complete installation of C2.H.1.e)
B217: =AutoNumberingFormat(B205,A217) -> 
A218: 2 | B218: =AutoNumberingFormat(B216,A218) -> C2.H.2) | C218: =CONCATENATE("Control and Operations Servers (For the remaining Sections of type ",'Quantity Matrix'!A13,")") -> Control and Operations Servers (For the remaining Sections of type Back Office (66 Sauer Street))
A219: 3 | B219: =AutoNumberingFormat(B218,A219) -> C2.H.2.a) | C219: =CONCATENATE("Remaining facilities with Control and Operations Server Infrastructure based on item Amount in ",B15) -> Remaining facilities with Control and Operations Server Infrastructure based on item Amount in C2.H.1) | D219: No | E219: ='Quantity Matrix'!B13-1 -> 0 | F219: =SUMPRODUCT($E15:$E218,F15:F218) -> 0 | G219: =SUMPRODUCT($E15:$E218,G15:G218) -> 0 | H219: =IF($D219="","",SUM(F219:G219)) -> 0 | I219: Rate Only
A221: 2 | B221: =AutoNumberingFormat(B219,A221) -> C2.H.3) | C221: Commissioning and Documentation | H221: =IF($D221="","",SUM(F221:G221)) ->  | I221: =IF(AND(E221=0,D221<>""),"Rate Only",IF($D221="","",$E221*H221)) -> 
B222: =AutoNumberingFormat(B221,A222) -> 
A223: 3 | B223: =AutoNumberingFormat(B221,A223) -> C2.H.3.a) | C223: Testing & Commissioning
A224: 4 | B224: =AutoNumberingFormat(B223,A224) -> C2.H.3.a.1) | C224: Contractor’s Component Testing (labour and special test requirements) | D224: Sum | E224: 1 | H224: 0 | I224: 0
A225: 4 | B225: C2.H.3.a.2) | C225: Conduct FATs under Engineer's Supervision | D225: Sum | E225: =IF(E224=0,0,1) -> 1 | H225: 0 | I225: 0
A226: 4 | B226: C2.H.3.a.3) | C226: Conduct IFATs under Engineer's Supervision | D226: Sum | E226: =IF(E225=0,0,1) -> 1 | H226: 0 | I226: 0
A227: 4 | B227: C2.H.3.a.4) | C227: Conduct SATs under Engineer’s Supervision | D227: Sum | E227: =IF(E225=0,0,1) -> 1 | H227: =IF($D227="","",SUM(F227:G227)) -> 0 | I227: 0
A228: 4 | B228: C2.H.3.a.5) | C228: Conduct ISATs under Engineer’s Supervision | D228: Sum | E228: =IF(E226=0,0,1) -> 1 | H228: 0 | I228: 0
A229: 4 | B229: C2.H.3.a.6) | C229: Execute 30-day Trial Period | D229: Sum | E229: =IF(E227=0,0,1) -> 1 | H229: 0 | I229: 0
A231: 4 | B231: =AutoNumberingFormat(B229,A231) -> C2.H.3.a.7) | C231: =CONCATENATE("Any other items to complete installation of ",B223) -> Any other items to complete installation of C2.H.3.a)
B232: =AutoNumberingFormat(B229,A232) -> 
A233: 3 | B233: =AutoNumberingFormat(B229,A233) -> C2.H.3.b) | C233: Documentation
A234: 4 | B234: =AutoNumberingFormat(B233,A234) -> C2.H.3.b.1) | C234: Design | D234: % | E234: =SUM(I19:I231) -> 0 | F234: 0.01 | H234: =IF($D234="","",SUM(F234:G234)) -> 0.01 | I234: =IF(AND(E234=0,D234<>""),"Rate Only",IF($D234="","",$E234*H234)) -> Rate Only
A235: 4 | B235: C2.H.3.b.2) | C235: FAT and IFAT Test Plan and Methods | D235: % | E235: =E234 -> 0 | F235: 0.0075 | H235: 0.0075 | I235: Rate Only
A236: 4 | B236: C2.H.3.b.3) | C236: SAT and ISAT Test Plan and Methods | D236: % | E236: 0 | F236: 0.0075 | H236: 0.0075 | I236: Rate Only
A237: 4 | B237: C2.H.3.b.4) | C237: As-Built | D237: % | E237: 0 | F237: 0.0075 | H237: 0.0075 | I237: Rate Only
A238: 4 | B238: C2.H.3.b.5) | C238: Operations | D238: % | E238: 0 | F238: 0.0025 | H238: 0.0025 | I238: Rate Only
A239: 4 | B239: C2.H.3.b.6) | C239: Maintenance | D239: % | E239: 0 | F239: 0.0025 | H239: 0.0025 | I239: Rate Only
A240: 4 | B240: C2.H.3.b.7) | C240: Training Manuals | D240: % | E240: 0 | F240: 0.0025 | H240: 0.0025 | I240: Rate Only
A242: 4 | B242: =AutoNumberingFormat(B240,A242) -> C2.H.3.b.8) | C242: =CONCATENATE("Any other items to complete installation of ",B233) -> Any other items to complete installation of C2.H.3.b)
A244: 3 | B244: =AutoNumberingFormat(B240,A244) -> C2.H.3.c) | C244: PED Certification
A245: 4 | B245: =AutoNumberingFormat(B244,A245) -> C2.H.3.c.1) | C245: Obtain and Provide PIN Entry Devices Certification | D245: Sum | E245: =IF(E237=0,0,1) -> 0 | H245: 0 | I245: Rate Only
A246: 4 | B246: =AutoNumberingFormat(B245,A246) -> C2.H.3.c.2) | C246: Revisions as required | D246: Sum | E246: =IF(E245=0,0,1) -> 0 | H246: 0 | I246: Rate Only
A248: 4 | B248: =AutoNumberingFormat(B246,A248) -> C2.H.3.c.3) | C248: =CONCATENATE("Any other items to complete installation of ",B244) -> Any other items to complete installation of C2.H.3.c)
A250: 3 | B250: =AutoNumberingFormat(B246,A250) -> C2.H.3.d) | C250: NDoT Certification
A251: 4 | B251: =AutoNumberingFormat(B250,A251) -> C2.H.3.d.1) | C251: Obtain and Provide NDoT AFC Data Structure Certification | D251: Sum | E251: =IF(E246=0,0,1) -> 0 | H251: 0 | I251: Rate Only
A252: 4 | B252: =AutoNumberingFormat(B251,A252) -> C2.H.3.d.2) | C252: Revisions as required | D252: Sum | E252: =IF(E251=0,0,1) -> 0 | H252: 0 | I252: Rate Only
A254: 4 | B254: =AutoNumberingFormat(B252,A254) -> C2.H.3.d.3) | C254: =CONCATENATE("Any other items to complete installation of ",B250) -> Any other items to complete installation of C2.H.3.d)
A256: 3 | B256: =AutoNumberingFormat(B254,A256) -> C2.H.3.e) | C256: PCI DSS Certification | H256: =IF($D256="","",SUM(F256:G256)) -> 
A257: 4 | B257: =AutoNumberingFormat(B256,A257) -> C2.H.3.e.1) | C257: Obtain PCI Data Security Standard Certification from Independent Third-Party | D257: Sum | E257: 1 | H257: 0 | I257: 0
... 16 more rows

Sheet COS
B1: ='P''s & G''s'!B1:H1 -> CITY OF JOHANNESBURG
B2: ='P''s & G''s'!B2:H2 -> CONTRACT NO. JDA-WP 15K-01
B4: ='P''s & G''s'!B4:H4 -> THE DESIGN, BUILD, AND MAINTENANCE OF AN
B5: ='P''s & G''s'!B5:H5 -> AUTOMATED FARE COLLECTION SYSTEM
B6: ='P''s & G''s'!B6:H6 -> FOR REA VAYA AND METROBUS FOR A 8 YEAR PERIOD
B7: ='P''s & G''s'!B7:H7 -> 
B8: ="SCHEDULE - " & SUBSTITUTE(B13,")","") & " - " & C13 -> SCHEDULE - C2.I - O&M PERIOD: CONTROL AND OPERATIONS SOFTWARE
B10: ITEM | C10: DESCRIPTION OF ITEM | D10: UNIT | E10: QUANTITY | F10: SUPPLY | G10: INSTALL | H10: RATE | I10: AMOUNT
C12: The rates to be filled in hereunder must make provision for all specified equipment, associated materials, integration, and systems in order to execute the complete works as specified. | J12: =FindDuplicates(B13:B114) -> 
A13: 1 | B13: =SUMMARY!B20 -> C2.I) | C13: =SUMMARY!C20 -> O&M PERIOD: CONTROL AND OPERATIONS SOFTWARE
A15: 2 | B15: =AutoNumberingFormat(B13,A15) -> C2.I.1) | C15: Automatic Fare Collection System Software Costs
B16: =AutoNumberingFormat(B14,A16) -> 
A17: 3 | B17: =AutoNumberingFormat(B15,A17) -> C2.I.1.a) | C17: Once-Off
A19: 4 | B19: =AutoNumberingFormat(B17,A19) -> C2.I.1.a.1) | C19: AFC Onboard and Back Office System Software
A20: 5 | B20: =AutoNumberingFormat(B19,A20) -> C2.I.1.a.1.a) | C20: AFC System Base | D20: Sum | E20: 1 | H20: =IF($D20="","",SUM(F20:G20))/231*'Quantity Matrix'!$B$20 -> 0 | I20: =IF(AND(E20=0,D20<>""),"Rate Only",IF($D20="","",$E20*H20)) -> 0
A21: 5 | B21: =AutoNumberingFormat(B20,A21) -> C2.I.1.a.1.b) | C21: Flat Fare System Rules Software | D21: Sum | E21: 1 | H21: =IF($D21="","",SUM(F21:G21))/231*'Quantity Matrix'!$B$20 -> 0 | I21: 0
A22: 5 | B22: =AutoNumberingFormat(B21,A22) -> C2.I.1.a.1.c) | C22: Distance Based System Rules Software | D22: Sum | E22: 1 | H22: =IF($D22="","",SUM(F22:G22))/231*'Quantity Matrix'!$B$20 -> 0 | I22: =IF(AND(E22=0,D22<>""),"Rate Only",IF($D22="","",$E22*H22)) -> 0
A23: 5 | B23: =AutoNumberingFormat(B22,A23) -> C2.I.1.a.1.d) | C23: Transfer Based System Rules Software | D23: Sum | E23: 1 | H23: =IF($D23="","",SUM(F23:G23))/231*'Quantity Matrix'!$B$20 -> 0 | I23: =IF(AND(E23=0,D23<>""),"Rate Only",IF($D23="","",$E23*H23)) -> 0
A24: 5 | B24: C2.I.1.a.1.e) | C24: Access Control Validator System Software | D24: Sum | E24: 1 | H24: =IF($D24="","",SUM(F24:G24))/231*'Quantity Matrix'!$B$20 -> 0 | I24: 0
A25: 5 | B25: C2.I.1.a.1.f) | C25: Vehicle Validator System Software | D25: Sum | E25: 1 | H25: =IF($D25="","",SUM(F25:G25))/231*'Quantity Matrix'!$B$20 -> 0 | I25: 0
A26: 5 | B26: C2.I.1.a.1.g) | C26: Point-of-Sale System Software | D26: Sum | E26: 1 | H26: =IF($D26="","",SUM(F26:G26))/231*'Quantity Matrix'!$B$20 -> 0 | I26: 0
A27: 5 | B27: C2.I.1.a.1.h) | C27: Cash Reconciliation System Software | D27: Sum | E27: 1 | H27: =IF($D27="","",SUM(F27:G27))/231*'Quantity Matrix'!$B$20 -> 0 | I27: =IF(AND(E27=0,D27<>""),"Rate Only",IF($D27="","",$E27*H27)) -> 0
A28: 5 | B28: =AutoNumberingFormat(B27,A28) -> C2.I.1.a.1.i) | C28: ITSM System Software | D28: Sum | E28: 1 | H28: =IF($D28="","",SUM(F28:G28))/231*'Quantity Matrix'!$B$20 -> 0 | I28: 0
A29: 5 | B29: =AutoNumberingFormat(B28,A28) -> C2.I.1.a.1.j) | C29: EMV Open Loop and Wallets | D29: Sum | E29: 1 | H29: =IF($D29="","",SUM(F29:G29))/231*'Quantity Matrix'!$B$20 -> 0 | I29: 0
A30: 5 | B30: =AutoNumberingFormat(B29,A29) -> C2.I.1.a.1.k) | C30: Fare products detailed in Annexure A | D30: Sum | E30: 1 | H30: =IF($D30="","",SUM(F30:G30))/231*'Quantity Matrix'!$B$20 -> 0 | I30: 0
A31: 5 | B31: =AutoNumberingFormat(B30,A30) -> C2.I.1.a.1.l) | C31: Workflow Management tool | D31: Sum | E31: 1 | H31: =IF($D30="","",SUM(F31:G31))/231*'Quantity Matrix'!$B$20 -> 0 | I31: =IF(AND(E31=0,D30<>""),"Rate Only",IF($D30="","",$E31*H31)) -> 0
A32: 5 | B32: =AutoNumberingFormat(B31,A31) -> C2.I.1.a.1.m) | C32: Fare Media detailed in Annexure A | D32: Sum | E32: 1 | H32: =IF($D31="","",SUM(F32:G32))/231*'Quantity Matrix'!$B$20 -> 0 | I32: =IF(AND(E32=0,D31<>""),"Rate Only",IF($D31="","",$E32*H32)) -> 0
A33: 5 | B33: =AutoNumberingFormat(B32,A32) -> C2.I.1.a.1.n) | C33: EMV Digital Wallets and 3rd Party Issuing of Open Loop debit cards | D33: Sum | E33: 1 | H33: =IF($D32="","",SUM(F33:G33))/231*'Quantity Matrix'!$B$20 -> 0 | I33: =IF(AND(E33=0,D32<>""),"Rate Only",IF($D32="","",$E33*H33)) -> 0
A34: 5 | B34: =AutoNumberingFormat(B33,A39) -> C2.I.1.a.1.o) | C34: Data Warehouse and BI tool for Financial and transport operations | D34: Sum | E34: 1 | H34: =IF($D33="","",SUM(F34:G34))/231*'Quantity Matrix'!$B$20 -> 0 | I34: =IF(AND(E34=0,D33<>""),"Rate Only",IF($D33="","",$E34*H34)) -> 0
B35: =AutoNumberingFormat(B34,A40) -> C2.I.1.a.1.p) | C35: Integration into SAP S 4 Hanna | D35: Sum | E35: 1 | H35: =IF($D34="","",SUM(F35:G35))/231*'Quantity Matrix'!$B$20 -> 0 | I35: 0
B36: =AutoNumberingFormat(B35,A35) ->  | C36: =CONCATENATE("Any other items to complete installation of ",B19) -> Any other items to complete installation of C2.I.1.a.1) | D36: Sum | E36: 1 | H36: =IF($D36="","",SUM(F36:G36))/231*'Quantity Matrix'!$B$20 -> 0 | I36: =IF(AND(E36=0,D36<>""),"Rate Only",IF($D36="","",$E36*H36)) -> 0
A38: 4 | B38: =AutoNumberingFormat(B28,A38) -> C2.I.1.a.2) | C38: Back Office Data Server System Software | D38: Sum | H38: =IF($D38="","",SUM(F38:G38))/231*'Quantity Matrix'!$B$20 -> 0 | I38: Rate Only
A39: 5 | B39: =AutoNumberingFormat(B38,A39) -> C2.I.1.a.2.a) | C39: Vehicle Validator Data Server Software | D39: Sum | E39: 1 | H39: =IF($D39="","",SUM(F39:G39))/231*'Quantity Matrix'!$B$20 -> 0 | I39: 0
A40: 5 | B40: =AutoNumberingFormat(B39,A40) -> C2.I.1.a.2.b) | C40: Access Control Data Server Software | D40: Sum | E40: 1 | H40: =IF($D40="","",SUM(F40:G40))/231*'Quantity Matrix'!$B$20 -> 0 | I40: 0
A41: 5 | B41: =AutoNumberingFormat(B40,A41) -> C2.I.1.a.2.c) | C41: Point-of-Sale Data Server Software | D41: Sum | E41: 1 | H41: =IF($D41="","",SUM(F41:G41))/231*'Quantity Matrix'!$B$20 -> 0 | I41: 0
A42: 5 | B42: =AutoNumberingFormat(B41,A42) -> C2.I.1.a.2.d) | C42: Cash Reconciliation Data Server Software | D42: Sum | E42: 1 | H42: =IF($D42="","",SUM(F42:G42))/231*'Quantity Matrix'!$B$20 -> 0 | I42: 0
A44: 5 | B44: =AutoNumberingFormat(B42,A44) -> C2.I.1.a.2.e) | C44: =CONCATENATE("Any other items to complete installation of ",B38) -> Any other items to complete installation of C2.I.1.a.2)
A46: 4 | B46: =AutoNumberingFormat(B44,A46) -> C2.I.1.a.3) | C46: Back Office Audit/Reporting Server System Software
A47: 5 | B47: =AutoNumberingFormat(B46,A47) -> C2.I.1.a.3.a) | C47: Vehicle Validator Audit/Reporting Server Software | D47: Sum | E47: 1 | H47: =IF($D47="","",SUM(F47:G47))/231*'Quantity Matrix'!$B$20 -> 0 | I47: 0
A48: 5 | B48: =AutoNumberingFormat(B47,A48) -> C2.I.1.a.3.b) | C48: Access Control Audit/Reporting Server Software | D48: Sum | E48: 1 | H48: =IF($D48="","",SUM(F48:G48))/231*'Quantity Matrix'!$B$20 -> 0 | I48: 0
A49: 5 | B49: =AutoNumberingFormat(B48,A49) -> C2.I.1.a.3.c) | C49: Point-of-Sale Audit/Reporting Server Software | D49: Sum | E49: 1 | H49: =IF($D49="","",SUM(F49:G49))/231*'Quantity Matrix'!$B$20 -> 0 | I49: 0
A50: 5 | B50: =AutoNumberingFormat(B49,A50) -> C2.I.1.a.3.d) | C50: Cash Reconciliation Audit/Reporting Server Software | D50: Sum | E50: 1 | H50: =IF($D50="","",SUM(F50:G50))/231*'Quantity Matrix'!$B$20 -> 0 | I50: =IF(AND(E50=0,D50<>""),"Rate Only",IF($D50="","",$E50*H50)) -> 0
B51: C2.I.1.a.3.e) | C51: SAP S 4 Hanna Interface for Group Reporting | D51: Sum | E51: 1 | H51: =IF($D51="","",SUM(F51:G51))/231*'Quantity Matrix'!$B$20 -> 0 | I51: 0
A52: 5 | B52: =AutoNumberingFormat(B50,A52) -> C2.I.1.a.3.e) | C52: =CONCATENATE("Any other items to complete installation of ",B46) -> Any other items to complete installation of C2.I.1.a.3)
A54: 4 | B54: =AutoNumberingFormat(B52,A54) -> C2.I.1.a.4) | C54: Central Fare Management System Software | D54: Sum | E54: 1 | H54: =IF($D54="","",SUM(F54:G54))/231*'Quantity Matrix'!$B$20 -> 0 | I54: 0
A56: 5 | B56: =AutoNumberingFormat(B54,A56) -> C2.I.1.a.4.a) | C56: =CONCATENATE("Any other items to complete installation of ",B54) -> Any other items to complete installation of C2.I.1.a.4) | E56: 1 | H56: 0 | I56: 0
I57: =IF(AND(E57=0,D57<>""),"Rate Only",IF($D57="","",$E57*H57)) -> 
A58: 4 | B58: =AutoNumberingFormat(B56,A58) -> C2.I.1.a.5) | C58: =CONCATENATE("Any other items to complete installation of ",B17) -> Any other items to complete installation of C2.I.1.a) | E58: 1 | H58: 0 | I58: 0
B59: =AutoNumberingFormat(B57,A59) -> 
A61: 3 | B61: =AutoNumberingFormat(B58,A61) -> C2.I.1.b) | C61: =CONCATENATE("Any other items to complete installation of ",B15) -> Any other items to complete installation of C2.I.1) | I61: =IF(AND(E61=0,D61<>""),"Rate Only",IF($D61="","",$E61*H61)) -> 
H62: =IF($D62="","",SUM(F62:G62)) ->  | I62: =IF(AND(E62=0,D62<>""),"Rate Only",IF($D62="","",$E62*H62)) -> 
A63: 2 | B63: =AutoNumberingFormat(B61,A63) -> C2.I.2) | C63: Bank System Integration | H63: =IF($D63="","",SUM(F63:G63)) ->  | I63: =IF(AND(E63=0,D63<>""),"Rate Only",IF($D63="","",$E63*H63)) -> 
B64: =AutoNumberingFormat(B63,A64) ->  | C64: Integration into payment service provider as per Annexure A
A65: 3 | B65: =AutoNumberingFormat(B63,A65) -> C2.I.2.a) | C65: Integration and certification into a different bank's acquiring back office system software for the EMV transactions. The cost should be for a bank that the systems integrator has not yet integrated into. | D65: No | E65: 1 | H65: 0 | I65: 0
A66: 3 | B66: =AutoNumberingFormat(B65,A66) -> C2.I.2.b) | C66: Integration and certification into a different bank's acquiring back office system software for the EMV transactions. The cost should be for a different bank that the systems integrator has already integrated into through previous contracts/initiatives. | D66: No | E66: 1 | H66: 0 | I66: 0
B67: =AutoNumberingFormat(B66,A66) -> C2.I.2.c) | C67: 3rd Party Issuing and Aquiring services per transaction via PSP | D67: per | E67: 1000 | H67: 0 | I67: 0
A68: 3 | B68: =AutoNumberingFormat(B67,A68) -> C2.I.2.d) | C68: =CONCATENATE("Any other items to complete installation of ",B63) -> Any other items to complete installation of C2.I.2)
A70: 2 | B70: =AutoNumberingFormat(B68,A70) -> C2.I.3) | C70: Commissioning and Documentation | H70: =IF($D70="","",SUM(F70:G70)) ->  | I70: =IF(AND(E70=0,D70<>""),"Rate Only",IF($D70="","",$E70*H70)) -> 
B71: =AutoNumberingFormat(B70,A71) -> 
A72: 3 | B72: =AutoNumberingFormat(B70,A72) -> C2.I.3.a) | C72: Testing & Commissioning
A73: 4 | B73: =AutoNumberingFormat(B72,A73) -> C2.I.3.a.1) | C73: Contractor’s Component Testing (labour and special test requirements) | D73: Sum | E73: 1 | H73: 0 | I73: 0
A74: 4 | B74: C2.I.3.a.2) | C74: Conduct IFATs under Engineer's Supervision | D74: Sum | E74: =IF(E73=0,0,1) -> 1 | H74: 0 | I74: 0
A75: 4 | B75: C2.I.3.a.3) | C75: Conduct ISATs under Engineer's Supervision | D75: Sum | E75: =IF(E74=0,0,1) -> 1 | H75: 0 | I75: 0
A76: 4 | B76: =AutoNumberingFormat(B75,A76) -> C2.I.3.a.4) | C76: Execute 30-day Trial Period | D76: Sum | E76: =IF(E75=0,0,1) -> 1 | H76: =IF($D76="","",SUM(F76:G76)) -> 0 | I76: 0
A78: 4 | B78: =AutoNumberingFormat(B76,A78) -> C2.I.3.a.5) | C78: =CONCATENATE("Any other items to complete installation of ",B72) -> Any other items to complete installation of C2.I.3.a)
B79: =AutoNumberingFormat(B76,A79) -> 
A80: 3 | B80: =AutoNumberingFormat(B76,A80) -> C2.I.3.b) | C80: Documentation
A81: 4 | B81: =AutoNumberingFormat(B80,A81) -> C2.I.3.b.1) | C81: Design | D81: % | E81: =SUM(I13:I78) -> 0 | F81: 0.01 | H81: 0.01 | I81: Rate Only
A82: 4 | B82: C2.I.3.b.2) | C82: FAT and IFAT Test Plan and Methods | D82: % | E82: =E81 -> 0 | F82: 0.0075 | H82: 0.0075 | I82: Rate Only
A83: 4 | B83: C2.I.3.b.3) | C83: SAT and ISAT Test Plan and Methods | D83: % | E83: 0 | F83: 0.0075 | H83: 0.0075 | I83: Rate Only
A84: 4 | B84: C2.I.3.b.4) | C84: As-Built | D84: % | E84: 0 | F84: 0.0075 | H84: 0.0075 | I84: Rate Only
A85: 4 | B85: C2.I.3.b.5) | C85: Operations | D85: % | E85: 0 | F85: 0.0025 | H85: 0.0025 | I85: Rate Only
A86: 4 | B86: C2.I.3.b.6) | C86: Maintenance | D86: % | E86: 0 | F86: 0.0025 | H86: 0.0025 | I86: Rate Only
A87: 4 | B87: C2.I.3.b.7) | C87: Training Manuals | D87: % | E87: 0 | F87: 0.0025 | H87: 0.0025 | I87: Rate Only
A89: 4 | B89: =AutoNumberingFormat(B87,A89) -> C2.I.3.b.8) | C89: =CONCATENATE("Any other items to complete installation of ",B80) -> Any other items to complete installation of C2.I.3.b)
A91: 3 | B91: =AutoNumberingFormat(B87,A91) -> C2.I.3.c) | C91: PED Certification
A92: 4 | B92: =AutoNumberingFormat(B91,A92) -> C2.I.3.c.1) | C92: Obtain and Provide PIN Entry Devices Certification | D92: Sum | E92: =IF(E84=0,0,1) -> 0 | H92: 0 | I92: Rate Only
A93: 4 | B93: =AutoNumberingFormat(B92,A93) -> C2.I.3.c.2) | C93: Revisions as required | D93: Sum | E93: =IF(E92=0,0,1) -> 0 | H93: 0 | I93: Rate Only
A95: 4 | B95: =AutoNumberingFormat(B93,A95) -> C2.I.3.c.3) | C95: =CONCATENATE("Any other items to complete installation of ",B91) -> Any other items to complete installation of C2.I.3.c)
A97: 3 | B97: =AutoNumberingFormat(B93,A97) -> C2.I.3.d) | C97: NDoT Certification and SANRAL ABT Integration
A98: 4 | B98: =AutoNumberingFormat(B97,A98) -> C2.I.3.d.1) | C98: Obtain and Provide NDoT AFC Data Structure Certification | D98: Sum | E98: =IF(E93=0,0,1) -> 0 | H98: 0 | I98: Rate Only
A99: 4 | B99: =AutoNumberingFormat(B98,A99) -> C2.I.3.d.2) | C99: Revisions as required | D99: Sum | E99: =IF(E98=0,0,1) -> 0 | H99: 0 | I99: Rate Only
A101: 4 | B101: =AutoNumberingFormat(B99,A101) -> C2.I.3.d.3) | C101: =CONCATENATE("Any other items to complete installation of ",B97) -> Any other items to complete installation of C2.I.3.d)
A103: 3 | B103: =AutoNumberingFormat(B101,A103) -> C2.I.3.e) | C103: =CONCATENATE("Any other items to complete installation of ",B70) -> Any other items to complete installation of C2.I.3)
A105: 2 | B105: =AutoNumberingFormat(B103,A105) -> C2.I.4) | C105: Any other items as may be necessary to complete the installation. | D105: Sum | E105: 1 | H105: =IF($D105="","",SUM(F105:G105))/231*'Quantity Matrix'!$B$20 -> 0 | I105: =IF(AND(E105=0,D105<>""),"Rate Only",IF($D105="","",$E105*H105)) -> 0
C106: Detail items below: | H106: =IF($D106="","",SUM(F106:G106)) -> 
C107: …………………………………………………
C108: …………………………………………………
C109: …………………………………………………
C110: …………………………………………………
I111: =IF($D111="","",$E111*H111) -> 
C113: =CONCATENATE(C13," TOTAL (Excluding VAT) CARRIED FORWARD TO SUMMARY)") -> O&M PERIOD: CONTROL AND OPERATIONS SOFTWARE TOTAL (Excluding VAT) CARRIED FORWARD TO SUMMARY) | I113: =SUM(I13:I110) -> 0
H138: =IF($D138="","",SUM(F138:G138)) -> 
H170: =IF($D170="","",SUM(F170:G170)) -> 
I173: =IF($D173="","",$E173*H173) -> 

Sheet O&M
B1: ='P''s & G''s'!B1:H1 -> CITY OF JOHANNESBURG
B2: ='P''s & G''s'!B2:H2 -> CONTRACT NO. JDA-WP 15K-01
B4: ='P''s & G''s'!B4:H4 -> THE DESIGN, BUILD, AND MAINTENANCE OF AN
B5: ='P''s & G''s'!B5:H5 -> AUTOMATED FARE COLLECTION SYSTEM
B6: ='P''s & G''s'!B6:H6 -> FOR REA VAYA AND METROBUS FOR A 8 YEAR PERIOD
B7: ='P''s & G''s'!B7:H7 -> 
B8: ="SCHEDULE - " & SUBSTITUTE(B13,")","") & " - " & C13 -> SCHEDULE - C2.J - O&M PERIOD: AFC
B10: ITEM | C10: DESCRIPTION OF ITEM | D10: UNIT | E10: QUANTITY | F10: SUPPLY | G10: INSTALL | H10: RATE | I10: AMOUNT
C12: The rates to be filled in hereunder must make provision for all specified equipment, associated materials, integration, and systems in order to execute the complete works as specified. | J12: =FindDuplicates(B13:B155) -> Numbering is okay
A13: 1 | B13: =SUMMARY!B21 -> C2.J) | C13: =SUMMARY!C21 -> O&M PERIOD: AFC
A15: 2 | B15: =AutoNumberingFormat(B13,A15) -> C2.J.1) | C15: Personnel - Back Office | H15: =IF($D15="","",SUM(F15:G15)) ->  | I15: =IF($D15="","",$E15*H15) -> 
B16: =AutoNumberingFormat(B14,A16) ->  | H16: =IF($D16="","",SUM(F16:G16)) ->  | I16: =IF($D16="","",$E16*H16) -> 
A17: 3 | B17: =AutoNumberingFormat(B15,A17) -> C2.J.1.a) | C17: Cost-To-Client for a single Fare Systems Specialist | H17: =IF($D17="","",SUM(F17:G17)) ->  | I17: =IF(AND(E17=0,D17<>""),"Rate Only",IF($D17="","",$E17*H17)) -> 
A19: 4 | B19: =AutoNumberingFormat(B17,A19) -> C2.J.1.a.1) | C19: Monthly Continuous Rates
A20: 5 | B20: =AutoNumberingFormat(B19,A20) -> C2.J.1.a.1.a) | C20: Standard Remuneration | D20: Month | E20: =ROUNDUP('Quantity Matrix'!$B$32*12/3,0) -> 32 | H20: 0 | I20: =IF(AND(E20=0,D20<>""),"Rate Only",IF($D20="","",$E20*H20)) -> 0
A21: 5 | B21: C2.J.1.a.1.b) | C21: Additional Allowance (Vehicle, Cellular, etc.) | D21: Month | E21: =E20 -> 32 | H21: 0 | I21: 0
A22: 5 | B22: C2.J.1.a.1.c) | C22: Annual Bonus | D22: Month | E22: 32 | H22: 0 | I22: 0
A23: 5 | B23: C2.J.1.a.1.d) | C23: Pension Fund Contributions | D23: Month | E23: 32 | H23: 0 | I23: 0
A24: 5 | B24: C2.J.1.a.1.e) | C24: Medical Aid Fund | D24: Month | E24: 32 | H24: 0 | I24: 0
A25: 5 | B25: C2.J.1.a.1.f) | C25: Unemployment Insurance Fund | D25: Month | E25: 32 | H25: 0 | I25: 0
A26: 5 | B26: C2.J.1.a.1.g) | C26: Job-Shadowing Function | D26: Month | E26: 32 | H26: 0 | I26: 0
A28: 5 | B28: =AutoNumberingFormat(B26,A28) -> C2.J.1.a.1.h) | C28: =CONCATENATE("Any other items to ensure continous effective operation of Personnel to be included under item ",B19) -> Any other items to ensure continous effective operation of Personnel to be included under item C2.J.1.a.1) | D28: Month | E28: =E26 -> 32 | H28: 0 | I28: 0
A31: 4 | B31: =AutoNumberingFormat(B28,A31) -> C2.J.1.a.2) | C31: Yearly Continuous Rates
A32: 5 | B32: =AutoNumberingFormat(B31,A32) -> C2.J.1.a.2.a) | C32: Yearly Improvement/Training Course | D32: Year | E32: =ROUNDUP('Quantity Matrix'!$B$32/3,0) -> 3 | H32: 0 | I32: =IF(AND(E32=0,D32<>""),"Rate Only",IF($D32="","",$E32*H32)) -> 0
A33: 5 | B33: =AutoNumberingFormat(B32,A33) -> C2.J.1.a.2.b) | C33: Professional Association Fees (ECSA / IEEE / ACM / PMI etc.) | D33: Year | E33: =E32 -> 3 | H33: 0 | I33: =IF(AND(E33=0,D33<>""),"Rate Only",IF($D33="","",$E33*H33)) -> 0
A34: 5 | B34: =AutoNumberingFormat(B33,A34) -> C2.J.1.a.2.c) | C34: Yearly Technician Uniforms (1 set per year that includes: 1x Jacket, 4x Shirts, 2x Trousers, 1x Belt, 3x Socks, 1x Shoes, 1x Rain-Coat, and 1x Name Badge) | D34: Year | E34: =E33 -> 3 | H34: 0 | I34: =IF(AND(E34=0,D34<>""),"Rate Only",IF($D34="","",$E34*H34)) -> 0
I35: =IF(AND(E35=0,D35<>""),"Rate Only",IF($D35="","",$E35*H35)) -> 
A36: 5 | B36: =AutoNumberingFormat(B34,A36) -> C2.J.1.a.2.d) | C36: =CONCATENATE("Any other items to ensure continous improvement of Personnel to be included under item ",B31) -> Any other items to ensure continous improvement of Personnel to be included under item C2.J.1.a.2) | D36: Year | E36: =E34 -> 3 | H36: 0 | I36: =IF(AND(E36=0,D36<>""),"Rate Only",IF($D36="","",$E36*H36)) -> 0
A38: 4 | B38: =AutoNumberingFormat(B36,A38) -> C2.J.1.a.3) | C38: Once-Off Rates (Done before personnel appointment and O&M Period) | I38: =IF(AND(E38=0,D38<>""),"Rate Only",IF($D38="","",$E38*H38)) -> 
A39: 5 | B39: =AutoNumberingFormat(B38,A39) -> C2.J.1.a.3.a) | C39: Psychometric tests | D39: No | E39: =IF(E36=0,0,1) -> 1 | H39: 0 | I39: 0
A40: 5 | B40: C2.J.1.a.3.b) | C40: Integrity assessments and profiling manager | D40: No | E40: =E39 -> 1 | H40: 0 | I40: 0
A41: 5 | B41: C2.J.1.a.3.c) | C41: Criminal background check | D41: No | E41: 1 | H41: 0 | I41: 0
A42: 5 | B42: C2.J.1.a.3.d) | C42: Educational background check | D42: No | E42: 1 | H42: 0 | I42: 0
A43: 5 | B43: C2.J.1.a.3.e) | C43: Medical assessment | D43: No | E43: 1 | H43: 0 | I43: 0
A44: 5 | B44: C2.J.1.a.3.f) | C44: Credit rating check | D44: No | E44: 1 | H44: 0 | I44: 0
A45: 5 | B45: C2.J.1.a.3.g) | C45: Basic first aid training | D45: No | E45: 1 | H45: 0 | I45: 0
A47: 4 | B47: =AutoNumberingFormat(B45,A47) -> C2.J.1.a.4) | C47: =CONCATENATE("Any other items to ensure qualitative appointment of personnel to be included under item ",B38) -> Any other items to ensure qualitative appointment of personnel to be included under item C2.J.1.a.3) | D47: No | E47: =IF(E45=0,0,1) -> 1 | H47: 0 | I47: 0
H48: =IF($D48="","",SUM(F48:G48)) -> 
A49: 3 | B49: =AutoNumberingFormat(B45,A49) -> C2.J.1.b) | C49: Cost-To-Client for the remainder of the personnel of type Fare Systems Specialist
A50: 4 | B50: =AutoNumberingFormat(B49,A50) -> C2.J.1.b.1) | C50: =CONCATENATE("Remaining personnel with Cost-To-Client based on item Amount in ",B17) -> Remaining personnel with Cost-To-Client based on item Amount in C2.J.1.a) | D50: No | E50: ='Quantity Matrix'!B38-1 -> 0 | F50: =SUMPRODUCT($E17:$E49,F17:F49) -> 0 | G50: =SUMPRODUCT($E17:$E49,G17:G49) -> 0 | H50: 0 | I50: Rate Only
A52: 3 | B52: =AutoNumberingFormat(B50,A52) -> C2.J.1.c) | C52: Cost-To-Client for a single Technician | H52: =IF($D52="","",SUM(F52:G52)) ->  | I52: =IF(AND(E52=0,D52<>""),"Rate Only",IF($D52="","",$E52*H52)) -> 
A54: 4 | B54: =AutoNumberingFormat(B52,A54) -> C2.J.1.c.1) | C54: Monthly Continuous Rates
A55: 5 | B55: =AutoNumberingFormat(B54,A55) -> C2.J.1.c.1.a) | C55: Standard Remuneration | D55: Month | E55: ='Quantity Matrix'!$B$32*12 -> 96 | H55: 0 | I55: =IF(AND(E55=0,D55<>""),"Rate Only",IF($D55="","",$E55*H55)) -> 0
A56: 5 | B56: C2.J.1.c.1.b) | C56: Additional Allowance (Vehicle, Cellular, etc.) | D56: Month | E56: ='Quantity Matrix'!$B$32*12 -> 96 | H56: 0 | I56: 0
A57: 5 | B57: C2.J.1.c.1.c) | C57: Annual Bonus | D57: Month | E57: ='Quantity Matrix'!$B$32*12 -> 96 | H57: 0 | I57: 0
A58: 5 | B58: C2.J.1.c.1.d) | C58: Pension Fund Contributions | D58: Month | E58: ='Quantity Matrix'!$B$32*12 -> 96 | H58: 0 | I58: 0
A59: 5 | B59: C2.J.1.c.1.e) | C59: Medical Aid Fund | D59: Month | E59: ='Quantity Matrix'!$B$32*12 -> 96 | H59: 0 | I59: 0
A60: 5 | B60: C2.J.1.c.1.f) | C60: Unemployment Insurance Fund | D60: Month | E60: ='Quantity Matrix'!$B$32*12 -> 96 | H60: 0 | I60: 0
A61: 5 | B61: C2.J.1.c.1.g) | C61: Job-Shadowing Function | D61: Month | E61: ='Quantity Matrix'!$B$32*12 -> 96 | H61: 0 | I61: 0
A63: 5 | B63: =AutoNumberingFormat(B61,A63) -> C2.J.1.c.1.h) | C63: =CONCATENATE("Any other items to ensure continous effective operation of Personnel to be included under item ",B54) -> Any other items to ensure continous effective operation of Personnel to be included under item C2.J.1.c.1) | D63: Month | E63: ='Quantity Matrix'!$B$32*12 -> 96 | H63: 0 | I63: 0
A65: 4 | B65: =AutoNumberingFormat(B63,A65) -> C2.J.1.c.2) | C65: Yearly Continuous Rates
A66: 5 | B66: =AutoNumberingFormat(B65,A66) -> C2.J.1.c.2.a) | C66: Yearly Improvement/Training Course | D66: Year | E66: ='Quantity Matrix'!$B$32 -> 8 | H66: 0 | I66: =IF(AND(E66=0,D66<>""),"Rate Only",IF($D66="","",$E66*H66)) -> 0
A67: 5 | B67: =AutoNumberingFormat(B66,A67) -> C2.J.1.c.2.b) | C67: Technician Tools | D67: Year | E67: ='Quantity Matrix'!$B$32 -> 8 | H67: =IF($D67="","",SUM(F67:G67)) -> 0 | I67: =IF(AND(E67=0,D67<>""),"Rate Only",IF($D67="","",$E67*H67)) -> 0
A68: 5 | B68: =AutoNumberingFormat(B67,A68) -> C2.J.1.c.2.c) | C68: Professional Association Fees (ECSA / IEEE / ACM / PMI etc.) | D68: Year | E68: ='Quantity Matrix'!$B$32 -> 8 | H68: 0 | I68: =IF(AND(E68=0,D68<>""),"Rate Only",IF($D68="","",$E68*H68)) -> 0
A69: 5 | B69: C2.J.1.c.2.d) | C69: Yearly Technician Uniforms (1 set per year that includes: 1x Jacket, 4x Shirts, 2x Trousers, 1x Belt, 3x Socks, 1x Shoes, 1x Rain-Coat, and 1x Name Badge) | D69: Year | E69: ='Quantity Matrix'!$B$32 -> 8 | H69: 0 | I69: =IF(AND(E69=0,D69<>""),"Rate Only",IF($D69="","",$E69*H69)) -> 0
I70: =IF(AND(E70=0,D70<>""),"Rate Only",IF($D70="","",$E70*H70)) -> 
A71: 5 | B71: =AutoNumberingFormat(B69,A71) -> C2.J.1.c.2.e) | C71: =CONCATENATE("Any other items to ensure continous improvement of Personnel to be included under item ",B65) -> Any other items to ensure continous improvement of Personnel to be included under item C2.J.1.c.2) | D71: Year | E71: ='Quantity Matrix'!$B$32 -> 8 | H71: 0 | I71: =IF(AND(E71=0,D71<>""),"Rate Only",IF($D71="","",$E71*H71)) -> 0
A73: 4 | B73: =AutoNumberingFormat(B71,A73) -> C2.J.1.c.3) | C73: Once-Off Rates (Done before personnel appointment and O&M Period) | I73: =IF(AND(E73=0,D73<>""),"Rate Only",IF($D73="","",$E73*H73)) -> 
A74: 5 | B74: =AutoNumberingFormat(B73,A74) -> C2.J.1.c.3.a) | C74: Psychometric tests | D74: No | E74: =IF(E71=0,0,1) -> 1 | H74: 0 | I74: 0
A75: 5 | B75: C2.J.1.c.3.b) | C75: Integrity assessments and profiling manager | D75: No | E75: =E74 -> 1 | H75: 0 | I75: 0
A76: 5 | B76: C2.J.1.c.3.c) | C76: Criminal background check | D76: No | E76: 1 | H76: 0 | I76: 0
A77: 5 | B77: C2.J.1.c.3.d) | C77: Educational background check | D77: No | E77: 1 | H77: 0 | I77: 0
A78: 5 | B78: C2.J.1.c.3.e) | C78: Medical assessment | D78: No | E78: 1 | H78: 0 | I78: 0
A79: 5 | B79: C2.J.1.c.3.f) | C79: Credit rating check | D79: No | E79: 1 | H79: 0 | I79: 0
A80: 5 | B80: C2.J.1.c.3.g) | C80: Basic first aid training | D80: No | E80: 1 | H80: 0 | I80: 0
A82: 4 | B82: =AutoNumberingFormat(B80,A82) -> C2.J.1.c.4) | C82: =CONCATENATE("Any other items to ensure qualitative appointment of personnel to be included under item ",B73) -> Any other items to ensure qualitative appointment of personnel to be included under item C2.J.1.c.3) | D82: No | E82: =IF(E80=0,0,1) -> 1 | H82: 0 | I82: 0
H83: =IF($D83="","",SUM(F83:G83)) -> 
A84: 3 | B84: =AutoNumberingFormat(B80,A84) -> C2.J.1.d) | C84: Cost-To-Client for the remainder of the personnel of type Technician
A85: 4 | B85: =AutoNumberingFormat(B84,A85) -> C2.J.1.d.1) | C85: =CONCATENATE("Remaining personnel with Cost-To-Client based on item Amount in ",B52) -> Remaining personnel with Cost-To-Client based on item Amount in C2.J.1.c) | D85: No | E85: ='Quantity Matrix'!B39-1 -> 4 | F85: =SUMPRODUCT($E52:$E84,F52:F84) -> 0 | G85: =SUMPRODUCT($E52:$E84,G52:G84) -> 0 | H85: 0 | I85: 0
A87: 3 | B87: =AutoNumberingFormat(B85,A87) -> C2.J.1.e) | C87: Cost-To-Client for a single Technician Assistant | I87: =IF(AND(E87=0,D87<>""),"Rate Only",IF($D87="","",$E87*H87)) -> 
A89: 4 | B89: =AutoNumberingFormat(B87,A89) -> C2.J.1.e.1) | C89: Monthly Continuous Rates
A90: 5 | B90: =AutoNumberingFormat(B89,A90) -> C2.J.1.e.1.a) | C90: Standard Remuneration | D90: Month | E90: ='Quantity Matrix'!$B$32*12 -> 96 | H90: 0 | I90: =IF(AND(E90=0,D90<>""),"Rate Only",IF($D90="","",$E90*H90)) -> 0
A91: 5 | B91: C2.J.1.e.1.b) | C91: Additional Allowance (Vehicle, Cellular, etc.) | D91: Month | E91: ='Quantity Matrix'!$B$32*12 -> 96 | H91: 0 | I91: 0
A92: 5 | B92: C2.J.1.e.1.c) | C92: Annual Bonus | D92: Month | E92: ='Quantity Matrix'!$B$32*12 -> 96 | H92: 0 | I92: 0
A93: 5 | B93: C2.J.1.e.1.d) | C93: Pension Fund Contributions | D93: Month | E93: ='Quantity Matrix'!$B$32*12 -> 96 | H93: 0 | I93: 0
A94: 5 | B94: C2.J.1.e.1.e) | C94: Medical Aid Fund | D94: Month | E94: ='Quantity Matrix'!$B$32*12 -> 96 | H94: 0 | I94: 0
A95: 5 | B95: C2.J.1.e.1.f) | C95: Unemployment Insurance Fund | D95: Month | E95: ='Quantity Matrix'!$B$32*12 -> 96 | H95: 0 | I95: 0
A96: 5 | B96: C2.J.1.e.1.g) | C96: Job-Shadowing Function | D96: Month | E96: ='Quantity Matrix'!$B$32*12 -> 96 | H96: 0 | I96: 0
A98: 5 | B98: =AutoNumberingFormat(B96,A98) -> C2.J.1.e.1.h) | C98: =CONCATENATE("Any other items to ensure continous effective operation of Personnel to be included under item ",B89) -> Any other items to ensure continous effective operation of Personnel to be included under item C2.J.1.e.1) | D98: Month | E98: ='Quantity Matrix'!$B$32*12 -> 96 | H98: 0 | I98: 0
A100: 4 | B100: =AutoNumberingFormat(B98,A100) -> C2.J.1.e.2) | C100: Yearly Continuous Rates
A101: 5 | B101: =AutoNumberingFormat(B100,A101) -> C2.J.1.e.2.a) | C101: Yearly Improvement/Training Course | D101: Year | E101: ='Quantity Matrix'!$B$32 -> 8 | H101: 0 | I101: =IF(AND(E101=0,D101<>""),"Rate Only",IF($D101="","",$E101*H101)) -> 0
A102: 5 | B102: =AutoNumberingFormat(B101,A102) -> C2.J.1.e.2.b) | C102: Technician Tools | D102: Year | E102: ='Quantity Matrix'!$B$32 -> 8 | H102: 0 | I102: 0
A103: 5 | B103: =AutoNumberingFormat(B102,A103) -> C2.J.1.e.2.c) | C103: Professional Association Fees (ECSA / IEEE / ACM / PMI etc.) | D103: Year | E103: ='Quantity Matrix'!$B$32 -> 8 | H103: 0 | I103: 0
A104: 5 | B104: =AutoNumberingFormat(B103,A104) -> C2.J.1.e.2.d) | C104: Yearly Technician Uniforms (1 set per year that includes: 1x Jacket, 4x Shirts, 2x Trousers, 1x Belt, 3x Socks, 1x Shoes, 1x Rain-Coat, and 1x Name Badge) | D104: Year | E104: ='Quantity Matrix'!$B$32 -> 8 | H104: 0 | I104: 0
A106: 5 | B106: =AutoNumberingFormat(B104,A106) -> C2.J.1.e.2.e) | C106: =CONCATENATE("Any other items to ensure continous improvement of Personnel to be included under item ",B100) -> Any other items to ensure continous improvement of Personnel to be included under item C2.J.1.e.2) | D106: Year | E106: ='Quantity Matrix'!$B$32 -> 8 | H106: 0 | I106: 0
A108: 4 | B108: =AutoNumberingFormat(B106,A108) -> C2.J.1.e.3) | C108: Once-Off Rates (Done before personnel appointment and O&M Period) | I108: =IF(AND(E108=0,D108<>""),"Rate Only",IF($D108="","",$E108*H108)) -> 
A109: 5 | B109: =AutoNumberingFormat(B108,A109) -> C2.J.1.e.3.a) | C109: Psychometric tests | D109: No | E109: =IF(E106=0,0,1) -> 1 | H109: 0 | I109: 0
A110: 5 | B110: C2.J.1.e.3.b) | C110: Integrity assessments and profiling manager | D110: No | E110: =E109 -> 1 | H110: 0 | I110: 0
A111: 5 | B111: C2.J.1.e.3.c) | C111: Criminal background check | D111: No | E111: 1 | H111: 0 | I111: 0
A112: 5 | B112: C2.J.1.e.3.d) | C112: Educational background check | D112: No | E112: 1 | H112: 0 | I112: 0
A113: 5 | B113: C2.J.1.e.3.e) | C113: Medical assessment | D113: No | E113: 1 | H113: 0 | I113: 0
A114: 5 | B114: C2.J.1.e.3.f) | C114: Credit rating check | D114: No | E114: 1 | H114: 0 | I114: 0
A115: 5 | B115: C2.J.1.e.3.g) | C115: Basic first aid training | D115: No | E115: 1 | H115: 0 | I115: 0
A117: 4 | B117: =AutoNumberingFormat(B115,A117) -> C2.J.1.e.4) | C117: =CONCATENATE("Any other items to ensure qualitative appointment of personnel to be included under item ",B108) -> Any other items to ensure qualitative appointment of personnel to be included under item C2.J.1.e.3) | D117: No | E117: =IF(E115=0,0,1) -> 1 | H117: 0 | I117: 0
A119: 3 | B119: =AutoNumberingFormat(B115,A119) -> C2.J.1.f) | C119: Cost-To-Client for the remainder of the personnel of type Technician Assistant
A120: 4 | B120: =AutoNumberingFormat(B119,A120) -> C2.J.1.f.1) | C120: =CONCATENATE("Remaining personnel with Cost-To-Client based on item Amount in ",B87) -> Remaining personnel with Cost-To-Client based on item Amount in C2.J.1.e) | D120: No | E120: ='Quantity Matrix'!B40-1 -> 8 | F120: =SUMPRODUCT($E87:$E119,F87:F119) -> 0 | G120: =SUMPRODUCT($E87:$E119,G87:G119) -> 0 | H120: 0 | I120: 0
A122: 2 | B122: =AutoNumberingFormat(B120,A122) -> C2.J.2) | C122: Commissioning and Documentation | H122: =IF($D122="","",SUM(F122:G122)) ->  | I122: =IF(AND(E122=0,D122<>""),"Rate Only",IF($D122="","",$E122*H122)) -> 
B123: =AutoNumberingFormat(B122,A123) -> 
A124: 3 | B124: =AutoNumberingFormat(B122,A124) -> C2.J.2.a) | C124: Testing & Commissioning
A125: 4 | B125: =AutoNumberingFormat(B124,A125) -> C2.J.2.a.1) | C125: Contractor’s Component Testing (labour and special test requirements) | D125: Sum | E125: 1 | H125: 0 | I125: 0
A126: 4 | B126: C2.J.2.a.2) | C126: Conduct FATs under Engineer's Supervision | D126: Sum | E126: =IF(E125=0,0,1) -> 1 | H126: 0 | I126: 0
A127: 4 | B127: C2.J.2.a.3) | C127: Conduct IFATs under Engineer's Supervision | D127: Sum | E127: =IF(E126=0,0,1) -> 1 | H127: 0 | I127: 0
A128: 4 | B128: C2.J.2.a.4) | C128: Conduct SATs under Engineer’s Supervision | D128: Sum | E128: =IF(E126=0,0,1) -> 1 | H128: =IF($D128="","",SUM(F128:G128)) -> 0 | I128: 0
A129: 4 | B129: C2.J.2.a.5) | C129: Conduct ISATs under Engineer’s Supervision | D129: Sum | E129: =IF(E127=0,0,1) -> 1 | H129: 0 | I129: 0
A130: 4 | B130: C2.J.2.a.6) | C130: Execute 30-day Trial Period | D130: Sum | E130: =IF(E128=0,0,1) -> 1 | H130: 0 | I130: 0
A132: 4 | B132: =AutoNumberingFormat(B130,A132) -> C2.J.2.a.7) | C132: =CONCATENATE("Any other items to complete installation of ",B124) -> Any other items to complete installation of C2.J.2.a)
B133: =AutoNumberingFormat(B130,A133) -> 
A134: 3 | B134: =AutoNumberingFormat(B130,A134) -> C2.J.2.b) | C134: Documentation
A135: 4 | B135: =AutoNumberingFormat(B134,A135) -> C2.J.2.b.1) | C135: Design | D135: % | E135: =SUM(I13:I121) -> 0 | F135: 0.01 | H135: 0.01 | I135: Rate Only
A136: 4 | B136: C2.J.2.b.2) | C136: FAT and IFAT Test Plan and Methods | D136: % | E136: =E135 -> 0 | F136: 0.0075 | H136: 0.0075 | I136: Rate Only
A137: 4 | B137: C2.J.2.b.3) | C137: SAT and ISAT Test Plan and Methods | D137: % | E137: 0 | F137: 0.0075 | H137: 0.0075 | I137: Rate Only
A138: 4 | B138: C2.J.2.b.4) | C138: As-Built | D138: % | E138: 0 | F138: 0.0075 | H138: 0.0075 | I138: Rate Only
A139: 4 | B139: C2.J.2.b.5) | C139: Operations | D139: % | E139: 0 | F139: 0.0025 | H139: 0.0025 | I139: Rate Only
A140: 4 | B140: C2.J.2.b.6) | C140: Maintenance | D140: % | E140: 0 | F140: 0.0025 | H140: 0.0025 | I140: Rate Only
A141: 4 | B141: C2.J.2.b.7) | C141: Training Manuals | D141: % | E141: 0 | F141: 0.0025 | H141: 0.0025 | I141: Rate Only
A143: 4 | B143: =AutoNumberingFormat(B141,A143) -> C2.J.2.b.8) | C143: =CONCATENATE("Any other items to complete installation of ",B134) -> Any other items to complete installation of C2.J.2.b)
A145: 3 | B145: =AutoNumberingFormat(B143,A145) -> C2.J.2.c) | C145: =CONCATENATE("Any other items to complete installation of ",B122) -> Any other items to complete installation of C2.J.2)
A147: 2 | B147: =AutoNumberingFormat(B122,A147) -> C2.J.3) | C147: Any other items as may be necessary to complete the installation. | D147: Sum | E147: 1 | H147: =IF($D147="","",SUM(F147:G147)) -> 0 | I147: =IF(AND(E147=0,D147<>""),"Rate Only",IF($D147="","",$E147*H147)) -> 0
C148: Detail items below: | H148: =IF($D148="","",SUM(F148:G148)) -> 
C149: …………………………………………………
C150: …………………………………………………
C151: …………………………………………………
C152: …………………………………………………
H153: =IF($D153="","",SUM(F153:G153)) ->  | I153: =IF($D153="","",$E153*H153) -> 
C154: =CONCATENATE(C13," TOTAL (Excluding VAT) CARRIED FORWARD TO SUMMARY)") -> O&M PERIOD: AFC TOTAL (Excluding VAT) CARRIED FORWARD TO SUMMARY) | I154: =SUM(I13:I152) -> 0
H185: =IF($D185="","",SUM(F185:G185)) -> 
I216: =IF($D216="","",$E216*H216) -> 
H217: =IF($D217="","",SUM(F217:G217)) -> 
H249: =IF($D249="","",SUM(F249:G249)) -> 
I280: =IF($D280="","",$E280*H280) -> 
H281: =IF($D281="","",SUM(F281:G281)) -> 
H313: =IF($D313="","",SUM(F313:G313)) -> 

Sheet SUMMARY
B1: ='P''s & G''s'!B1:H1 -> CITY OF JOHANNESBURG
B2: ='P''s & G''s'!B2:H2 -> CONTRACT NO. JDA-WP 15K-01
B4: ='P''s & G''s'!B4:H4 -> THE DESIGN, BUILD, AND MAINTENANCE OF AN
B5: ='P''s & G''s'!B5:H5 -> AUTOMATED FARE COLLECTION SYSTEM
B6: ='P''s & G''s'!B6:H6 -> FOR REA VAYA AND METROBUS FOR A 8 YEAR PERIOD
B7: ='P''s & G''s'!B7:H7 -> 
B8: SCHEDULE SUMMARY
B10: ITEM | C10: DESCRIPTION OF ITEM | D10: TOTAL
A12: 1 | B12: C2.A) | C12: PRELIMINARY & GENERAL ITEMS | D12: =SUM(D13:D21)*0.125 -> 0
A13: 1 | B13: =AutoNumberingFormat(B12,A13) -> C2.B) | C13: D&B PERIOD: FARE MEDIA | D13: =FM!I233 -> 0
A14: 1 | B14: =AutoNumberingFormat(B13,A14) -> C2.C) | C14: D&B PERIOD: FARE/FEE ACCESS CONTROL SYSTEM | D14: =FAC!I1194 -> 0
A15: 1 | B15: C2.D) | C15: D&B PERIOD: PARK AND RIDE CONTROL SYSTEM | D15: =PRK!I424 -> 0
A16: 1 | B16: C2.E) | C16: D&B PERIOD: MOBILE FARE KIOSK | D16: =MFK!I158 -> 0
A17: 1 | B17: C2.F) | C17: D&B PERIOD: VEHICLE EQUIPMENT | D17: =VHC!I420 -> 0
A18: 1 | B18: C2.G) | C18: D&B PERIOD: MAN, MACHINE INTERFACE EQUIPMENT | D18: =MMINT!I820 -> 0
A19: 1 | B19: C2.H) | C19: D&B PERIOD: DIGITAL PROCESSING EQUIPMENT | D19: =DPE!I278 -> 0
A20: 1 | B20: C2.I) | C20: O&M PERIOD: CONTROL AND OPERATIONS SOFTWARE | D20: =COS!I113 -> 0
A21: 1 | B21: C2.J) | C21: O&M PERIOD: AFC | D21: ='O&M'!I154 -> 0
C23: SUB TOTAL : | D23: =SUM(D12:D21) -> 0
C24: CONTINGENCY @10% : | D24: =SUM(D12:D20)*0.1 -> 0
C25: CONTRACT PRICE ADJUSTMENT @20% : | D25: =SUM(D12:D21)*0.2 -> 0
C27: TOTAL TENDER (Excluding VAT) | D27: =SUM(D23:D24) -> 0
C29: TOTAL TENDER (Including VAT) | D29: =ROUNDUP(D27*1.14,2) -> 0 | E29: =CurrencyToWords(D29) -> No Rands And No Cents
